Workbook

Sheet Modèle DaQ - Annexe Q-4.1
A1: Projet MTQ Pont Trudel
A2: (En dollars)
B4: Paramètres 2017-2018 | I4: Grille des coûts marginaux statutaires 2017-2018
M5: Entretien
B6: Amortissement comptable - Conduites | E6: 45.2 | F6: ans | K6: Année 1 | L6: Années 2 et + | M6: Conduites
B7: Amortissement comptable - Branchements | E7: 21.0 | F7: ans | I7: Résidentiel
B8: Amortissement fiscal - Conduites | E8: 6.0% | I8: Extension de réseau | K8: 135.26 | L8: 72.90 | M8: 0.59 $/m
B9: Amortissement fiscal - Branchements | E9: 6.0% | I9: Ajout de charge | K9: 56.55 | L9: 0.00 | M9: 0.00 $/m
B10: Frais à l'Union des municipalités | E10: 0.0% | I10: CII
B11: Frais généraux | E11: 14.53% | I11: Extension de réseau | K11: 338.76 | L11: 189.84 | M11: 0.59 $/m
B12: Taxe sur les services publics | E12: 1.5% | I12: Ajout de charge | K12: 90.21 | L12: 0.00 | M12: 0.00 $/m
B13: Taux de redevance à la Régie de l'énergie ($/10³m³) | E13: 0.56749 | I13: VGE
B14: Taux de redevance à la Régie du bâtiment ($/10³m³) | E14: 0.46200 | I14: Extension de réseau | K14: 1,844.53 | L14: 1,780.86 | M14: 0.59 $/m
B15: Taux d'imposition (féd. + prov.) - Année 1 | E15: 26.73% | I15: Ajout de charge | K15: 62.79 | L15: 9.31 | M15: 0.00 $/m
B16: Taux d'imposition (féd. + prov.) - Année 2 | E16: 26.63%
B17: Taux d'imposition (féd. + prov.) - Année 3 | E17: 26.53%
B18: Taux d'imposition (féd. + prov.) - Année 4 et + | E18: 26.50%
B19: Coût d'opération statutaire | E19: Selon grille des coûts marginaux
B20: Coût de la dette | E20: 2.970%
B21: Coût de l'équité (ord. + priv.) | E21: 8.311%
B22: Proportion de dette | E22: 54.0%
B23: Proportion d'équité (ord. + priv.) | E23: 46.0%
B24: Coût en capital prospectif pondéré | E24: 5.43%
B25: Coût en capital prospectif pondéré après impôt | E25: 5.01%
A29: Section 1 - Intrants | G29: 0 | H29: 1 | I29: 2 | J29: 3 | K29: 4 | L29: 5 | M29: 6 | N29: 7 | O29: 8 | P29: 9 | Q29: 10 | R29: 11 | S29: 12 | T29: 13 | U29: 14 | V29: 15 | W29: 16 | X29: 17 | Y29: 18 | Z29: 19 | AA29: 20 | AB29: 21 | AC29: 22 | AD29: 23 | AE29: 24 | AF29: 25 | AG29: 26 | AH29: 27 | AI29: 28 | AJ29: 29 | AK29: 30 | AL29: 31 | AM29: 32 | AN29: 33 | AO29: 34 | AP29: 35 | AQ29: 36 | AR29: 37 | AS29: 38 | AT29: 39 | AU29: 40
A31: 1.1 | B31: Clients - Volumes de vente - Tarifs - Revenus | H31: 2019 | I31: =H31+1 -> 2020 | J31: =I31+1 -> 2021 | K31: 2022 | L31: 2023 | M31: 2024 | N31: 2025 | O31: 2026 | P31: 2027 | Q31: 2028 | R31: 2029 | S31: 2030 | T31: 2031 | U31: 2032 | V31: 2033 | W31: 2034 | X31: 2035 | Y31: 2036 | Z31: 2037 | AA31: 2038 | AB31: 2039 | AC31: 2040 | AD31: 2041 | AE31: 2042 | AF31: 2043 | AG31: 2044 | AH31: 2045 | AI31: 2046 | AJ31: 2047 | AK31: 2048 | AL31: 2049 | AM31: 2050 | AN31: 2051 | AO31: 2052 | AP31: 2053 | AQ31: 2054 | AR31: 2055 | AS31: 2056 | AT31: 2057 | AU31: 2058
B33: Nombre de clients | H33: 0 | I33: 0 | J33: 0 | K33: 0 | L33: 0 | M33: 0 | N33: 0 | O33: 0 | P33: 0 | Q33: 0 | R33: 0 | S33: 0 | T33: 0 | U33: 0 | V33: 0 | W33: 0 | X33: 0 | Y33: 0 | Z33: 0 | AA33: 0 | AB33: 0 | AC33: 0 | AD33: 0 | AE33: 0 | AF33: 0 | AG33: 0 | AH33: 0 | AI33: 0 | AJ33: 0 | AK33: 0 | AL33: 0 | AM33: 0 | AN33: 0 | AO33: 0 | AP33: 0 | AQ33: 0 | AR33: 0 | AS33: 0 | AT33: 0 | AU33: 0
B34: Volume de vente en m³ | H34: 0 | I34: 0 | J34: 0 | K34: 0 | L34: 0 | M34: 0 | N34: 0 | O34: 0 | P34: 0 | Q34: 0 | R34: 0 | S34: 0 | T34: 0 | U34: 0 | V34: 0 | W34: 0 | X34: 0 | Y34: 0 | Z34: 0 | AA34: 0 | AB34: 0 | AC34: 0 | AD34: 0 | AE34: 0 | AF34: 0 | AG34: 0 | AH34: 0 | AI34: 0 | AJ34: 0 | AK34: 0 | AL34: 0 | AM34: 0 | AN34: 0 | AO34: 0 | AP34: 0 | AQ34: 0 | AR34: 0 | AS34: 0 | AT34: 0 | AU34: 0
B35: Taux de distribution (en ¢ par m³) | H35: 0.0000 | I35: 0.0000 | J35: 0.0000 | K35: 0.0000 | L35: 0.0000 | M35: 0.0000 | N35: 0.0000 | O35: 0.0000 | P35: 0.0000 | Q35: 0.0000 | R35: 0.0000 | S35: 0.0000 | T35: 0.0000 | U35: 0.0000 | V35: 0.0000 | W35: 0.0000 | X35: 0.0000 | Y35: 0.0000 | Z35: 0.0000 | AA35: 0.0000 | AB35: 0.0000 | AC35: 0.0000 | AD35: 0.0000 | AE35: 0.0000 | AF35: 0.0000 | AG35: 0.0000 | AH35: 0.0000 | AI35: 0.0000 | AJ35: 0.0000 | AK35: 0.0000 | AL35: 0.0000 | AM35: 0.0000 | AN35: 0.0000 | AO35: 0.0000 | AP35: 0.0000 | AQ35: 0.0000 | AR35: 0.0000 | AS35: 0.0000 | AT35: 0.0000 | AU35: 0.0000
B36: Revenu de distribution | H36: =H35*H34/100 -> 0 | I36: 0 | J36: 0 | K36: 0 | L36: 0 | M36: 0 | N36: 0 | O36: 0 | P36: 0 | Q36: 0 | R36: 0 | S36: 0 | T36: 0 | U36: 0 | V36: 0 | W36: 0 | X36: 0 | Y36: 0 | Z36: 0 | AA36: 0 | AB36: 0 | AC36: 0 | AD36: 0 | AE36: 0 | AF36: 0 | AG36: 0 | AH36: 0 | AI36: 0 | AJ36: 0 | AK36: 0 | AL36: 0 | AM36: 0 | AN36: 0 | AO36: 0 | AP36: 0 | AQ36: 0 | AR36: 0 | AS36: 0 | AT36: 0 | AU36: 0
A38: 1.2 | B38: Coûts d'investissement (capitalisables) | G38: =H38-1 -> 2018 | H38: =$H$31 -> 2019 | I38: =H38+1 -> 2020 | J38: =I38+1 -> 2021 | K38: 2022 | L38: 2023 | M38: 2024 | N38: 2025 | O38: 2026 | P38: 2027 | Q38: 2028 | R38: 2029 | S38: 2030 | T38: 2031 | U38: 2032 | V38: 2033 | W38: 2034 | X38: 2035 | Y38: 2036 | Z38: 2037 | AA38: 2038 | AB38: 2039 | AC38: 2040 | AD38: 2041 | AE38: 2042 | AF38: 2043 | AG38: 2044 | AH38: 2045 | AI38: 2046 | AJ38: 2047 | AK38: 2048 | AL38: 2049 | AM38: 2050 | AN38: 2051 | AO38: 2052 | AP38: 2053 | AQ38: 2054 | AR38: 2055 | AS38: 2056 | AT38: 2057 | AU38: 2058
B40: Frais de conduite - Base | G40: 1,165,681 | H40: 0 | I40: 0 | J40: 0 | K40: 0
B41: Frais de conduite - Frais entrepreneurs | G41: 195,420 | H41: 0 | I41: 0 | J41: 0 | K41: 0
B42: Frais de conduites - Total | G42: =G40+G41 -> 1,361,101 | H42: =H40+H41 -> 0 | I42: 0 | J42: 0 | K42: 0 | L42: =L40+L41 -> 0 | M42: 0 | N42: 0 | O42: 0 | P42: 0 | Q42: 0 | R42: 0 | S42: 0 | T42: 0 | U42: 0 | V42: 0 | W42: 0 | X42: 0 | Y42: 0 | Z42: 0 | AA42: 0 | AB42: 0 | AC42: 0 | AD42: 0 | AE42: 0 | AF42: 0 | AG42: 0 | AH42: 0 | AI42: 0 | AJ42: 0 | AK42: 0 | AL42: 0 | AM42: 0 | AN42: 0 | AO42: 0 | AP42: 0 | AQ42: 0 | AR42: 0 | AS42: 0 | AT42: 0 | AU42: 0
B44: Frais de branchements - Base | G44: 0 | H44: 0 | I44: 0 | J44: 0 | K44: 0
B45: Frais de branchements - Frais entrepreneurs | G45: 0 | H45: 0 | I45: 0 | J45: 0 | K45: 0
B46: Frais de branchements - Coûts de compteur(s) | G46: 0 | H46: 0 | I46: 0 | J46: 0 | K46: 0
B47: Frais de branchements - Total | G47: =G44+G45+G46 -> 0 | H47: 0 | I47: 0 | J47: 0 | K47: 0 | L47: =L44+L45+L46 -> 0 | M47: 0 | N47: 0 | O47: 0 | P47: 0 | Q47: 0 | R47: 0 | S47: 0 | T47: 0 | U47: 0 | V47: 0 | W47: 0 | X47: 0 | Y47: 0 | Z47: 0 | AA47: 0 | AB47: 0 | AC47: 0 | AD47: 0 | AE47: 0 | AF47: 0 | AG47: 0 | AH47: 0 | AI47: 0 | AJ47: 0 | AK47: 0 | AL47: 0 | AM47: 0 | AN47: 0 | AO47: 0 | AP47: 0 | AQ47: 0 | AR47: 0 | AS47: 0 | AT47: 0 | AU47: 0
B48: Actif non amortissable (terrain) incluant ses frais généraux | G48: 0 | H48: 0 | I48: 0 | J48: 0 | K48: 0 | L48: 0 | M48: 0 | N48: 0 | O48: 0 | P48: 0 | Q48: 0 | R48: 0 | S48: 0 | T48: 0 | U48: 0 | V48: 0 | W48: 0 | X48: 0 | Y48: 0 | Z48: 0 | AA48: 0 | AB48: 0 | AC48: 0 | AD48: 0 | AE48: 0 | AF48: 0 | AG48: 0 | AH48: 0 | AI48: 0 | AJ48: 0 | AK48: 0 | AL48: 0 | AM48: 0 | AN48: 0 | AO48: 0 | AP48: 0 | AQ48: 0 | AR48: 0 | AS48: 0 | AT48: 0 | AU48: 0
B49: Frais Union des municipalités | G49: =$E$10*(G40+G44) -> 0 | H49: 0 | I49: 0 | J49: 0 | K49: 0 | L49: 0 | M49: 0 | N49: 0 | O49: 0 | P49: 0 | Q49: 0 | R49: 0 | S49: 0 | T49: 0 | U49: 0 | V49: 0 | W49: 0 | X49: 0 | Y49: 0 | Z49: 0 | AA49: 0 | AB49: 0 | AC49: 0 | AD49: 0 | AE49: 0 | AF49: 0 | AG49: 0 | AH49: 0 | AI49: 0 | AJ49: 0 | AK49: 0 | AL49: 0 | AM49: 0 | AN49: 0 | AO49: 0 | AP49: 0 | AQ49: 0 | AR49: 0 | AS49: 0 | AT49: 0 | AU49: 0
B50: Frais généraux | G50: =$E$11*G42+$E$11*SUM(G47,G49) -> 197,768 | H50: =$E$11*H42+$E$11*SUM(H47,H49) -> 0 | I50: 0 | J50: 0 | K50: 0 | L50: 0 | M50: 0 | N50: 0 | O50: 0 | P50: 0 | Q50: 0 | R50: 0 | S50: 0 | T50: 0 | U50: 0 | V50: 0 | W50: 0 | X50: 0 | Y50: 0 | Z50: 0 | AA50: 0 | AB50: 0 | AC50: 0 | AD50: 0 | AE50: 0 | AF50: 0 | AG50: 0 | AH50: 0 | AI50: 0 | AJ50: 0 | AK50: 0 | AL50: 0 | AM50: 0 | AN50: 0 | AO50: 0 | AP50: 0 | AQ50: 0 | AR50: 0 | AS50: 0 | AT50: 0 | AU50: 0
G51: =G42+SUM(G47:G50) -> 1,558,869 | H51: 0 | I51: 0 | J51: 0 | K51: 0 | L51: 0 | M51: 0 | N51: 0 | O51: 0 | P51: 0 | Q51: 0 | R51: 0 | S51: 0 | T51: 0 | U51: 0 | V51: 0 | W51: 0 | X51: 0 | Y51: 0 | Z51: 0 | AA51: 0 | AB51: 0 | AC51: 0 | AD51: 0 | AE51: 0 | AF51: 0 | AG51: 0 | AH51: 0 | AI51: 0 | AJ51: 0 | AK51: 0 | AL51: 0 | AM51: 0 | AN51: 0 | AO51: 0 | AP51: 0 | AQ51: 0 | AR51: 0 | AS51: 0 | AT51: 0 | AU51: 0
B53: PRC - 10 ans | H53: 0 | I53: 0 | J53: 0 | K53: 0 | L53: 0 | M53: 0 | N53: 0 | O53: 0 | P53: 0 | Q53: 0 | R53: 0 | S53: 0 | T53: 0 | U53: 0 | V53: 0 | W53: 0 | X53: 0 | Y53: 0 | Z53: 0 | AA53: 0 | AB53: 0 | AC53: 0 | AD53: 0 | AE53: 0 | AF53: 0 | AG53: 0 | AH53: 0 | AI53: 0 | AJ53: 0 | AK53: 0 | AL53: 0 | AM53: 0 | AN53: 0 | AO53: 0 | AP53: 0 | AQ53: 0 | AR53: 0 | AS53: 0 | AT53: 0 | AU53: 0
B54: Contributions raccordement réseau | D54: En moins … | G54: 0 | H54: 0 | I54: 0 | J54: 0 | K54: 0 | L54: 0 | M54: 0 | N54: 0 | O54: 0 | P54: 0 | Q54: 0 | R54: 0 | S54: 0 | T54: 0 | U54: 0 | V54: 0 | W54: 0 | X54: 0 | Y54: 0 | Z54: 0 | AA54: 0 | AB54: 0 | AC54: 0 | AD54: 0 | AE54: 0 | AF54: 0 | AG54: 0 | AH54: 0 | AI54: 0 | AJ54: 0 | AK54: 0 | AL54: 0 | AM54: 0 | AN54: 0 | AO54: 0 | AP54: 0 | AQ54: 0 | AR54: 0 | AS54: 0 | AT54: 0 | AU54: 0
B55: Subventions extérieures | D55: En moins … | G55: 0 | H55: 0 | I55: 0 | J55: 0 | K55: 0 | L55: 0 | M55: 0 | N55: 0 | O55: 0 | P55: 0 | Q55: 0 | R55: 0 | S55: 0 | T55: 0 | U55: 0 | V55: 0 | W55: 0 | X55: 0 | Y55: 0 | Z55: 0 | AA55: 0 | AB55: 0 | AC55: 0 | AD55: 0 | AE55: 0 | AF55: 0 | AG55: 0 | AH55: 0 | AI55: 0 | AJ55: 0 | AK55: 0 | AL55: 0 | AM55: 0 | AN55: 0 | AO55: 0 | AP55: 0 | AQ55: 0 | AR55: 0 | AS55: 0 | AT55: 0 | AU55: 0
B56: Contributions clients | D56: En moins … | G56: 0 | H56: 0 | I56: 0 | J56: 0 | K56: 0 | L56: 0 | M56: 0 | N56: 0 | O56: 0 | P56: 0 | Q56: 0 | R56: 0 | S56: 0 | T56: 0 | U56: 0 | V56: 0 | W56: 0 | X56: 0 | Y56: 0 | Z56: 0 | AA56: 0 | AB56: 0 | AC56: 0 | AD56: 0 | AE56: 0 | AF56: 0 | AG56: 0 | AH56: 0 | AI56: 0 | AJ56: 0 | AK56: 0 | AL56: 0 | AM56: 0 | AN56: 0 | AO56: 0 | AP56: 0 | AQ56: 0 | AR56: 0 | AS56: 0 | AT56: 0 | AU56: 0
B57: Total - Investissement | D57: =SUM(G57:AU57) -> 1,558,869 | G57: =SUM(G51:G56) -> 1,558,869 | H57: 0 | I57: 0 | J57: 0 | K57: 0 | L57: 0 | M57: 0 | N57: 0 | O57: 0 | P57: 0 | Q57: 0 | R57: 0 | S57: 0 | T57: 0 | U57: 0 | V57: 0 | W57: 0 | X57: 0 | Y57: 0 | Z57: 0 | AA57: 0 | AB57: 0 | AC57: 0 | AD57: 0 | AE57: 0 | AF57: 0 | AG57: 0 | AH57: 0 | AI57: 0 | AJ57: 0 | AK57: 0 | AL57: 0 | AM57: 0 | AN57: 0 | AO57: 0 | AP57: 0 | AQ57: 0 | AR57: 0 | AS57: 0 | AT57: 0 | AU57: 0
A59: 1.3 | B59: Coûts d'opération | H59: =$H$31 -> 2019 | I59: =H59+1 -> 2020 | J59: =I59+1 -> 2021 | K59: 2022 | L59: 2023 | M59: 2024 | N59: 2025 | O59: 2026 | P59: 2027 | Q59: 2028 | R59: 2029 | S59: 2030 | T59: 2031 | U59: 2032 | V59: 2033 | W59: 2034 | X59: 2035 | Y59: 2036 | Z59: 2037 | AA59: 2038 | AB59: 2039 | AC59: 2040 | AD59: 2041 | AE59: 2042 | AF59: 2043 | AG59: 2044 | AH59: 2045 | AI59: 2046 | AJ59: 2047 | AK59: 2048 | AL59: 2049 | AM59: 2050 | AN59: 2051 | AO59: 2052 | AP59: 2053 | AQ59: 2054 | AR59: 2055 | AS59: 2056 | AT59: 2057 | AU59: 2058
B61: Type de client | D61: CII
B62: Type de projet | D62: Extension
B63: Nombre de mètres de conduite | D63: 0
B65: Coûts d'opération statutaires selon la grille | H65: =IF(H$29=1,H$33*IF($D$61="Résidentiel",IF($D$62="Extension",$K$8,$K$9),IF($D$61="CII",IF($D$62="Extension",$K$11,$K$12),IF($D$62="Extension",$K$14,$K$15))),(H$33-G$33)*IF($D$61="Résidentiel",IF($D$62="Extension",$K$8,$K$9),IF($D$61="CII",IF($D$62="Extension",$K$11,$K$12),IF($D$62="Extension",$K$14,$K$15)))+G$33*IF($D$61="Résidentiel",IF($D$62="Extension",$L$8,$L$9),IF($D$61="CII",IF($D$62="Extension",$L$11,$L$12),IF($D$62="Extension",$L$14,$L$15))))+IF($D$62="Extension",$D$63*IF($D$61="Résidentiel",$M$8,IF($D$61="CII",$M$11,$M$14)),0) -> 0 | I65: =IF(I$29=1,I$33*IF($D$61="Résidentiel",IF($D$62="Extension",$K$8,$K$9),IF($D$61="CII",IF($D$62="Extension",$K$11,$K$12),IF($D$62="Extension",$K$14,$K$15))),(I$33-H$33)*IF($D$61="Résidentiel",IF($D$62="Extension",$K$8,$K$9),IF($D$61="CII",IF($D$62="Extension",$K$11,$K$12),IF($D$62="Extension",$K$14,$K$15)))+H$33*IF($D$61="Résidentiel",IF($D$62="Extension",$L$8,$L$9),IF($D$61="CII",IF($D$62="Extension",$L$11,$L$12),IF($D$62="Extension",$L$14,$L$15))))+IF($D$62="Extension",$D$63*IF($D$61="Résidentiel",$M$8,IF($D$61="CII",$M$11,$M$14)),0) -> 0 | J65: 0 | K65: 0 | L65: 0 | M65: 0 | N65: 0 | O65: 0 | P65: 0 | Q65: 0 | R65: 0 | S65: 0 | T65: 0 | U65: 0 | V65: 0 | W65: 0 | X65: 0 | Y65: 0 | Z65: 0 | AA65: 0 | AB65: 0 | AC65: 0 | AD65: 0 | AE65: 0 | AF65: 0 | AG65: 0 | AH65: 0 | AI65: 0 | AJ65: 0 | AK65: 0 | AL65: 0 | AM65: 0 | AN65: 0 | AO65: 0 | AP65: 0 | AQ65: 0 | AR65: 0 | AS65: 0 | AT65: 0 | AU65: 0
B66: Coûts d'opération spécifiques | H66: 3,500 | I66: =H66 -> 3,500 | J66: =I66 -> 3,500 | K66: 3,500 | L66: =K66 -> 3,500 | M66: =L66 -> 3,500 | N66: =M66 -> 3,500 | O66: =N66 -> 3,500 | P66: =O66 -> 3,500 | Q66: =P66 -> 3,500 | R66: =Q66 -> 3,500 | S66: =R66 -> 3,500 | T66: =S66 -> 3,500 | U66: =T66 -> 3,500 | V66: =U66 -> 3,500 | W66: =V66 -> 3,500 | X66: =W66 -> 3,500 | Y66: =X66 -> 3,500 | Z66: =Y66 -> 3,500 | AA66: =Z66 -> 3,500 | AB66: =AA66 -> 3,500 | AC66: =AB66 -> 3,500 | AD66: =AC66 -> 3,500 | AE66: =AD66 -> 3,500 | AF66: =AE66 -> 3,500 | AG66: =AF66 -> 3,500 | AH66: =AG66 -> 3,500 | AI66: =AH66 -> 3,500 | AJ66: =AI66 -> 3,500 | AK66: =AJ66 -> 3,500 | AL66: =AK66 -> 3,500 | AM66: =AL66 -> 3,500 | AN66: =AM66 -> 3,500 | AO66: =AN66 -> 3,500 | AP66: =AO66 -> 3,500 | AQ66: =AP66 -> 3,500 | AR66: =AQ66 -> 3,500 | AS66: =AR66 -> 3,500 | AT66: =AS66 -> 3,500 | AU66: =AT66 -> 3,500
B67: Total - Coûts d'opération | H67: =SUM(H65:H66) -> 3,500 | I67: 3,500 | J67: 3,500 | K67: 3,500 | L67: 3,500 | M67: 3,500 | N67: 3,500 | O67: 3,500 | P67: 3,500 | Q67: 3,500 | R67: 3,500 | S67: 3,500 | T67: 3,500 | U67: 3,500 | V67: 3,500 | W67: 3,500 | X67: 3,500 | Y67: 3,500 | Z67: 3,500 | AA67: 3,500 | AB67: 3,500 | AC67: 3,500 | AD67: 3,500 | AE67: 3,500 | AF67: 3,500 | AG67: 3,500 | AH67: 3,500 | AI67: 3,500 | AJ67: 3,500 | AK67: 3,500 | AL67: 3,500 | AM67: 3,500 | AN67: 3,500 | AO67: 3,500 | AP67: 3,500 | AQ67: 3,500 | AR67: 3,500 | AS67: 3,500 | AT67: 3,500 | AU67: 3,500
A70: Section 2 - Grille de calcul | G70: 0 | H70: 1 | I70: 2 | J70: 3 | K70: 4 | L70: 5 | M70: 6 | N70: 7 | O70: 8 | P70: 9 | Q70: 10 | R70: 11 | S70: 12 | T70: 13 | U70: 14 | V70: 15 | W70: 16 | X70: 17 | Y70: 18 | Z70: 19 | AA70: 20 | AB70: 21 | AC70: 22 | AD70: 23 | AE70: 24 | AF70: 25 | AG70: 26 | AH70: 27 | AI70: 28 | AJ70: 29 | AK70: 30 | AL70: 31 | AM70: 32 | AN70: 33 | AO70: 34 | AP70: 35 | AQ70: 36 | AR70: 37 | AS70: 38 | AT70: 39 | AU70: 40
A72: 2.1 | B72: Coût de service | H72: =$H$31 -> 2019 | I72: =H72+1 -> 2020 | J72: =I72+1 -> 2021 | K72: 2022 | L72: 2023 | M72: 2024 | N72: 2025 | O72: 2026 | P72: 2027 | Q72: 2028 | R72: 2029 | S72: 2030 | T72: 2031 | U72: 2032 | V72: 2033 | W72: 2034 | X72: 2035 | Y72: 2036 | Z72: 2037 | AA72: 2038 | AB72: 2039 | AC72: 2040 | AD72: 2041 | AE72: 2042 | AF72: 2043 | AG72: 2044 | AH72: 2045 | AI72: 2046 | AJ72: 2047 | AK72: 2048 | AL72: 2049 | AM72: 2050 | AN72: 2051 | AO72: 2052 | AP72: 2053 | AQ72: 2054 | AR72: 2055 | AS72: 2056 | AT72: 2057 | AU72: 2058
B74: Coûts d'opération | H74: =H67 -> 3,500 | I74: 3,500 | J74: 3,500 | K74: 3,500 | L74: 3,500 | M74: 3,500 | N74: 3,500 | O74: 3,500 | P74: 3,500 | Q74: 3,500 | R74: 3,500 | S74: 3,500 | T74: 3,500 | U74: 3,500 | V74: 3,500 | W74: 3,500 | X74: 3,500 | Y74: 3,500 | Z74: 3,500 | AA74: 3,500 | AB74: 3,500 | AC74: 3,500 | AD74: 3,500 | AE74: 3,500 | AF74: 3,500 | AG74: 3,500 | AH74: 3,500 | AI74: 3,500 | AJ74: 3,500 | AK74: 3,500 | AL74: 3,500 | AM74: 3,500 | AN74: 3,500 | AO74: 3,500 | AP74: 3,500 | AQ74: 3,500 | AR74: 3,500 | AS74: 3,500 | AT74: 3,500 | AU74: 3,500
B75: Taxe sur les services publics | H75: =$E$12*H116 -> 22,865 | I75: 22,348 | J75: 21,830 | K75: 21,312 | L75: 20,794 | M75: 20,277 | N75: 19,759 | O75: 19,241 | P75: 18,723 | Q75: 18,206 | R75: 17,688 | S75: 17,170 | T75: 16,652 | U75: 16,135 | V75: 15,617 | W75: 15,099 | X75: 14,581 | Y75: 14,064 | Z75: 13,546 | AA75: 13,028 | AB75: 12,510 | AC75: 11,993 | AD75: 11,475 | AE75: 10,957 | AF75: 10,439 | AG75: 9,922 | AH75: 9,404 | AI75: 8,886 | AJ75: 8,368 | AK75: 7,851 | AL75: 7,333 | AM75: 6,815 | AN75: 6,297 | AO75: 5,780 | AP75: 5,262 | AQ75: 4,744 | AR75: 4,226 | AS75: 3,709 | AT75: 3,191 | AU75: 2,673
B76: Redevances | H76: =($E$13+$E$14)*H34/1000 -> 0 | I76: 0 | J76: 0 | K76: 0 | L76: 0 | M76: 0 | N76: 0 | O76: 0 | P76: 0 | Q76: 0 | R76: 0 | S76: 0 | T76: 0 | U76: 0 | V76: 0 | W76: 0 | X76: 0 | Y76: 0 | Z76: 0 | AA76: 0 | AB76: 0 | AC76: 0 | AD76: 0 | AE76: 0 | AF76: 0 | AG76: 0 | AH76: 0 | AI76: 0 | AJ76: 0 | AK76: 0 | AL76: 0 | AM76: 0 | AN76: 0 | AO76: 0 | AP76: 0 | AQ76: 0 | AR76: 0 | AS76: 0 | AT76: 0 | AU76: 0
B77: Amortissement des immobilisations | H77: =-H113 -> 34,516 | I77: =-I113 -> 34,516 | J77: 34,516 | K77: 34,516 | L77: 34,516 | M77: 34,516 | N77: 34,516 | O77: 34,516 | P77: 34,516 | Q77: 34,516 | R77: 34,516 | S77: 34,516 | T77: 34,516 | U77: 34,516 | V77: 34,516 | W77: 34,516 | X77: 34,516 | Y77: 34,516 | Z77: 34,516 | AA77: 34,516 | AB77: 34,516 | AC77: 34,516 | AD77: 34,516 | AE77: 34,516 | AF77: 34,516 | AG77: 34,516 | AH77: 34,516 | AI77: 34,516 | AJ77: 34,516 | AK77: 34,516 | AL77: 34,516 | AM77: 34,516 | AN77: 34,516 | AO77: 34,516 | AP77: 34,516 | AQ77: 34,516 | AR77: 34,516 | AS77: 34,516 | AT77: 34,516 | AU77: 34,516
B78: Impôts | H78: =H137 -> 17,033 | I78: =I137 -> 512 | J78: 1,998 | K78: 3,364 | L78: 4,623 | M78: 5,777 | N78: 6,834 | O78: 7,798 | P78: 8,676 | Q78: 9,473 | R78: 10,194 | S78: 10,843 | T78: 11,424 | U78: 11,942 | V78: 12,400 | W78: 12,803 | X78: 13,152 | Y78: 13,452 | Z78: 13,706 | AA78: 13,915 | AB78: 14,084 | AC78: 14,214 | AD78: 14,307 | AE78: 14,367 | AF78: 14,394 | AG78: 14,391 | AH78: 14,360 | AI78: 14,302 | AJ78: 14,219 | AK78: 14,113 | AL78: 13,984 | AM78: 13,834 | AN78: 13,665 | AO78: 13,478 | AP78: 13,273 | AQ78: 13,052 | AR78: 12,815 | AS78: 12,565 | AT78: 12,300 | AU78: 12,023
B79: Rendement | H79: =$E$24*H89 -> 83,709 | I79: 81,835 | J79: 79,961 | K79: 78,087 | L79: 76,212 | M79: 74,338 | N79: 72,464 | O79: 70,590 | P79: 68,716 | Q79: 66,841 | R79: 64,967 | S79: 63,093 | T79: 61,219 | U79: 59,344 | V79: 57,470 | W79: 55,596 | X79: 53,722 | Y79: 51,847 | Z79: 49,973 | AA79: 48,099 | AB79: 46,225 | AC79: 44,350 | AD79: 42,476 | AE79: 40,602 | AF79: 38,728 | AG79: 36,853 | AH79: 34,979 | AI79: 33,105 | AJ79: 31,231 | AK79: 29,356 | AL79: 27,482 | AM79: 25,608 | AN79: 23,734 | AO79: 21,859 | AP79: 19,985 | AQ79: 18,111 | AR79: 16,237 | AS79: 14,362 | AT79: 12,488 | AU79: 10,614
B80: Total - Coût de service | H80: =SUM(H74:H79) -> 161,624 | I80: 142,711 | J80: 141,806 | K80: 140,780 | L80: 139,646 | M80: 138,408 | N80: 137,073 | O80: 135,646 | P80: 134,132 | Q80: 132,537 | R80: 130,865 | S80: 129,122 | T80: 127,311 | U80: 125,437 | V80: 123,504 | W80: 121,514 | X80: 119,471 | Y80: 117,379 | Z80: 115,241 | AA80: 113,059 | AB80: 110,835 | AC80: 108,573 | AD80: 106,275 | AE80: 103,942 | AF80: 101,578 | AG80: 99,183 | AH80: 96,759 | AI80: 94,310 | AJ80: 91,835 | AK80: 89,336 | AL80: 86,815 | AM80: 84,274 | AN80: 81,713 | AO80: 79,133 | AP80: 76,536 | AQ80: 73,923 | AR80: 71,295 | AS80: 68,652 | AT80: 65,996 | AU80: 63,327
A82: 2.2 | B82: Base de tarification | H82: =$H$31 -> 2019 | I82: =H82+1 -> 2020 | J82: =I82+1 -> 2021 | K82: 2022 | L82: 2023 | M82: 2024 | N82: 2025 | O82: 2026 | P82: 2027 | Q82: 2028 | R82: 2029 | S82: 2030 | T82: 2031 | U82: 2032 | V82: 2033 | W82: 2034 | X82: 2035 | Y82: 2036 | Z82: 2037 | AA82: 2038 | AB82: 2039 | AC82: 2040 | AD82: 2041 | AE82: 2042 | AF82: 2043 | AG82: 2044 | AH82: 2045 | AI82: 2046 | AJ82: 2047 | AK82: 2048 | AL82: 2049 | AM82: 2050 | AN82: 2051 | AO82: 2052 | AP82: 2053 | AQ82: 2054 | AR82: 2055 | AS82: 2056 | AT82: 2057 | AU82: 2058
B84: Diminution de l'équité réglementaire | H84: =-$E$23*H113/2-$E$23*H107*9/13 -> 7,939 | I84: =-$E$23*H$108+$E$23*H107*9/13-$E$23*H113/2-$E$23*I113/2-$E$23*I107*9/13 -> 15,878 | J84: 15,878 | K84: 15,878 | L84: 15,878 | M84: 15,878 | N84: 15,878 | O84: 15,878 | P84: 15,878 | Q84: 15,878 | R84: 15,878 | S84: 15,878 | T84: 15,878 | U84: 15,878 | V84: 15,878 | W84: 15,878 | X84: 15,878 | Y84: 15,878 | Z84: 15,878 | AA84: 15,878 | AB84: 15,878 | AC84: 15,878 | AD84: 15,878 | AE84: 15,878 | AF84: 15,878 | AG84: 15,878 | AH84: 15,878 | AI84: 15,878 | AJ84: 15,878 | AK84: 15,878 | AL84: 15,878 | AM84: 15,878 | AN84: 15,878 | AO84: 15,878 | AP84: 15,878 | AQ84: 15,878 | AR84: 15,878 | AS84: 15,878 | AT84: 15,878 | AU84: 15,878
B85: Remboursement de la dette réglementaire | H85: =-$E$22*H113/2-$E$22*H107*9/13 -> 9,319 | I85: =-$E$22*H$108+$E$22*H107*9/13-$E$22*H113/2-$E$22*I113/2-$E$22*I107*9/13 -> 18,639 | J85: 18,639 | K85: 18,639 | L85: 18,639 | M85: 18,639 | N85: 18,639 | O85: 18,639 | P85: 18,639 | Q85: 18,639 | R85: 18,639 | S85: 18,639 | T85: 18,639 | U85: 18,639 | V85: 18,639 | W85: 18,639 | X85: 18,639 | Y85: 18,639 | Z85: 18,639 | AA85: 18,639 | AB85: 18,639 | AC85: 18,639 | AD85: 18,639 | AE85: 18,639 | AF85: 18,639 | AG85: 18,639 | AH85: 18,639 | AI85: 18,639 | AJ85: 18,639 | AK85: 18,639 | AL85: 18,639 | AM85: 18,639 | AN85: 18,639 | AO85: 18,639 | AP85: 18,639 | AQ85: 18,639 | AR85: 18,639 | AS85: 18,639 | AT85: 18,639 | AU85: 18,639
B87: Équité | G87: =($G$108)*$E$23 -> 717,080 | H87: =G87-H84 -> 709,141 | I87: =H87-I84 -> 693,263 | J87: =I87-J84 -> 677,386 | K87: 661,508 | L87: 645,631 | M87: 629,753 | N87: 613,875 | O87: 597,998 | P87: 582,120 | Q87: 566,243 | R87: 550,365 | S87: 534,488 | T87: 518,610 | U87: 502,732 | V87: 486,855 | W87: 470,977 | X87: 455,100 | Y87: 439,222 | Z87: 423,345 | AA87: 407,467 | AB87: 391,589 | AC87: 375,712 | AD87: 359,834 | AE87: 343,957 | AF87: 328,079 | AG87: 312,201 | AH87: 296,324 | AI87: 280,446 | AJ87: 264,569 | AK87: 248,691 | AL87: 232,814 | AM87: 216,936 | AN87: 201,058 | AO87: 185,181 | AP87: 169,303 | AQ87: 153,426 | AR87: 137,548 | AS87: 121,671 | AT87: 105,793 | AU87: 89,915
B88: Dette | G88: =($G$108)*$E$22 -> 841,789 | H88: =G88-H85 -> 832,470 | I88: 813,831 | J88: 795,192 | K88: 776,553 | L88: 757,914 | M88: 739,275 | N88: 720,636 | O88: 701,998 | P88: 683,359 | Q88: 664,720 | R88: 646,081 | S88: 627,442 | T88: 608,803 | U88: 590,164 | V88: 571,525 | W88: 552,886 | X88: 534,247 | Y88: 515,609 | Z88: 496,970 | AA88: 478,331 | AB88: 459,692 | AC88: 441,053 | AD88: 422,414 | AE88: 403,775 | AF88: 385,136 | AG88: 366,497 | AH88: 347,858 | AI88: 329,220 | AJ88: 310,581 | AK88: 291,942 | AL88: 273,303 | AM88: 254,664 | AN88: 236,025 | AO88: 217,386 | AP88: 198,747 | AQ88: 180,108 | AR88: 161,469 | AS88: 142,831 | AT88: 124,192 | AU88: 105,553
B89: Total - Base de tarification moyenne | G89: =G87+G88 -> 1,558,869 | H89: =H87+H88 -> 1,541,611 | I89: =I87+I88 -> 1,507,094 | J89: =J87+J88 -> 1,472,578 | K89: 1,438,061 | L89: 1,403,545 | M89: 1,369,028 | N89: 1,334,512 | O89: 1,299,995 | P89: 1,265,479 | Q89: 1,230,962 | R89: 1,196,446 | S89: 1,161,929 | T89: 1,127,413 | U89: 1,092,897 | V89: 1,058,380 | W89: 1,023,864 | X89: 989,347 | Y89: 954,831 | Z89: 920,314 | AA89: 885,798 | AB89: 851,281 | AC89: 816,765 | AD89: 782,248 | AE89: 747,732 | AF89: 713,215 | AG89: 678,699 | AH89: 644,182 | AI89: 609,666 | AJ89: 575,149 | AK89: 540,633 | AL89: 506,116 | AM89: 471,600 | AN89: 437,083 | AO89: 402,567 | AP89: 368,051 | AQ89: 333,534 | AR89: 299,018 | AS89: 264,501 | AT89: 229,985 | AU89: 195,468
A91: 2.3 | B91: Amortissement comptable et fiscal | G91: =H91-1 -> 2018 | H91: =$H$31 -> 2019 | I91: =H91+1 -> 2020 | J91: =I91+1 -> 2021 | K91: 2022 | L91: 2023 | M91: 2024 | N91: 2025 | O91: 2026 | P91: 2027 | Q91: 2028 | R91: 2029 | S91: 2030 | T91: 2031 | U91: 2032 | V91: 2033 | W91: 2034 | X91: 2035 | Y91: 2036 | Z91: 2037 | AA91: 2038 | AB91: 2039 | AC91: 2040 | AD91: 2041 | AE91: 2042 | AF91: 2043 | AG91: 2044 | AH91: 2045 | AI91: 2046 | AJ91: 2047 | AK91: 2048 | AL91: 2049 | AM91: 2050 | AN91: 2051 | AO91: 2052 | AP91: 2053 | AQ91: 2054 | AR91: 2055 | AS91: 2056 | AT91: 2057 | AU91: 2058
B93: Additions après répartition des frais UMQ, des frais généraux et des contributions/subventions
B95: Répartition UMQ - Conduite | G95: =IFERROR(G40/(G40+G44),0) -> 100.0% | H95: 0.0% | I95: 0.0% | J95: 0.0% | K95: 0.0% | L95: 0.0% | M95: 0.0% | N95: 0.0% | O95: 0.0% | P95: 0.0% | Q95: 0.0% | R95: 0.0% | S95: 0.0% | T95: 0.0% | U95: 0.0% | V95: 0.0% | W95: 0.0% | X95: 0.0% | Y95: 0.0% | Z95: 0.0% | AA95: 0.0% | AB95: 0.0% | AC95: 0.0% | AD95: 0.0% | AE95: 0.0% | AF95: 0.0% | AG95: 0.0% | AH95: 0.0% | AI95: 0.0% | AJ95: 0.0% | AK95: 0.0% | AL95: 0.0% | AM95: 0.0% | AN95: 0.0% | AO95: 0.0% | AP95: 0.0% | AQ95: 0.0% | AR95: 0.0% | AS95: 0.0% | AT95: 0.0% | AU95: 0.0%
B96: Répartition UMQ - Branchement | G96: =IFERROR(G44/(G40+G44),0) -> 0.0% | H96: 0.0% | I96: 0.0% | J96: 0.0% | K96: 0.0% | L96: 0.0% | M96: 0.0% | N96: 0.0% | O96: 0.0% | P96: 0.0% | Q96: 0.0% | R96: 0.0% | S96: 0.0% | T96: 0.0% | U96: 0.0% | V96: 0.0% | W96: 0.0% | X96: 0.0% | Y96: 0.0% | Z96: 0.0% | AA96: 0.0% | AB96: 0.0% | AC96: 0.0% | AD96: 0.0% | AE96: 0.0% | AF96: 0.0% | AG96: 0.0% | AH96: 0.0% | AI96: 0.0% | AJ96: 0.0% | AK96: 0.0% | AL96: 0.0% | AM96: 0.0% | AN96: 0.0% | AO96: 0.0% | AP96: 0.0% | AQ96: 0.0% | AR96: 0.0% | AS96: 0.0% | AT96: 0.0% | AU96: 0.0%
B98: Répartition Fais généraux - Conduite | G98: =IFERROR((G40+G41+G49*G95)/(G40+G41+G44+G45+G46+G49),0) -> 100.0% | H98: =IFERROR((H40+H41+H49*H95)/(H40+H41+H44+H45+H46+H49),0) -> 0.0% | I98: 0.0% | J98: 0.0% | K98: 0.0% | L98: 0.0% | M98: 0.0% | N98: 0.0% | O98: 0.0% | P98: 0.0% | Q98: 0.0% | R98: 0.0% | S98: 0.0% | T98: 0.0% | U98: 0.0% | V98: 0.0% | W98: 0.0% | X98: 0.0% | Y98: 0.0% | Z98: 0.0% | AA98: 0.0% | AB98: 0.0% | AC98: 0.0% | AD98: 0.0% | AE98: 0.0% | AF98: 0.0% | AG98: 0.0% | AH98: 0.0% | AI98: 0.0% | AJ98: 0.0% | AK98: 0.0% | AL98: 0.0% | AM98: 0.0% | AN98: 0.0% | AO98: 0.0% | AP98: 0.0% | AQ98: 0.0% | AR98: 0.0% | AS98: 0.0% | AT98: 0.0% | AU98: 0.0%
B99: Répartition Fais généraux - Branchement | G99: =IFERROR((G44+G45+G46+G49*G96)/(G40+G41+G44+G45+G46+G49),0) -> 0.0% | H99: =IFERROR((H44+H45+H46+H49*H96)/(H40+H41+H44+H45+H46+H49),0) -> 0.0% | I99: 0.0% | J99: 0.0% | K99: 0.0% | L99: 0.0% | M99: 0.0% | N99: 0.0% | O99: 0.0% | P99: 0.0% | Q99: 0.0% | R99: 0.0% | S99: 0.0% | T99: 0.0% | U99: 0.0% | V99: 0.0% | W99: 0.0% | X99: 0.0% | Y99: 0.0% | Z99: 0.0% | AA99: 0.0% | AB99: 0.0% | AC99: 0.0% | AD99: 0.0% | AE99: 0.0% | AF99: 0.0% | AG99: 0.0% | AH99: 0.0% | AI99: 0.0% | AJ99: 0.0% | AK99: 0.0% | AL99: 0.0% | AM99: 0.0% | AN99: 0.0% | AO99: 0.0% | AP99: 0.0% | AQ99: 0.0% | AR99: 0.0% | AS99: 0.0% | AT99: 0.0% | AU99: 0.0%
B101: Répartition Contributions/subventions - Conduite | G101: =IFERROR((SUM($G$42:$AU$42)+SUMPRODUCT($G$98:$AU$98,$G$50:$AU$50))/(SUM($G$42:$AU$42)+SUM($G$47:$AU$47)+SUM($G$50:$AU$50)),0) -> 100.00% | H101: 100.0% | I101: 100.0% | J101: 100.0% | K101: 100.0% | L101: 100.0% | M101: 100.0% | N101: 100.0% | O101: 100.0% | P101: 100.0% | Q101: 100.0% | R101: 100.0% | S101: 100.0% | T101: 100.0% | U101: 100.0% | V101: 100.0% | W101: 100.0% | X101: 100.0% | Y101: 100.0% | Z101: 100.0% | AA101: 100.0% | AB101: 100.0% | AC101: 100.0% | AD101: 100.0% | AE101: 100.0% | AF101: 100.0% | AG101: 100.0% | AH101: 100.0% | AI101: 100.0% | AJ101: 100.0% | AK101: 100.0% | AL101: 100.0% | AM101: 100.0% | AN101: 100.0% | AO101: 100.0% | AP101: 100.0% | AQ101: 100.0% | AR101: 100.0% | AS101: 100.0% | AT101: 100.0% | AU101: 100.0%
B102: Répartition Contributions/subventions - Branchement | G102: =IFERROR((SUM($G$47:$AU$47)+SUMPRODUCT($G$99:$AU$99,$G$50:$AU$50))/(SUM($G$42:$AU$42)+SUM($G$47:$AU$47)+SUM($G$50:$AU$50)),0) -> 0.00% | H102: 0.0% | I102: 0.0% | J102: 0.0% | K102: 0.0% | L102: 0.0% | M102: 0.0% | N102: 0.0% | O102: 0.0% | P102: 0.0% | Q102: 0.0% | R102: 0.0% | S102: 0.0% | T102: 0.0% | U102: 0.0% | V102: 0.0% | W102: 0.0% | X102: 0.0% | Y102: 0.0% | Z102: 0.0% | AA102: 0.0% | AB102: 0.0% | AC102: 0.0% | AD102: 0.0% | AE102: 0.0% | AF102: 0.0% | AG102: 0.0% | AH102: 0.0% | AI102: 0.0% | AJ102: 0.0% | AK102: 0.0% | AL102: 0.0% | AM102: 0.0% | AN102: 0.0% | AO102: 0.0% | AP102: 0.0% | AQ102: 0.0% | AR102: 0.0% | AS102: 0.0% | AT102: 0.0% | AU102: 0.0%
E103: Total
B104: =B42 -> Frais de conduites - Total | E104: =SUM(G104:AU104) -> 1,558,869 | G104: =G42+G$95*G$49+G$98*G$50+G$101*(G$55+G$56) -> 1,558,869 | H104: 0 | I104: 0 | J104: 0 | K104: 0 | L104: 0 | M104: 0 | N104: 0 | O104: 0 | P104: 0 | Q104: 0 | R104: 0 | S104: 0 | T104: 0 | U104: 0 | V104: 0 | W104: 0 | X104: 0 | Y104: 0 | Z104: 0 | AA104: 0 | AB104: 0 | AC104: 0 | AD104: 0 | AE104: 0 | AF104: 0 | AG104: 0 | AH104: 0 | AI104: 0 | AJ104: 0 | AK104: 0 | AL104: 0 | AM104: 0 | AN104: 0 | AO104: 0 | AP104: 0 | AQ104: 0 | AR104: 0 | AS104: 0 | AT104: 0 | AU104: 0
B105: =B47 -> Frais de branchements - Total | E105: =SUM(G105:AU105) -> 0 | G105: =G47+G$96*G$49+G$99*G$50+G$102*(G$55+G$56)+G$54 -> 0 | H105: 0 | I105: 0 | J105: 0 | K105: 0 | L105: 0 | M105: 0 | N105: 0 | O105: 0 | P105: 0 | Q105: 0 | R105: 0 | S105: 0 | T105: 0 | U105: 0 | V105: 0 | W105: 0 | X105: 0 | Y105: 0 | Z105: 0 | AA105: 0 | AB105: 0 | AC105: 0 | AD105: 0 | AE105: 0 | AF105: 0 | AG105: 0 | AH105: 0 | AI105: 0 | AJ105: 0 | AK105: 0 | AL105: 0 | AM105: 0 | AN105: 0 | AO105: 0 | AP105: 0 | AQ105: 0 | AR105: 0 | AS105: 0 | AT105: 0 | AU105: 0
B106: Actif non amortissable (terrain) | E106: =SUM(G106:AU106) -> 0 | G106: =G48 -> 0 | H106: =H48 -> 0 | I106: 0 | J106: 0 | K106: 0 | L106: 0 | M106: 0 | N106: 0 | O106: 0 | P106: 0 | Q106: 0 | R106: 0 | S106: 0 | T106: 0 | U106: 0 | V106: 0 | W106: 0 | X106: 0 | Y106: 0 | Z106: 0 | AA106: 0 | AB106: 0 | AC106: 0 | AD106: 0 | AE106: 0 | AF106: 0 | AG106: 0 | AH106: 0 | AI106: 0 | AJ106: 0 | AK106: 0 | AL106: 0 | AM106: 0 | AN106: 0 | AO106: 0 | AP106: 0 | AQ106: 0 | AR106: 0 | AS106: 0 | AT106: 0 | AU106: 0
B107: PRC - 10 ans | E107: =SUM(G107:AU107) -> 0 | H107: =H53 -> 0 | I107: 0 | J107: 0 | K107: 0 | L107: 0 | M107: 0 | N107: 0 | O107: 0 | P107: 0 | Q107: 0 | R107: 0 | S107: 0 | T107: 0 | U107: 0 | V107: 0 | W107: 0 | X107: 0 | Y107: 0 | Z107: 0 | AA107: 0 | AB107: 0 | AC107: 0 | AD107: 0 | AE107: 0 | AF107: 0 | AG107: 0 | AH107: 0 | AI107: 0 | AJ107: 0 | AK107: 0 | AL107: 0 | AM107: 0 | AN107: 0 | AO107: 0 | AP107: 0 | AQ107: 0 | AR107: 0 | AS107: 0 | AT107: 0 | AU107: 0
E108: =SUM(G108:AU108) -> 1,558,869 | G108: =SUM(G104:G107) -> 1,558,869 | H108: 0 | I108: 0 | J108: 0 | K108: 0 | L108: 0 | M108: 0 | N108: 0 | O108: 0 | P108: 0 | Q108: 0 | R108: 0 | S108: 0 | T108: 0 | U108: 0 | V108: 0 | W108: 0 | X108: 0 | Y108: 0 | Z108: 0 | AA108: 0 | AB108: 0 | AC108: 0 | AD108: 0 | AE108: 0 | AF108: 0 | AG108: 0 | AH108: 0 | AI108: 0 | AJ108: 0 | AK108: 0 | AL108: 0 | AM108: 0 | AN108: 0 | AO108: 0 | AP108: 0 | AQ108: 0 | AR108: 0 | AS108: 0 | AT108: 0 | AU108: 0
B109: Amortissement comptable
B110: ="Amort. - "&B42 -> Amort. - Frais de conduites - Total | E110: =$E$6 -> 45.2 ans | H110: =-SUM(OFFSET(G104,0,-MIN(H$70-1,ROUNDDOWN($E110-1,0))):G104)/$E110-IF(H$70>$E110,(OFFSET(G104,0,-ROUNDUP($E110-1,0))-(ROUNDDOWN($E110,0)*(OFFSET(G104,0,-ROUNDUP($E110-1,0))/$E110))),0) -> -34,516 | I110: =-SUM(OFFSET(H104,0,-MIN(I$70-1,ROUNDDOWN($E110-1,0))):H104)/$E110-IF(I$70>$E110,(OFFSET(H104,0,-ROUNDUP($E110-1,0))-(ROUNDDOWN($E110,0)*(OFFSET(H104,0,-ROUNDUP($E110-1,0))/$E110))),0) -> -34,516 | J110: =-SUM(OFFSET(I104,0,-MIN(J$70-1,ROUNDDOWN($E110-1,0))):I104)/$E110-IF(J$70>$E110,(OFFSET(I104,0,-ROUNDUP($E110-1,0))-(ROUNDDOWN($E110,0)*(OFFSET(I104,0,-ROUNDUP($E110-1,0))/$E110))),0) -> -34,516 | K110: =-SUM(OFFSET(J104,0,-MIN(K$70-1,ROUNDDOWN($E110-1,0))):J104)/$E110-IF(K$70>$E110,(OFFSET(J104,0,-ROUNDUP($E110-1,0))-(ROUNDDOWN($E110,0)*(OFFSET(J104,0,-ROUNDUP($E110-1,0))/$E110))),0) -> -34,516 | L110: =-SUM(OFFSET(K104,0,-MIN(L$70-1,ROUNDDOWN($E110-1,0))):K104)/$E110-IF(L$70>$E110,(OFFSET(K104,0,-ROUNDUP($E110-1,0))-(ROUNDDOWN($E110,0)*(OFFSET(K104,0,-ROUNDUP($E110-1,0))/$E110))),0) -> -34,516 | M110: =-SUM(OFFSET(L104,0,-MIN(M$70-1,ROUNDDOWN($E110-1,0))):L104)/$E110-IF(M$70>$E110,(OFFSET(L104,0,-ROUNDUP($E110-1,0))-(ROUNDDOWN($E110,0)*(OFFSET(L104,0,-ROUNDUP($E110-1,0))/$E110))),0) -> -34,516 | N110: =-SUM(OFFSET(M104,0,-MIN(N$70-1,ROUNDDOWN($E110-1,0))):M104)/$E110-IF(N$70>$E110,(OFFSET(M104,0,-ROUNDUP($E110-1,0))-(ROUNDDOWN($E110,0)*(OFFSET(M104,0,-ROUNDUP($E110-1,0))/$E110))),0) -> -34,516 | O110: =-SUM(OFFSET(N104,0,-MIN(O$70-1,ROUNDDOWN($E110-1,0))):N104)/$E110-IF(O$70>$E110,(OFFSET(N104,0,-ROUNDUP($E110-1,0))-(ROUNDDOWN($E110,0)*(OFFSET(N104,0,-ROUNDUP($E110-1,0))/$E110))),0) -> -34,516 | P110: =-SUM(OFFSET(O104,0,-MIN(P$70-1,ROUNDDOWN($E110-1,0))):O104)/$E110-IF(P$70>$E110,(OFFSET(O104,0,-ROUNDUP($E110-1,0))-(ROUNDDOWN($E110,0)*(OFFSET(O104,0,-ROUNDUP($E110-1,0))/$E110))),0) -> -34,516 | Q110: =-SUM(OFFSET(P104,0,-MIN(Q$70-1,ROUNDDOWN($E110-1,0))):P104)/$E110-IF(Q$70>$E110,(OFFSET(P104,0,-ROUNDUP($E110-1,0))-(ROUNDDOWN($E110,0)*(OFFSET(P104,0,-ROUNDUP($E110-1,0))/$E110))),0) -> -34,516 | R110: =-SUM(OFFSET(Q104,0,-MIN(R$70-1,ROUNDDOWN($E110-1,0))):Q104)/$E110-IF(R$70>$E110,(OFFSET(Q104,0,-ROUNDUP($E110-1,0))-(ROUNDDOWN($E110,0)*(OFFSET(Q104,0,-ROUNDUP($E110-1,0))/$E110))),0) -> -34,516 | S110: =-SUM(OFFSET(R104,0,-MIN(S$70-1,ROUNDDOWN($E110-1,0))):R104)/$E110-IF(S$70>$E110,(OFFSET(R104,0,-ROUNDUP($E110-1,0))-(ROUNDDOWN($E110,0)*(OFFSET(R104,0,-ROUNDUP($E110-1,0))/$E110))),0) -> -34,516 | T110: =-SUM(OFFSET(S104,0,-MIN(T$70-1,ROUNDDOWN($E110-1,0))):S104)/$E110-IF(T$70>$E110,(OFFSET(S104,0,-ROUNDUP($E110-1,0))-(ROUNDDOWN($E110,0)*(OFFSET(S104,0,-ROUNDUP($E110-1,0))/$E110))),0) -> -34,516 | U110: =-SUM(OFFSET(T104,0,-MIN(U$70-1,ROUNDDOWN($E110-1,0))):T104)/$E110-IF(U$70>$E110,(OFFSET(T104,0,-ROUNDUP($E110-1,0))-(ROUNDDOWN($E110,0)*(OFFSET(T104,0,-ROUNDUP($E110-1,0))/$E110))),0) -> -34,516 | V110: =-SUM(OFFSET(U104,0,-MIN(V$70-1,ROUNDDOWN($E110-1,0))):U104)/$E110-IF(V$70>$E110,(OFFSET(U104,0,-ROUNDUP($E110-1,0))-(ROUNDDOWN($E110,0)*(OFFSET(U104,0,-ROUNDUP($E110-1,0))/$E110))),0) -> -34,516 | W110: =-SUM(OFFSET(V104,0,-MIN(W$70-1,ROUNDDOWN($E110-1,0))):V104)/$E110-IF(W$70>$E110,(OFFSET(V104,0,-ROUNDUP($E110-1,0))-(ROUNDDOWN($E110,0)*(OFFSET(V104,0,-ROUNDUP($E110-1,0))/$E110))),0) -> -34,516 | X110: =-SUM(OFFSET(W104,0,-MIN(X$70-1,ROUNDDOWN($E110-1,0))):W104)/$E110-IF(X$70>$E110,(OFFSET(W104,0,-ROUNDUP($E110-1,0))-(ROUNDDOWN($E110,0)*(OFFSET(W104,0,-ROUNDUP($E110-1,0))/$E110))),0) -> -34,516 | Y110: =-SUM(OFFSET(X104,0,-MIN(Y$70-1,ROUNDDOWN($E110-1,0))):X104)/$E110-IF(Y$70>$E110,(OFFSET(X104,0,-ROUNDUP($E110-1,0))-(ROUNDDOWN($E110,0)*(OFFSET(X104,0,-ROUNDUP($E110-1,0))/$E110))),0) -> -34,516 | Z110: =-SUM(OFFSET(Y104,0,-MIN(Z$70-1,ROUNDDOWN($E110-1,0))):Y104)/$E110-IF(Z$70>$E110,(OFFSET(Y104,0,-ROUNDUP($E110-1,0))-(ROUNDDOWN($E110,0)*(OFFSET(Y104,0,-ROUNDUP($E110-1,0))/$E110))),0) -> -34,516 | AA110: =-SUM(OFFSET(Z104,0,-MIN(AA$70-1,ROUNDDOWN($E110-1,0))):Z104)/$E110-IF(AA$70>$E110,(OFFSET(Z104,0,-ROUNDUP($E110-1,0))-(ROUNDDOWN($E110,0)*(OFFSET(Z104,0,-ROUNDUP($E110-1,0))/$E110))),0) -> -34,516 | AB110: =-SUM(OFFSET(AA104,0,-MIN(AB$70-1,ROUNDDOWN($E110-1,0))):AA104)/$E110-IF(AB$70>$E110,(OFFSET(AA104,0,-ROUNDUP($E110-1,0))-(ROUNDDOWN($E110,0)*(OFFSET(AA104,0,-ROUNDUP($E110-1,0))/$E110))),0) -> -34,516 | AC110: =-SUM(OFFSET(AB104,0,-MIN(AC$70-1,ROUNDDOWN($E110-1,0))):AB104)/$E110-IF(AC$70>$E110,(OFFSET(AB104,0,-ROUNDUP($E110-1,0))-(ROUNDDOWN($E110,0)*(OFFSET(AB104,0,-ROUNDUP($E110-1,0))/$E110))),0) -> -34,516 | AD110: =-SUM(OFFSET(AC104,0,-MIN(AD$70-1,ROUNDDOWN($E110-1,0))):AC104)/$E110-IF(AD$70>$E110,(OFFSET(AC104,0,-ROUNDUP($E110-1,0))-(ROUNDDOWN($E110,0)*(OFFSET(AC104,0,-ROUNDUP($E110-1,0))/$E110))),0) -> -34,516 | AE110: =-SUM(OFFSET(AD104,0,-MIN(AE$70-1,ROUNDDOWN($E110-1,0))):AD104)/$E110-IF(AE$70>$E110,(OFFSET(AD104,0,-ROUNDUP($E110-1,0))-(ROUNDDOWN($E110,0)*(OFFSET(AD104,0,-ROUNDUP($E110-1,0))/$E110))),0) -> -34,516 | AF110: =-SUM(OFFSET(AE104,0,-MIN(AF$70-1,ROUNDDOWN($E110-1,0))):AE104)/$E110-IF(AF$70>$E110,(OFFSET(AE104,0,-ROUNDUP($E110-1,0))-(ROUNDDOWN($E110,0)*(OFFSET(AE104,0,-ROUNDUP($E110-1,0))/$E110))),0) -> -34,516 | AG110: =-SUM(OFFSET(AF104,0,-MIN(AG$70-1,ROUNDDOWN($E110-1,0))):AF104)/$E110-IF(AG$70>$E110,(OFFSET(AF104,0,-ROUNDUP($E110-1,0))-(ROUNDDOWN($E110,0)*(OFFSET(AF104,0,-ROUNDUP($E110-1,0))/$E110))),0) -> -34,516 | AH110: =-SUM(OFFSET(AG104,0,-MIN(AH$70-1,ROUNDDOWN($E110-1,0))):AG104)/$E110-IF(AH$70>$E110,(OFFSET(AG104,0,-ROUNDUP($E110-1,0))-(ROUNDDOWN($E110,0)*(OFFSET(AG104,0,-ROUNDUP($E110-1,0))/$E110))),0) -> -34,516 | AI110: =-SUM(OFFSET(AH104,0,-MIN(AI$70-1,ROUNDDOWN($E110-1,0))):AH104)/$E110-IF(AI$70>$E110,(OFFSET(AH104,0,-ROUNDUP($E110-1,0))-(ROUNDDOWN($E110,0)*(OFFSET(AH104,0,-ROUNDUP($E110-1,0))/$E110))),0) -> -34,516 | AJ110: =-SUM(OFFSET(AI104,0,-MIN(AJ$70-1,ROUNDDOWN($E110-1,0))):AI104)/$E110-IF(AJ$70>$E110,(OFFSET(AI104,0,-ROUNDUP($E110-1,0))-(ROUNDDOWN($E110,0)*(OFFSET(AI104,0,-ROUNDUP($E110-1,0))/$E110))),0) -> -34,516 | AK110: =-SUM(OFFSET(AJ104,0,-MIN(AK$70-1,ROUNDDOWN($E110-1,0))):AJ104)/$E110-IF(AK$70>$E110,(OFFSET(AJ104,0,-ROUNDUP($E110-1,0))-(ROUNDDOWN($E110,0)*(OFFSET(AJ104,0,-ROUNDUP($E110-1,0))/$E110))),0) -> -34,516 | AL110: =-SUM(OFFSET(AK104,0,-MIN(AL$70-1,ROUNDDOWN($E110-1,0))):AK104)/$E110-IF(AL$70>$E110,(OFFSET(AK104,0,-ROUNDUP($E110-1,0))-(ROUNDDOWN($E110,0)*(OFFSET(AK104,0,-ROUNDUP($E110-1,0))/$E110))),0) -> -34,516 | AM110: =-SUM(OFFSET(AL104,0,-MIN(AM$70-1,ROUNDDOWN($E110-1,0))):AL104)/$E110-IF(AM$70>$E110,(OFFSET(AL104,0,-ROUNDUP($E110-1,0))-(ROUNDDOWN($E110,0)*(OFFSET(AL104,0,-ROUNDUP($E110-1,0))/$E110))),0) -> -34,516 | AN110: =-SUM(OFFSET(AM104,0,-MIN(AN$70-1,ROUNDDOWN($E110-1,0))):AM104)/$E110-IF(AN$70>$E110,(OFFSET(AM104,0,-ROUNDUP($E110-1,0))-(ROUNDDOWN($E110,0)*(OFFSET(AM104,0,-ROUNDUP($E110-1,0))/$E110))),0) -> -34,516 | AO110: =-SUM(OFFSET(AN104,0,-MIN(AO$70-1,ROUNDDOWN($E110-1,0))):AN104)/$E110-IF(AO$70>$E110,(OFFSET(AN104,0,-ROUNDUP($E110-1,0))-(ROUNDDOWN($E110,0)*(OFFSET(AN104,0,-ROUNDUP($E110-1,0))/$E110))),0) -> -34,516 | AP110: =-SUM(OFFSET(AO104,0,-MIN(AP$70-1,ROUNDDOWN($E110-1,0))):AO104)/$E110-IF(AP$70>$E110,(OFFSET(AO104,0,-ROUNDUP($E110-1,0))-(ROUNDDOWN($E110,0)*(OFFSET(AO104,0,-ROUNDUP($E110-1,0))/$E110))),0) -> -34,516 | AQ110: =-SUM(OFFSET(AP104,0,-MIN(AQ$70-1,ROUNDDOWN($E110-1,0))):AP104)/$E110-IF(AQ$70>$E110,(OFFSET(AP104,0,-ROUNDUP($E110-1,0))-(ROUNDDOWN($E110,0)*(OFFSET(AP104,0,-ROUNDUP($E110-1,0))/$E110))),0) -> -34,516 | AR110: =-SUM(OFFSET(AQ104,0,-MIN(AR$70-1,ROUNDDOWN($E110-1,0))):AQ104)/$E110-IF(AR$70>$E110,(OFFSET(AQ104,0,-ROUNDUP($E110-1,0))-(ROUNDDOWN($E110,0)*(OFFSET(AQ104,0,-ROUNDUP($E110-1,0))/$E110))),0) -> -34,516 | AS110: =-SUM(OFFSET(AR104,0,-MIN(AS$70-1,ROUNDDOWN($E110-1,0))):AR104)/$E110-IF(AS$70>$E110,(OFFSET(AR104,0,-ROUNDUP($E110-1,0))-(ROUNDDOWN($E110,0)*(OFFSET(AR104,0,-ROUNDUP($E110-1,0))/$E110))),0) -> -34,516 | AT110: =-SUM(OFFSET(AS104,0,-MIN(AT$70-1,ROUNDDOWN($E110-1,0))):AS104)/$E110-IF(AT$70>$E110,(OFFSET(AS104,0,-ROUNDUP($E110-1,0))-(ROUNDDOWN($E110,0)*(OFFSET(AS104,0,-ROUNDUP($E110-1,0))/$E110))),0) -> -34,516 | AU110: =-SUM(OFFSET(AT104,0,-MIN(AU$70-1,ROUNDDOWN($E110-1,0))):AT104)/$E110-IF(AU$70>$E110,(OFFSET(AT104,0,-ROUNDUP($E110-1,0))-(ROUNDDOWN($E110,0)*(OFFSET(AT104,0,-ROUNDUP($E110-1,0))/$E110))),0) -> -34,516
B111: ="Amort. - "&B47 -> Amort. - Frais de branchements - Total | E111: =$E$7 -> 21.0 ans | H111: =-SUM(OFFSET(G105,0,-MIN(H$70-1,ROUNDDOWN($E111-1,0))):G105)/$E111-IF(H$70>$E111,(OFFSET(G105,0,-ROUNDUP($E111-1,0))-(ROUNDDOWN($E111,0)*(OFFSET(G105,0,-ROUNDUP($E111-1,0))/$E111))),0) -> 0 | I111: =-SUM(OFFSET(H105,0,-MIN(I$70-1,ROUNDDOWN($E111-1,0))):H105)/$E111-IF(I$70>$E111,(OFFSET(H105,0,-ROUNDUP($E111-1,0))-(ROUNDDOWN($E111,0)*(OFFSET(H105,0,-ROUNDUP($E111-1,0))/$E111))),0) -> 0 | J111: =-SUM(OFFSET(I105,0,-MIN(J$70-1,ROUNDDOWN($E111-1,0))):I105)/$E111-IF(J$70>$E111,(OFFSET(I105,0,-ROUNDUP($E111-1,0))-(ROUNDDOWN($E111,0)*(OFFSET(I105,0,-ROUNDUP($E111-1,0))/$E111))),0) -> 0 | K111: =-SUM(OFFSET(J105,0,-MIN(K$70-1,ROUNDDOWN($E111-1,0))):J105)/$E111-IF(K$70>$E111,(OFFSET(J105,0,-ROUNDUP($E111-1,0))-(ROUNDDOWN($E111,0)*(OFFSET(J105,0,-ROUNDUP($E111-1,0))/$E111))),0) -> 0 | L111: =-SUM(OFFSET(K105,0,-MIN(L$70-1,ROUNDDOWN($E111-1,0))):K105)/$E111-IF(L$70>$E111,(OFFSET(K105,0,-ROUNDUP($E111-1,0))-(ROUNDDOWN($E111,0)*(OFFSET(K105,0,-ROUNDUP($E111-1,0))/$E111))),0) -> 0 | M111: =-SUM(OFFSET(L105,0,-MIN(M$70-1,ROUNDDOWN($E111-1,0))):L105)/$E111-IF(M$70>$E111,(OFFSET(L105,0,-ROUNDUP($E111-1,0))-(ROUNDDOWN($E111,0)*(OFFSET(L105,0,-ROUNDUP($E111-1,0))/$E111))),0) -> 0 | N111: =-SUM(OFFSET(M105,0,-MIN(N$70-1,ROUNDDOWN($E111-1,0))):M105)/$E111-IF(N$70>$E111,(OFFSET(M105,0,-ROUNDUP($E111-1,0))-(ROUNDDOWN($E111,0)*(OFFSET(M105,0,-ROUNDUP($E111-1,0))/$E111))),0) -> 0 | O111: =-SUM(OFFSET(N105,0,-MIN(O$70-1,ROUNDDOWN($E111-1,0))):N105)/$E111-IF(O$70>$E111,(OFFSET(N105,0,-ROUNDUP($E111-1,0))-(ROUNDDOWN($E111,0)*(OFFSET(N105,0,-ROUNDUP($E111-1,0))/$E111))),0) -> 0 | P111: =-SUM(OFFSET(O105,0,-MIN(P$70-1,ROUNDDOWN($E111-1,0))):O105)/$E111-IF(P$70>$E111,(OFFSET(O105,0,-ROUNDUP($E111-1,0))-(ROUNDDOWN($E111,0)*(OFFSET(O105,0,-ROUNDUP($E111-1,0))/$E111))),0) -> 0 | Q111: =-SUM(OFFSET(P105,0,-MIN(Q$70-1,ROUNDDOWN($E111-1,0))):P105)/$E111-IF(Q$70>$E111,(OFFSET(P105,0,-ROUNDUP($E111-1,0))-(ROUNDDOWN($E111,0)*(OFFSET(P105,0,-ROUNDUP($E111-1,0))/$E111))),0) -> 0 | R111: =-SUM(OFFSET(Q105,0,-MIN(R$70-1,ROUNDDOWN($E111-1,0))):Q105)/$E111-IF(R$70>$E111,(OFFSET(Q105,0,-ROUNDUP($E111-1,0))-(ROUNDDOWN($E111,0)*(OFFSET(Q105,0,-ROUNDUP($E111-1,0))/$E111))),0) -> 0 | S111: =-SUM(OFFSET(R105,0,-MIN(S$70-1,ROUNDDOWN($E111-1,0))):R105)/$E111-IF(S$70>$E111,(OFFSET(R105,0,-ROUNDUP($E111-1,0))-(ROUNDDOWN($E111,0)*(OFFSET(R105,0,-ROUNDUP($E111-1,0))/$E111))),0) -> 0 | T111: =-SUM(OFFSET(S105,0,-MIN(T$70-1,ROUNDDOWN($E111-1,0))):S105)/$E111-IF(T$70>$E111,(OFFSET(S105,0,-ROUNDUP($E111-1,0))-(ROUNDDOWN($E111,0)*(OFFSET(S105,0,-ROUNDUP($E111-1,0))/$E111))),0) -> 0 | U111: =-SUM(OFFSET(T105,0,-MIN(U$70-1,ROUNDDOWN($E111-1,0))):T105)/$E111-IF(U$70>$E111,(OFFSET(T105,0,-ROUNDUP($E111-1,0))-(ROUNDDOWN($E111,0)*(OFFSET(T105,0,-ROUNDUP($E111-1,0))/$E111))),0) -> 0 | V111: =-SUM(OFFSET(U105,0,-MIN(V$70-1,ROUNDDOWN($E111-1,0))):U105)/$E111-IF(V$70>$E111,(OFFSET(U105,0,-ROUNDUP($E111-1,0))-(ROUNDDOWN($E111,0)*(OFFSET(U105,0,-ROUNDUP($E111-1,0))/$E111))),0) -> 0 | W111: =-SUM(OFFSET(V105,0,-MIN(W$70-1,ROUNDDOWN($E111-1,0))):V105)/$E111-IF(W$70>$E111,(OFFSET(V105,0,-ROUNDUP($E111-1,0))-(ROUNDDOWN($E111,0)*(OFFSET(V105,0,-ROUNDUP($E111-1,0))/$E111))),0) -> 0 | X111: =-SUM(OFFSET(W105,0,-MIN(X$70-1,ROUNDDOWN($E111-1,0))):W105)/$E111-IF(X$70>$E111,(OFFSET(W105,0,-ROUNDUP($E111-1,0))-(ROUNDDOWN($E111,0)*(OFFSET(W105,0,-ROUNDUP($E111-1,0))/$E111))),0) -> 0 | Y111: =-SUM(OFFSET(X105,0,-MIN(Y$70-1,ROUNDDOWN($E111-1,0))):X105)/$E111-IF(Y$70>$E111,(OFFSET(X105,0,-ROUNDUP($E111-1,0))-(ROUNDDOWN($E111,0)*(OFFSET(X105,0,-ROUNDUP($E111-1,0))/$E111))),0) -> 0 | Z111: =-SUM(OFFSET(Y105,0,-MIN(Z$70-1,ROUNDDOWN($E111-1,0))):Y105)/$E111-IF(Z$70>$E111,(OFFSET(Y105,0,-ROUNDUP($E111-1,0))-(ROUNDDOWN($E111,0)*(OFFSET(Y105,0,-ROUNDUP($E111-1,0))/$E111))),0) -> 0 | AA111: =-SUM(OFFSET(Z105,0,-MIN(AA$70-1,ROUNDDOWN($E111-1,0))):Z105)/$E111-IF(AA$70>$E111,(OFFSET(Z105,0,-ROUNDUP($E111-1,0))-(ROUNDDOWN($E111,0)*(OFFSET(Z105,0,-ROUNDUP($E111-1,0))/$E111))),0) -> 0 | AB111: =-SUM(OFFSET(AA105,0,-MIN(AB$70-1,ROUNDDOWN($E111-1,0))):AA105)/$E111-IF(AB$70>$E111,(OFFSET(AA105,0,-ROUNDUP($E111-1,0))-(ROUNDDOWN($E111,0)*(OFFSET(AA105,0,-ROUNDUP($E111-1,0))/$E111))),0) -> 0 | AC111: =-SUM(OFFSET(AB105,0,-MIN(AC$70-1,ROUNDDOWN($E111-1,0))):AB105)/$E111-IF(AC$70>$E111,(OFFSET(AB105,0,-ROUNDUP($E111-1,0))-(ROUNDDOWN($E111,0)*(OFFSET(AB105,0,-ROUNDUP($E111-1,0))/$E111))),0) -> 0 | AD111: =-SUM(OFFSET(AC105,0,-MIN(AD$70-1,ROUNDDOWN($E111-1,0))):AC105)/$E111-IF(AD$70>$E111,(OFFSET(AC105,0,-ROUNDUP($E111-1,0))-(ROUNDDOWN($E111,0)*(OFFSET(AC105,0,-ROUNDUP($E111-1,0))/$E111))),0) -> 0 | AE111: =-SUM(OFFSET(AD105,0,-MIN(AE$70-1,ROUNDDOWN($E111-1,0))):AD105)/$E111-IF(AE$70>$E111,(OFFSET(AD105,0,-ROUNDUP($E111-1,0))-(ROUNDDOWN($E111,0)*(OFFSET(AD105,0,-ROUNDUP($E111-1,0))/$E111))),0) -> 0 | AF111: =-SUM(OFFSET(AE105,0,-MIN(AF$70-1,ROUNDDOWN($E111-1,0))):AE105)/$E111-IF(AF$70>$E111,(OFFSET(AE105,0,-ROUNDUP($E111-1,0))-(ROUNDDOWN($E111,0)*(OFFSET(AE105,0,-ROUNDUP($E111-1,0))/$E111))),0) -> 0 | AG111: =-SUM(OFFSET(AF105,0,-MIN(AG$70-1,ROUNDDOWN($E111-1,0))):AF105)/$E111-IF(AG$70>$E111,(OFFSET(AF105,0,-ROUNDUP($E111-1,0))-(ROUNDDOWN($E111,0)*(OFFSET(AF105,0,-ROUNDUP($E111-1,0))/$E111))),0) -> 0 | AH111: =-SUM(OFFSET(AG105,0,-MIN(AH$70-1,ROUNDDOWN($E111-1,0))):AG105)/$E111-IF(AH$70>$E111,(OFFSET(AG105,0,-ROUNDUP($E111-1,0))-(ROUNDDOWN($E111,0)*(OFFSET(AG105,0,-ROUNDUP($E111-1,0))/$E111))),0) -> 0 | AI111: =-SUM(OFFSET(AH105,0,-MIN(AI$70-1,ROUNDDOWN($E111-1,0))):AH105)/$E111-IF(AI$70>$E111,(OFFSET(AH105,0,-ROUNDUP($E111-1,0))-(ROUNDDOWN($E111,0)*(OFFSET(AH105,0,-ROUNDUP($E111-1,0))/$E111))),0) -> 0 | AJ111: =-SUM(OFFSET(AI105,0,-MIN(AJ$70-1,ROUNDDOWN($E111-1,0))):AI105)/$E111-IF(AJ$70>$E111,(OFFSET(AI105,0,-ROUNDUP($E111-1,0))-(ROUNDDOWN($E111,0)*(OFFSET(AI105,0,-ROUNDUP($E111-1,0))/$E111))),0) -> 0 | AK111: =-SUM(OFFSET(AJ105,0,-MIN(AK$70-1,ROUNDDOWN($E111-1,0))):AJ105)/$E111-IF(AK$70>$E111,(OFFSET(AJ105,0,-ROUNDUP($E111-1,0))-(ROUNDDOWN($E111,0)*(OFFSET(AJ105,0,-ROUNDUP($E111-1,0))/$E111))),0) -> 0 | AL111: =-SUM(OFFSET(AK105,0,-MIN(AL$70-1,ROUNDDOWN($E111-1,0))):AK105)/$E111-IF(AL$70>$E111,(OFFSET(AK105,0,-ROUNDUP($E111-1,0))-(ROUNDDOWN($E111,0)*(OFFSET(AK105,0,-ROUNDUP($E111-1,0))/$E111))),0) -> 0 | AM111: =-SUM(OFFSET(AL105,0,-MIN(AM$70-1,ROUNDDOWN($E111-1,0))):AL105)/$E111-IF(AM$70>$E111,(OFFSET(AL105,0,-ROUNDUP($E111-1,0))-(ROUNDDOWN($E111,0)*(OFFSET(AL105,0,-ROUNDUP($E111-1,0))/$E111))),0) -> 0 | AN111: =-SUM(OFFSET(AM105,0,-MIN(AN$70-1,ROUNDDOWN($E111-1,0))):AM105)/$E111-IF(AN$70>$E111,(OFFSET(AM105,0,-ROUNDUP($E111-1,0))-(ROUNDDOWN($E111,0)*(OFFSET(AM105,0,-ROUNDUP($E111-1,0))/$E111))),0) -> 0 | AO111: =-SUM(OFFSET(AN105,0,-MIN(AO$70-1,ROUNDDOWN($E111-1,0))):AN105)/$E111-IF(AO$70>$E111,(OFFSET(AN105,0,-ROUNDUP($E111-1,0))-(ROUNDDOWN($E111,0)*(OFFSET(AN105,0,-ROUNDUP($E111-1,0))/$E111))),0) -> 0 | AP111: =-SUM(OFFSET(AO105,0,-MIN(AP$70-1,ROUNDDOWN($E111-1,0))):AO105)/$E111-IF(AP$70>$E111,(OFFSET(AO105,0,-ROUNDUP($E111-1,0))-(ROUNDDOWN($E111,0)*(OFFSET(AO105,0,-ROUNDUP($E111-1,0))/$E111))),0) -> 0 | AQ111: =-SUM(OFFSET(AP105,0,-MIN(AQ$70-1,ROUNDDOWN($E111-1,0))):AP105)/$E111-IF(AQ$70>$E111,(OFFSET(AP105,0,-ROUNDUP($E111-1,0))-(ROUNDDOWN($E111,0)*(OFFSET(AP105,0,-ROUNDUP($E111-1,0))/$E111))),0) -> 0 | AR111: =-SUM(OFFSET(AQ105,0,-MIN(AR$70-1,ROUNDDOWN($E111-1,0))):AQ105)/$E111-IF(AR$70>$E111,(OFFSET(AQ105,0,-ROUNDUP($E111-1,0))-(ROUNDDOWN($E111,0)*(OFFSET(AQ105,0,-ROUNDUP($E111-1,0))/$E111))),0) -> 0 | AS111: =-SUM(OFFSET(AR105,0,-MIN(AS$70-1,ROUNDDOWN($E111-1,0))):AR105)/$E111-IF(AS$70>$E111,(OFFSET(AR105,0,-ROUNDUP($E111-1,0))-(ROUNDDOWN($E111,0)*(OFFSET(AR105,0,-ROUNDUP($E111-1,0))/$E111))),0) -> 0 | AT111: =-SUM(OFFSET(AS105,0,-MIN(AT$70-1,ROUNDDOWN($E111-1,0))):AS105)/$E111-IF(AT$70>$E111,(OFFSET(AS105,0,-ROUNDUP($E111-1,0))-(ROUNDDOWN($E111,0)*(OFFSET(AS105,0,-ROUNDUP($E111-1,0))/$E111))),0) -> 0 | AU111: =-SUM(OFFSET(AT105,0,-MIN(AU$70-1,ROUNDDOWN($E111-1,0))):AT105)/$E111-IF(AU$70>$E111,(OFFSET(AT105,0,-ROUNDUP($E111-1,0))-(ROUNDDOWN($E111,0)*(OFFSET(AT105,0,-ROUNDUP($E111-1,0))/$E111))),0) -> 0
B112: Amort. - PRC 10 ans | E112: 10.0 ans | H112: =-SUM(OFFSET(H107,0,-MIN(H$70-1,$E112-1)):H107)/$E112 -> 0 | I112: =-SUM(OFFSET(I107,0,-MIN(I$70-1,$E112-1)):I107)/$E112 -> 0 | J112: =-SUM(OFFSET(J107,0,-MIN(J$70-1,$E112-1)):J107)/$E112 -> 0 | K112: =-SUM(OFFSET(K107,0,-MIN(K$70-1,$E112-1)):K107)/$E112 -> 0 | L112: =-SUM(OFFSET(L107,0,-MIN(L$70-1,$E112-1)):L107)/$E112 -> 0 | M112: =-SUM(OFFSET(M107,0,-MIN(M$70-1,$E112-1)):M107)/$E112 -> 0 | N112: =-SUM(OFFSET(N107,0,-MIN(N$70-1,$E112-1)):N107)/$E112 -> 0 | O112: =-SUM(OFFSET(O107,0,-MIN(O$70-1,$E112-1)):O107)/$E112 -> 0 | P112: =-SUM(OFFSET(P107,0,-MIN(P$70-1,$E112-1)):P107)/$E112 -> 0 | Q112: =-SUM(OFFSET(Q107,0,-MIN(Q$70-1,$E112-1)):Q107)/$E112 -> 0 | R112: =-SUM(OFFSET(R107,0,-MIN(R$70-1,$E112-1)):R107)/$E112 -> 0 | S112: =-SUM(OFFSET(S107,0,-MIN(S$70-1,$E112-1)):S107)/$E112 -> 0 | T112: =-SUM(OFFSET(T107,0,-MIN(T$70-1,$E112-1)):T107)/$E112 -> 0 | U112: =-SUM(OFFSET(U107,0,-MIN(U$70-1,$E112-1)):U107)/$E112 -> 0 | V112: =-SUM(OFFSET(V107,0,-MIN(V$70-1,$E112-1)):V107)/$E112 -> 0 | W112: =-SUM(OFFSET(W107,0,-MIN(W$70-1,$E112-1)):W107)/$E112 -> 0 | X112: =-SUM(OFFSET(X107,0,-MIN(X$70-1,$E112-1)):X107)/$E112 -> 0 | Y112: =-SUM(OFFSET(Y107,0,-MIN(Y$70-1,$E112-1)):Y107)/$E112 -> 0 | Z112: =-SUM(OFFSET(Z107,0,-MIN(Z$70-1,$E112-1)):Z107)/$E112 -> 0 | AA112: =-SUM(OFFSET(AA107,0,-MIN(AA$70-1,$E112-1)):AA107)/$E112 -> 0 | AB112: =-SUM(OFFSET(AB107,0,-MIN(AB$70-1,$E112-1)):AB107)/$E112 -> 0 | AC112: =-SUM(OFFSET(AC107,0,-MIN(AC$70-1,$E112-1)):AC107)/$E112 -> 0 | AD112: =-SUM(OFFSET(AD107,0,-MIN(AD$70-1,$E112-1)):AD107)/$E112 -> 0 | AE112: =-SUM(OFFSET(AE107,0,-MIN(AE$70-1,$E112-1)):AE107)/$E112 -> 0 | AF112: =-SUM(OFFSET(AF107,0,-MIN(AF$70-1,$E112-1)):AF107)/$E112 -> 0 | AG112: =-SUM(OFFSET(AG107,0,-MIN(AG$70-1,$E112-1)):AG107)/$E112 -> 0 | AH112: =-SUM(OFFSET(AH107,0,-MIN(AH$70-1,$E112-1)):AH107)/$E112 -> 0 | AI112: =-SUM(OFFSET(AI107,0,-MIN(AI$70-1,$E112-1)):AI107)/$E112 -> 0 | AJ112: =-SUM(OFFSET(AJ107,0,-MIN(AJ$70-1,$E112-1)):AJ107)/$E112 -> 0 | AK112: =-SUM(OFFSET(AK107,0,-MIN(AK$70-1,$E112-1)):AK107)/$E112 -> 0 | AL112: =-SUM(OFFSET(AL107,0,-MIN(AL$70-1,$E112-1)):AL107)/$E112 -> 0 | AM112: =-SUM(OFFSET(AM107,0,-MIN(AM$70-1,$E112-1)):AM107)/$E112 -> 0 | AN112: =-SUM(OFFSET(AN107,0,-MIN(AN$70-1,$E112-1)):AN107)/$E112 -> 0 | AO112: =-SUM(OFFSET(AO107,0,-MIN(AO$70-1,$E112-1)):AO107)/$E112 -> 0 | AP112: =-SUM(OFFSET(AP107,0,-MIN(AP$70-1,$E112-1)):AP107)/$E112 -> 0 | AQ112: =-SUM(OFFSET(AQ107,0,-MIN(AQ$70-1,$E112-1)):AQ107)/$E112 -> 0 | AR112: =-SUM(OFFSET(AR107,0,-MIN(AR$70-1,$E112-1)):AR107)/$E112 -> 0 | AS112: =-SUM(OFFSET(AS107,0,-MIN(AS$70-1,$E112-1)):AS107)/$E112 -> 0 | AT112: =-SUM(OFFSET(AT107,0,-MIN(AT$70-1,$E112-1)):AT107)/$E112 -> 0 | AU112: =-SUM(OFFSET(AU107,0,-MIN(AU$70-1,$E112-1)):AU107)/$E112 -> 0
H113: =SUM(H110:H112) -> -34,516 | I113: -34,516 | J113: -34,516 | K113: -34,516 | L113: -34,516 | M113: -34,516 | N113: -34,516 | O113: -34,516 | P113: -34,516 | Q113: -34,516 | R113: -34,516 | S113: -34,516 | T113: -34,516 | U113: -34,516 | V113: -34,516 | W113: -34,516 | X113: -34,516 | Y113: -34,516 | Z113: -34,516 | AA113: -34,516 | AB113: -34,516 | AC113: -34,516 | AD113: -34,516 | AE113: -34,516 | AF113: -34,516 | AG113: -34,516 | AH113: -34,516 | AI113: -34,516 | AJ113: -34,516 | AK113: -34,516 | AL113: -34,516 | AM113: -34,516 | AN113: -34,516 | AO113: -34,516 | AP113: -34,516 | AQ113: -34,516 | AR113: -34,516 | AS113: -34,516 | AT113: -34,516 | AU113: -34,516
B115: Immobilisations nettes comptables | G115: =+G108 -> 1,558,869 | H115: =G115+H108+H113 -> 1,524,352 | I115: 1,489,836 | J115: 1,455,320 | K115: 1,420,803 | L115: 1,386,287 | M115: 1,351,770 | N115: 1,317,254 | O115: 1,282,737 | P115: 1,248,221 | Q115: 1,213,704 | R115: 1,179,188 | S115: 1,144,671 | T115: 1,110,155 | U115: 1,075,638 | V115: 1,041,122 | W115: 1,006,605 | X115: 972,089 | Y115: 937,572 | Z115: 903,056 | AA115: 868,539 | AB115: 834,023 | AC115: 799,506 | AD115: 764,990 | AE115: 730,474 | AF115: 695,957 | AG115: 661,441 | AH115: 626,924 | AI115: 592,408 | AJ115: 557,891 | AK115: 523,375 | AL115: 488,858 | AM115: 454,342 | AN115: 419,825 | AO115: 385,309 | AP115: 350,792 | AQ115: 316,276 | AR115: 281,759 | AS115: 247,243 | AT115: 212,726 | AU115: 178,210
B116: Immobilisations nettes finales pour calcul de la TSP | H116: =G116+SUM(G104:G105)+H107+H113 -> 1,524,352 | I116: 1,489,836 | J116: 1,455,320 | K116: 1,420,803 | L116: 1,386,287 | M116: 1,351,770 | N116: 1,317,254 | O116: 1,282,737 | P116: 1,248,221 | Q116: 1,213,704 | R116: 1,179,188 | S116: 1,144,671 | T116: 1,110,155 | U116: 1,075,638 | V116: 1,041,122 | W116: 1,006,605 | X116: 972,089 | Y116: 937,572 | Z116: 903,056 | AA116: 868,539 | AB116: 834,023 | AC116: 799,506 | AD116: 764,990 | AE116: 730,474 | AF116: 695,957 | AG116: 661,441 | AH116: 626,924 | AI116: 592,408 | AJ116: 557,891 | AK116: 523,375 | AL116: 488,858 | AM116: 454,342 | AN116: 419,825 | AO116: 385,309 | AP116: 350,792 | AQ116: 316,276 | AR116: 281,759 | AS116: 247,243 | AT116: 212,726 | AU116: 178,210
B118: ="FNACC - "&B42 -> FNACC - Frais de conduites - Total | G118: =G104 -> 1,558,869 | H118: =G118+H122 -> 1,512,103 | I118: =H118+I122+H104 -> 1,421,377 | J118: 1,336,094 | K118: 1,255,928 | L118: 1,180,573 | M118: 1,109,738 | N118: 1,043,154 | O118: 980,565 | P118: 921,731 | Q118: 866,427 | R118: 814,441 | S118: 765,575 | T118: 719,640 | U118: 676,462 | V118: 635,874 | W118: 597,722 | X118: 561,859 | Y118: 528,147 | Z118: 496,458 | AA118: 466,671 | AB118: 438,670 | AC118: 412,350 | AD118: 387,609 | AE118: 364,353 | AF118: 342,492 | AG118: 321,942 | AH118: 302,626 | AI118: 284,468 | AJ118: 267,400 | AK118: 251,356 | AL118: 236,275 | AM118: 222,098 | AN118: 208,772 | AO118: 196,246 | AP118: 184,471 | AQ118: 173,403 | AR118: 162,999 | AS118: 153,219 | AT118: 144,026 | AU118: 135,384
B119: ="FNACC - "&B47 -> FNACC - Frais de branchements - Total | G119: =G105 -> 0 | H119: =G119+H123 -> 0 | I119: =H119+I123+H105 -> 0 | J119: 0 | K119: 0 | L119: 0 | M119: 0 | N119: 0 | O119: 0 | P119: 0 | Q119: 0 | R119: 0 | S119: 0 | T119: 0 | U119: 0 | V119: 0 | W119: 0 | X119: 0 | Y119: 0 | Z119: 0 | AA119: 0 | AB119: 0 | AC119: 0 | AD119: 0 | AE119: 0 | AF119: 0 | AG119: 0 | AH119: 0 | AI119: 0 | AJ119: 0 | AK119: 0 | AL119: 0 | AM119: 0 | AN119: 0 | AO119: 0 | AP119: 0 | AQ119: 0 | AR119: 0 | AS119: 0 | AT119: 0 | AU119: 0
G120: =SUM(G118:G119) -> 1,558,869 | H120: 1,512,103 | I120: 1,421,377 | J120: 1,336,094 | K120: 1,255,928 | L120: 1,180,573 | M120: 1,109,738 | N120: 1,043,154 | O120: 980,565 | P120: 921,731 | Q120: 866,427 | R120: 814,441 | S120: 765,575 | T120: 719,640 | U120: 676,462 | V120: 635,874 | W120: 597,722 | X120: 561,859 | Y120: 528,147 | Z120: 496,458 | AA120: 466,671 | AB120: 438,670 | AC120: 412,350 | AD120: 387,609 | AE120: 364,353 | AF120: 342,492 | AG120: 321,942 | AH120: 302,626 | AI120: 284,468 | AJ120: 267,400 | AK120: 251,356 | AL120: 236,275 | AM120: 222,098 | AN120: 208,772 | AO120: 196,246 | AP120: 184,471 | AQ120: 173,403 | AR120: 162,999 | AS120: 153,219 | AT120: 144,026 | AU120: 135,384
B121: Amortissement fiscal | E121: Taux
B122: ="Amort. fiscal - "&B42 -> Amort. fiscal - Frais de conduites - Total | E122: =$E$8 -> 6.0% | H122: =-G118*$E122/2 -> -46,766 | I122: =-H118*$E122-H104*$E122/2 -> -90,726 | J122: -85,283 | K122: -80,166 | L122: -75,356 | M122: -70,834 | N122: -66,584 | O122: -62,589 | P122: -58,834 | Q122: -55,304 | R122: -51,986 | S122: -48,866 | T122: -45,934 | U122: -43,178 | V122: -40,588 | W122: -38,152 | X122: -35,863 | Y122: -33,712 | Z122: -31,689 | AA122: -29,787 | AB122: -28,000 | AC122: -26,320 | AD122: -24,741 | AE122: -23,257 | AF122: -21,861 | AG122: -20,549 | AH122: -19,317 | AI122: -18,158 | AJ122: -17,068 | AK122: -16,044 | AL122: -15,081 | AM122: -14,176 | AN122: -13,326 | AO122: -12,526 | AP122: -11,775 | AQ122: -11,068 | AR122: -10,404 | AS122: -9,780 | AT122: -9,193 | AU122: -8,642
B123: ="Amort. fiscal - "&B47 -> Amort. fiscal - Frais de branchements - Total | E123: =$E$9 -> 6.0% | H123: =-G119*$E123/2 -> 0 | I123: =-H119*$E123-H105*$E123/2 -> 0 | J123: 0 | K123: 0 | L123: 0 | M123: 0 | N123: 0 | O123: 0 | P123: 0 | Q123: 0 | R123: 0 | S123: 0 | T123: 0 | U123: 0 | V123: 0 | W123: 0 | X123: 0 | Y123: 0 | Z123: 0 | AA123: 0 | AB123: 0 | AC123: 0 | AD123: 0 | AE123: 0 | AF123: 0 | AG123: 0 | AH123: 0 | AI123: 0 | AJ123: 0 | AK123: 0 | AL123: 0 | AM123: 0 | AN123: 0 | AO123: 0 | AP123: 0 | AQ123: 0 | AR123: 0 | AS123: 0 | AT123: 0 | AU123: 0
B124: Amort. fiscal - PRC 10 ans | E124: 10.0 ans | H124: =H112 -> 0 | I124: 0 | J124: 0 | K124: 0 | L124: 0 | M124: 0 | N124: 0 | O124: 0 | P124: 0 | Q124: 0 | R124: 0 | S124: 0 | T124: 0 | U124: 0 | V124: 0 | W124: 0 | X124: 0 | Y124: 0 | Z124: 0 | AA124: 0 | AB124: 0 | AC124: 0 | AD124: 0 | AE124: 0 | AF124: 0 | AG124: 0 | AH124: 0 | AI124: 0 | AJ124: 0 | AK124: 0 | AL124: 0 | AM124: 0 | AN124: 0 | AO124: 0 | AP124: 0 | AQ124: 0 | AR124: 0 | AS124: 0 | AT124: 0 | AU124: 0
H125: =SUM(H122:H124) -> -46,766 | I125: -90,726 | J125: -85,283 | K125: -80,166 | L125: -75,356 | M125: -70,834 | N125: -66,584 | O125: -62,589 | P125: -58,834 | Q125: -55,304 | R125: -51,986 | S125: -48,866 | T125: -45,934 | U125: -43,178 | V125: -40,588 | W125: -38,152 | X125: -35,863 | Y125: -33,712 | Z125: -31,689 | AA125: -29,787 | AB125: -28,000 | AC125: -26,320 | AD125: -24,741 | AE125: -23,257 | AF125: -21,861 | AG125: -20,549 | AH125: -19,317 | AI125: -18,158 | AJ125: -17,068 | AK125: -16,044 | AL125: -15,081 | AM125: -14,176 | AN125: -13,326 | AO125: -12,526 | AP125: -11,775 | AQ125: -11,068 | AR125: -10,404 | AS125: -9,780 | AT125: -9,193 | AU125: -8,642
A127: 2.4 | B127: Impôts | H127: =$H$31 -> 2019 | I127: =H127+1 -> 2020 | J127: =I127+1 -> 2021 | K127: 2022 | L127: 2023 | M127: 2024 | N127: 2025 | O127: 2026 | P127: 2027 | Q127: 2028 | R127: 2029 | S127: 2030 | T127: 2031 | U127: 2032 | V127: 2033 | W127: 2034 | X127: 2035 | Y127: 2036 | Z127: 2037 | AA127: 2038 | AB127: 2039 | AC127: 2040 | AD127: 2041 | AE127: 2042 | AF127: 2043 | AG127: 2044 | AH127: 2045 | AI127: 2046 | AJ127: 2047 | AK127: 2048 | AL127: 2049 | AM127: 2050 | AN127: 2051 | AO127: 2052 | AP127: 2053 | AQ127: 2054 | AR127: 2055 | AS127: 2056 | AT127: 2057 | AU127: 2058
B129: Bénéfice net théorique comptable | H129: =$E$21*H87 -> 58,940 | I129: 57,620 | J129: 56,300 | K129: 54,981 | L129: 53,661 | M129: 52,341 | N129: 51,022 | O129: 49,702 | P129: 48,382 | Q129: 47,063 | R129: 45,743 | S129: 44,423 | T129: 43,104 | U129: 41,784 | V129: 40,465 | W129: 39,145 | X129: 37,825 | Y129: 36,506 | Z129: 35,186 | AA129: 33,866 | AB129: 32,547 | AC129: 31,227 | AD129: 29,907 | AE129: 28,588 | AF129: 27,268 | AG129: 25,948 | AH129: 24,629 | AI129: 23,309 | AJ129: 21,989 | AK129: 20,670 | AL129: 19,350 | AM129: 18,030 | AN129: 16,711 | AO129: 15,391 | AP129: 14,071 | AQ129: 12,752 | AR129: 11,432 | AS129: 10,113 | AT129: 8,793 | AU129: 7,473
B131: Dépréciation comptable | H131: =+H113 -> -34,516 | I131: -34,516 | J131: -34,516 | K131: -34,516 | L131: -34,516 | M131: -34,516 | N131: -34,516 | O131: -34,516 | P131: -34,516 | Q131: -34,516 | R131: -34,516 | S131: -34,516 | T131: -34,516 | U131: -34,516 | V131: -34,516 | W131: -34,516 | X131: -34,516 | Y131: -34,516 | Z131: -34,516 | AA131: -34,516 | AB131: -34,516 | AC131: -34,516 | AD131: -34,516 | AE131: -34,516 | AF131: -34,516 | AG131: -34,516 | AH131: -34,516 | AI131: -34,516 | AJ131: -34,516 | AK131: -34,516 | AL131: -34,516 | AM131: -34,516 | AN131: -34,516 | AO131: -34,516 | AP131: -34,516 | AQ131: -34,516 | AR131: -34,516 | AS131: -34,516 | AT131: -34,516 | AU131: -34,516
B132: Dépréciation fiscale | H132: =H125 -> -46,766 | I132: -90,726 | J132: -85,283 | K132: -80,166 | L132: -75,356 | M132: -70,834 | N132: -66,584 | O132: -62,589 | P132: -58,834 | Q132: -55,304 | R132: -51,986 | S132: -48,866 | T132: -45,934 | U132: -43,178 | V132: -40,588 | W132: -38,152 | X132: -35,863 | Y132: -33,712 | Z132: -31,689 | AA132: -29,787 | AB132: -28,000 | AC132: -26,320 | AD132: -24,741 | AE132: -23,257 | AF132: -21,861 | AG132: -20,549 | AH132: -19,317 | AI132: -18,158 | AJ132: -17,068 | AK132: -16,044 | AL132: -15,081 | AM132: -14,176 | AN132: -13,326 | AO132: -12,526 | AP132: -11,775 | AQ132: -11,068 | AR132: -10,404 | AS132: -9,780 | AT132: -9,193 | AU132: -8,642
B134: Taux d'impôt | H134: =$E$15 -> 26.73% | I134: =$E$16 -> 26.63% | J134: =$E$17 -> 26.53% | K134: =$E$18 -> 26.50% | L134: =K134 -> 26.50% | M134: =L134 -> 26.50% | N134: 26.50% | O134: 26.50% | P134: 26.50% | Q134: 26.50% | R134: 26.50% | S134: 26.50% | T134: 26.50% | U134: 26.50% | V134: 26.50% | W134: 26.50% | X134: 26.50% | Y134: 26.50% | Z134: 26.50% | AA134: 26.50% | AB134: 26.50% | AC134: 26.50% | AD134: 26.50% | AE134: 26.50% | AF134: 26.50% | AG134: 26.50% | AH134: 26.50% | AI134: 26.50% | AJ134: 26.50% | AK134: 26.50% | AL134: 26.50% | AM134: 26.50% | AN134: 26.50% | AO134: 26.50% | AP134: 26.50% | AQ134: 26.50% | AR134: 26.50% | AS134: 26.50% | AT134: 26.50% | AU134: 26.50%
B135: 1 - taux d'impôt | H135: =1-H134 -> 73.27% | I135: =1-I134 -> 73.37% | J135: 73.47% | K135: 73.50% | L135: 73.50% | M135: 73.50% | N135: 73.50% | O135: 73.50% | P135: 73.50% | Q135: 73.50% | R135: 73.50% | S135: 73.50% | T135: 73.50% | U135: 73.50% | V135: 73.50% | W135: 73.50% | X135: 73.50% | Y135: 73.50% | Z135: 73.50% | AA135: 73.50% | AB135: 73.50% | AC135: 73.50% | AD135: 73.50% | AE135: 73.50% | AF135: 73.50% | AG135: 73.50% | AH135: 73.50% | AI135: 73.50% | AJ135: 73.50% | AK135: 73.50% | AL135: 73.50% | AM135: 73.50% | AN135: 73.50% | AO135: 73.50% | AP135: 73.50% | AQ135: 73.50% | AR135: 73.50% | AS135: 73.50% | AT135: 73.50% | AU135: 73.50%
B137: Impôts (gross up) | H137: =((H129-H131+H132)/H135)-(H129-H131+H132) -> 17,033 | I137: =((I129-I131+I132)/I135)-(I129-I131+I132) -> 512 | J137: =((J129-J131+J132)/J135)-(J129-J131+J132) -> 1,998 | K137: 3,364 | L137: 4,623 | M137: 5,777 | N137: 6,834 | O137: 7,798 | P137: 8,676 | Q137: 9,473 | R137: 10,194 | S137: 10,843 | T137: 11,424 | U137: 11,942 | V137: 12,400 | W137: 12,803 | X137: 13,152 | Y137: 13,452 | Z137: 13,706 | AA137: 13,915 | AB137: 14,084 | AC137: 14,214 | AD137: 14,307 | AE137: 14,367 | AF137: 14,394 | AG137: 14,391 | AH137: 14,360 | AI137: 14,302 | AJ137: 14,219 | AK137: 14,113 | AL137: 13,984 | AM137: 13,834 | AN137: 13,665 | AO137: 13,478 | AP137: 13,273 | AQ137: 13,052 | AR137: 12,815 | AS137: 12,565 | AT137: 12,300 | AU137: 12,023
B138: Impôts sans dette | H138: =(1-H$135)*(H36-H74-H75-H76+H132) -> -19,548 | I138: -31,044 | J138: -29,345 | K138: -27,819 | L138: -26,407 | M138: -25,072 | N138: -23,808 | O138: -22,613 | P138: -21,480 | Q138: -20,407 | R138: -19,391 | S138: -18,427 | T138: -17,513 | U138: -16,645 | V138: -15,822 | W138: -15,039 | X138: -14,295 | Y138: -13,588 | Z138: -12,915 | AA138: -12,274 | AB138: -11,663 | AC138: -11,080 | AD138: -10,525 | AE138: -9,994 | AF138: -9,487 | AG138: -9,002 | AH138: -8,538 | AI138: -8,094 | AJ138: -7,668 | AK138: -7,260 | AL138: -6,867 | AM138: -6,490 | AN138: -6,128 | AO138: -5,779 | AP138: -5,442 | AQ138: -5,118 | AR138: -4,805 | AS138: -4,502 | AT138: -4,209 | AU138: -3,926
B140: États financiers pro forma
A142: 2.5 | B142: TRI - Contribution tarifaire - Point mort tarifaire | G142: =H142-1 -> 2018 | H142: =$H$31 -> 2019 | I142: =H142+1 -> 2020 | J142: =I142+1 -> 2021 | K142: =J142+1 -> 2022 | L142: =K142+1 -> 2023 | M142: =L142+1 -> 2024 | N142: =M142+1 -> 2025 | O142: =N142+1 -> 2026 | P142: =O142+1 -> 2027 | Q142: =P142+1 -> 2028 | R142: =Q142+1 -> 2029 | S142: =R142+1 -> 2030 | T142: =S142+1 -> 2031 | U142: =T142+1 -> 2032 | V142: =U142+1 -> 2033 | W142: =V142+1 -> 2034 | X142: =W142+1 -> 2035 | Y142: =X142+1 -> 2036 | Z142: =Y142+1 -> 2037 | AA142: =Z142+1 -> 2038 | AB142: =AA142+1 -> 2039 | AC142: =AB142+1 -> 2040 | AD142: =AC142+1 -> 2041 | AE142: =AD142+1 -> 2042 | AF142: =AE142+1 -> 2043 | AG142: =AF142+1 -> 2044 | AH142: =AG142+1 -> 2045 | AI142: =AH142+1 -> 2046 | AJ142: =AI142+1 -> 2047 | AK142: =AJ142+1 -> 2048 | AL142: =AK142+1 -> 2049 | AM142: =AL142+1 -> 2050 | AN142: =AM142+1 -> 2051 | AO142: =AN142+1 -> 2052 | AP142: =AO142+1 -> 2053 | AQ142: =AP142+1 -> 2054 | AR142: =AQ142+1 -> 2055 | AS142: =AR142+1 -> 2056 | AT142: =AS142+1 -> 2057 | AU142: =AT142+1 -> 2058
G143: 0 | H143: 1 | I143: 2 | J143: 3 | K143: 4 | L143: 5 | M143: 6 | N143: 7 | O143: 8 | P143: 9 | Q143: 10 | R143: 11 | S143: 12 | T143: 13 | U143: 14 | V143: 15 | W143: 16 | X143: 17 | Y143: 18 | Z143: 19 | AA143: 20 | AB143: 21 | AC143: 22 | AD143: 23 | AE143: 24 | AF143: 25 | AG143: 26 | AH143: 27 | AI143: 28 | AJ143: 29 | AK143: 30 | AL143: 31 | AM143: 32 | AN143: 33 | AO143: 34 | AP143: 35 | AQ143: 36 | AR143: 37 | AS143: 38 | AT143: 39 | AU143: 40
B145: Investissement | G145: =-G108 -> -1,558,869 | H145: 0 | I145: 0 | J145: 0 | K145: 0 | L145: 0 | M145: 0 | N145: 0 | O145: 0 | P145: 0 | Q145: 0 | R145: 0 | S145: 0 | T145: 0 | U145: 0 | V145: 0 | W145: 0 | X145: 0 | Y145: 0 | Z145: 0 | AA145: 0 | AB145: 0 | AC145: 0 | AD145: 0 | AE145: 0 | AF145: 0 | AG145: 0 | AH145: 0 | AI145: 0 | AJ145: 0 | AK145: 0 | AL145: 0 | AM145: 0 | AN145: 0 | AO145: 0 | AP145: 0 | AQ145: 0 | AR145: 0 | AS145: 0 | AT145: 0 | AU145: 0
B146: Revenu | H146: =H36 -> 0 | I146: 0 | J146: 0 | K146: 0 | L146: 0 | M146: 0 | N146: 0 | O146: 0 | P146: 0 | Q146: 0 | R146: 0 | S146: 0 | T146: 0 | U146: 0 | V146: 0 | W146: 0 | X146: 0 | Y146: 0 | Z146: 0 | AA146: 0 | AB146: 0 | AC146: 0 | AD146: 0 | AE146: 0 | AF146: 0 | AG146: 0 | AH146: 0 | AI146: 0 | AJ146: 0 | AK146: 0 | AL146: 0 | AM146: 0 | AN146: 0 | AO146: 0 | AP146: 0 | AQ146: 0 | AR146: 0 | AS146: 0 | AT146: 0 | AU146: 0
B147: OPEX, taxes foncières et redevances | H147: =-(H74+H75+H76) -> -26,365 | I147: -25,848 | J147: -25,330 | K147: -24,812 | L147: -24,294 | M147: -23,777 | N147: -23,259 | O147: -22,741 | P147: -22,223 | Q147: -21,706 | R147: -21,188 | S147: -20,670 | T147: -20,152 | U147: -19,635 | V147: -19,117 | W147: -18,599 | X147: -18,081 | Y147: -17,564 | Z147: -17,046 | AA147: -16,528 | AB147: -16,010 | AC147: -15,493 | AD147: -14,975 | AE147: -14,457 | AF147: -13,939 | AG147: -13,422 | AH147: -12,904 | AI147: -12,386 | AJ147: -11,868 | AK147: -11,351 | AL147: -10,833 | AM147: -10,315 | AN147: -9,797 | AO147: -9,280 | AP147: -8,762 | AQ147: -8,244 | AR147: -7,726 | AS147: -7,209 | AT147: -6,691 | AU147: -6,173
B148: Impôt sans dette | E148: TRI | H148: =-H138 -> 19,548 | I148: 31,044 | J148: 29,345 | K148: 27,819 | L148: 26,407 | M148: 25,072 | N148: 23,808 | O148: 22,613 | P148: 21,480 | Q148: 20,407 | R148: 19,391 | S148: 18,427 | T148: 17,513 | U148: 16,645 | V148: 15,822 | W148: 15,039 | X148: 14,295 | Y148: 13,588 | Z148: 12,915 | AA148: 12,274 | AB148: 11,663 | AC148: 11,080 | AD148: 10,525 | AE148: 9,994 | AF148: 9,487 | AG148: 9,002 | AH148: 8,538 | AI148: 8,094 | AJ148: 7,668 | AK148: 7,260 | AL148: 6,867 | AM148: 6,490 | AN148: 6,128 | AO148: 5,779 | AP148: 5,442 | AQ148: 5,118 | AR148: 4,805 | AS148: 4,502 | AT148: 4,209 | AU148: 3,926
B149: Flux monétaire du projet pour calcul du TRI | E149: =IFERROR(IRR(G149:AU149),"- ") -> - | G149: =SUM(G145:G148) -> -1,558,869 | H149: =SUM(H145:H148) -> -6,817 | I149: =SUM(I145:I148) -> 5,196 | J149: 4,016 | K149: 3,007 | L149: 2,113 | M149: 1,295 | N149: 550 | O149: -129 | P149: -743 | Q149: -1,298 | R149: -1,797 | S149: -2,243 | T149: -2,639 | U149: -2,989 | V149: -3,295 | W149: -3,560 | X149: -3,786 | Y149: -3,976 | Z149: -4,131 | AA149: -4,254 | AB149: -4,348 | AC149: -4,412 | AD149: -4,450 | AE149: -4,463 | AF149: -4,452 | AG149: -4,419 | AH149: -4,365 | AI149: -4,292 | AJ149: -4,200 | AK149: -4,091 | AL149: -3,966 | AM149: -3,825 | AN149: -3,670 | AO149: -3,501 | AP149: -3,320 | AQ149: -3,126 | AR149: -2,922 | AS149: -2,707 | AT149: -2,482 | AU149: -2,247
B151: Point mort tarifaire | L151: 5 ans | Q151: 10 ans | V151: 15 ans | AA151: 20 ans | AF151: 25 ans | AK151: 30 ans | AP151: 35 ans | AU151: 40 ans
B153: Contribution tarifaire | E153: Taux d'actualisation | H153: =H80-H36 -> 161,624 | I153: 142,711 | J153: 141,806 | K153: 140,780 | L153: 139,646 | M153: 138,408 | N153: 137,073 | O153: 135,646 | P153: 134,132 | Q153: 132,537 | R153: 130,865 | S153: 129,122 | T153: 127,311 | U153: 125,437 | V153: 123,504 | W153: 121,514 | X153: 119,471 | Y153: 117,379 | Z153: 115,241 | AA153: 113,059 | AB153: 110,835 | AC153: 108,573 | AD153: 106,275 | AE153: 103,942 | AF153: 101,578 | AG153: 99,183 | AH153: 96,759 | AI153: 94,310 | AJ153: 91,835 | AK153: 89,336 | AL153: 86,815 | AM153: 84,274 | AN153: 81,713 | AO153: 79,133 | AP153: 76,536 | AQ153: 73,923 | AR153: 71,295 | AS153: 68,652 | AT153: 65,996 | AU153: 63,327
B154: Contribution tarifaire actualisée | E154: =$E$24 -> 5.43% | G154: Ne pas effacer | H154: =H153/(1+$E$154)^H143 -> 153,300 | I154: 128,389 | J154: 121,004 | K154: 113,942 | L154: 107,203 | M154: 100,781 | N154: 94,668 | O154: 88,857 | P154: 83,340 | Q154: 78,108 | R154: 73,151 | S154: 68,459 | T154: 64,023 | U154: 59,831 | V154: 55,875 | W154: 52,143 | X154: 48,626 | Y154: 45,314 | Z154: 42,198 | AA154: 39,266 | AB154: 36,511 | AC154: 33,924 | AD154: 31,496 | AE154: 29,218 | AF154: 27,083 | AG154: 25,082 | AH154: 23,209 | AI154: 21,456 | AJ154: 19,817 | AK154: 18,285 | AL154: 16,854 | AM154: 15,518 | AN154: 14,272 | AO154: 13,109 | AP154: 12,026 | AQ154: 11,017 | AR154: 10,078 | AS154: 9,205 | AT154: 8,393 | AU154: 7,639
B155: Contribution tarifaire actualisée cumulée | G155: -1 | H155: =+H154 -> 153,300 | I155: =H155+I154 -> 281,690 | J155: =I155+J154 -> 402,694 | K155: 516,636 | L155: 623,839 | M155: 724,620 | N155: 819,288 | O155: 908,145 | P155: 991,485 | Q155: 1,069,593 | R155: 1,142,743 | S155: 1,211,202 | T155: 1,275,225 | U155: 1,335,056 | V155: 1,390,931 | W155: 1,443,074 | X155: 1,491,701 | Y155: =X155+Y154 -> 1,537,015 | Z155: =Y155+Z154 -> 1,579,212 | AA155: =Z155+AA154 -> 1,618,479 | AB155: =AA155+AB154 -> 1,654,990 | AC155: =AB155+AC154 -> 1,688,914 | AD155: =AC155+AD154 -> 1,720,410 | AE155: =AD155+AE154 -> 1,749,628 | AF155: =AE155+AF154 -> 1,776,711 | AG155: =AF155+AG154 -> 1,801,793 | AH155: =AG155+AH154 -> 1,825,003 | AI155: =AH155+AI154 -> 1,846,459 | AJ155: =AI155+AJ154 -> 1,866,276 | AK155: =AJ155+AK154 -> 1,884,561 | AL155: =AK155+AL154 -> 1,901,416 | AM155: =AL155+AM154 -> 1,916,934 | AN155: =AM155+AN154 -> 1,931,205 | AO155: =AN155+AO154 -> 1,944,314 | AP155: =AO155+AP154 -> 1,956,340 | AQ155: =AP155+AQ154 -> 1,967,357 | AR155: =AQ155+AR154 -> 1,977,436 | AS155: =AR155+AS154 -> 1,986,640 | AT155: =AS155+AT154 -> 1,995,033 | AU155: =AT155+AU154 -> 2,002,672
B156: Indicateur de PMT | E156: =IF(AND(MAX(H156:AU156)=0,H155<=0),1,MAX(H156:AU156)) -> 0.00 ans | G156: - | H156: =IF(AND(G156="-",OR(AND(G155>0,H155<=0),AND(G155>=0,H155<0))),H$143-1+G155/-H154,IF(G156="-","-","")) -> - | I156: - | J156: - | K156: - | L156: - | M156: - | N156: - | O156: - | P156: - | Q156: - | R156: - | S156: - | T156: - | U156: - | V156: - | W156: - | X156: - | Y156: - | Z156: - | AA156: - | AB156: - | AC156: - | AD156: - | AE156: - | AF156: - | AG156: - | AH156: - | AI156: - | AJ156: - | AK156: - | AL156: - | AM156: - | AN156: - | AO156: - | AP156: - | AQ156: - | AR156: - | AS156: - | AT156: - | AU156: -

Sheet Résultats
A2: ÉNERGIR, S.E.C. | L2: REVENU REQUIS | O2: ÉNERGIR, S.E.C. | Z2: =L2 -> REVENU REQUIS | AC2: ÉNERGIR, S.E.C. | AN2: =Z2 -> REVENU REQUIS | AQ2: ÉNERGIR, S.E.C. | BB2: =AN2 -> REVENU REQUIS | BE2: ÉNERGIR, S.E.C. | BP2: =BB2 -> REVENU REQUIS | BS2: ÉNERGIR, S.E.C. | CD2: =BP2 -> REVENU REQUIS | CG2: ÉNERGIR, S.E.C. | CR2: =CD2 -> REVENU REQUIS | CU2: ÉNERGIR, S.E.C. | DF2: =CR2 -> REVENU REQUIS
A3: CALCUL DU REVENU REQUIS | L3: Paramètres 2017-2018 | O3: CALCUL DU REVENU REQUIS | Z3: Paramètres 2017-2018 | AC3: CALCUL DU REVENU REQUIS | AN3: Paramètres 2017-2018 | AQ3: CALCUL DU REVENU REQUIS | BB3: Paramètres 2017-2018 | BE3: CALCUL DU REVENU REQUIS | BP3: Paramètres 2017-2018 | BS3: CALCUL DU REVENU REQUIS | CD3: Paramètres 2017-2018 | CG3: CALCUL DU REVENU REQUIS | CR3: Paramètres 2017-2018 | CU3: CALCUL DU REVENU REQUIS | DF3: Paramètres 2017-2018
A4: BUDGET | L4: SRR-VERSION 18.0 | O4: BUDGET | Z4: =L4 -> SRR-VERSION 18.0 | AC4: BUDGET | AN4: =Z4 -> SRR-VERSION 18.0 | AQ4: BUDGET | BB4: =AN4 -> SRR-VERSION 18.0 | BE4: BUDGET | BP4: =BB4 -> SRR-VERSION 18.0 | BS4: BUDGET | CD4: =BP4 -> SRR-VERSION 18.0 | CG4: BUDGET | CR4: =CD4 -> SRR-VERSION 18.0 | CU4: BUDGET | DF4: =CR4 -> SRR-VERSION 18.0
B8: ='Modèle DaQ - Annexe Q-4.1'!A1 -> Projet MTQ Pont Trudel | H8: Type de projet | J8: Ententes spécifiques | K8: Représentant | P8: =B8 -> Projet MTQ Pont Trudel | V8: Type de projet | X8: =J8 -> Ententes spécifiques | Y8: =K8 -> Représentant | AA8: =M8 -> 0 | AD8: =P8 -> Projet MTQ Pont Trudel | AJ8: Type de projet | AL8: =X8 -> Ententes spécifiques | AM8: =Y8 -> Représentant | AO8: =AA8 -> 0 | AR8: =AD8 -> Projet MTQ Pont Trudel | AX8: Type de projet | AZ8: =AL8 -> Ententes spécifiques | BA8: =AM8 -> Représentant | BC8: =AO8 -> 0 | BF8: =AR8 -> Projet MTQ Pont Trudel | BL8: Type de projet | BN8: =AZ8 -> Ententes spécifiques | BO8: =BA8 -> Représentant | BQ8: =BC8 -> 0 | BT8: =BF8 -> Projet MTQ Pont Trudel | BZ8: Type de projet | CB8: =BN8 -> Ententes spécifiques | CC8: =BO8 -> Représentant | CE8: =BQ8 -> 0 | CH8: =BT8 -> Projet MTQ Pont Trudel | CN8: Type de projet | CP8: =CB8 -> Ententes spécifiques | CQ8: =CC8 -> Représentant | CS8: =CE8 -> 0 | CV8: =CH8 -> Projet MTQ Pont Trudel | DB8: Type de projet | DD8: =CP8 -> Ententes spécifiques | DE8: =CQ8 -> Représentant | DG8: =CS8 -> 0
H9: Type de client | J9: Amélioration réseau | K9: Conseiller | P9: =B9 -> 0 | V9: Type de client | X9: Amélioration réseau | Y9: =K9 -> Conseiller | AA9: 0 | AD9: =P9 -> 0 | AJ9: Type de client | AL9: Amélioration réseau | AM9: =Y9 -> Conseiller | AO9: 0 | AR9: =AD9 -> 0 | AX9: Type de client | AZ9: Amélioration réseau | BA9: =AM9 -> Conseiller | BC9: 0 | BF9: =AR9 -> 0 | BL9: Type de client | BN9: Amélioration réseau | BO9: =BA9 -> Conseiller | BQ9: 0 | BT9: =BF9 -> 0 | BZ9: Type de client | CB9: Amélioration réseau | CC9: =BO9 -> Conseiller | CE9: 0 | CH9: =BT9 -> 0 | CN9: Type de client | CP9: Amélioration réseau | CQ9: =CC9 -> Conseiller | CS9: 0 | CV9: =CH9 -> 0 | DB9: Type de client | DD9: Amélioration réseau | DE9: =CQ9 -> Conseiller | DG9: 0
H10: Région | J10: Mauricie | K10: OTP | M10: 60-003410 | P10: 0 | V10: Région | X10: Mauricie | Y10: OTP | AA10: 60-003410 | AD10: 0 | AJ10: Région | AL10: Mauricie | AM10: OTP | AO10: 60-003410 | AR10: 0 | AX10: Région | AZ10: Mauricie | BA10: OTP | BC10: 60-003410 | BF10: 0 | BL10: Région | BN10: Mauricie | BO10: OTP | BQ10: 60-003410 | BT10: 0 | BZ10: Région | CB10: Mauricie | CC10: OTP | CE10: 60-003410 | CH10: 0 | CN10: Région | CP10: Mauricie | CQ10: OTP | CS10: 60-003410 | CV10: 0 | DB10: Région | DD10: Mauricie | DE10: OTP | DG10: 60-003410
H11: Municipalité | J11: Shawinigan | P11: 0 | V11: Municipalité | X11: =J11 -> Shawinigan | AD11: 0 | AJ11: Municipalité | AL11: Shawinigan | AR11: 0 | AX11: Municipalité | AZ11: Shawinigan | BF11: 0 | BL11: Municipalité | BN11: Shawinigan | BT11: 0 | BZ11: Municipalité | CB11: Shawinigan | CH11: 0 | CN11: Municipalité | CP11: Shawinigan | CV11: 0 | DB11: Municipalité | DD11: Shawinigan
K12: Coût en capital prospectif D-2017-094 | M12: ='[6]Modèle DaQ'!$E$22 -> 5.43% | Y12: =$K$12 -> Coût en capital prospectif D-2017-094 | AA12: =$M$12 -> 5.43% | AJ12: Nbr de clients potentiels | AM12: =$K$12 -> Coût en capital prospectif D-2017-094 | AO12: =$M$12 -> 5.43% | AX12: Nbr de clients potentiels | BA12: =$K$12 -> Coût en capital prospectif D-2017-094 | BC12: =$M$12 -> 5.43% | BL12: Nbr de clients potentiels | BO12: =$K$12 -> Coût en capital prospectif D-2017-094 | BQ12: =$M$12 -> 5.43% | BZ12: Nbr de clients potentiels | CC12: =$K$12 -> Coût en capital prospectif D-2017-094 | CE12: =$M$12 -> 5.43% | CN12: Nbr de clients potentiels | CQ12: =$K$12 -> Coût en capital prospectif D-2017-094 | CS12: =$M$12 -> 5.43% | DB12: Nbr de clients potentiels | DE12: =$K$12 -> Coût en capital prospectif D-2017-094 | DG12: =$M$12 -> 5.43%
H13: Longueur en mètres linéaires | J13: ='Modèle DaQ - Annexe Q-4.1'!D63 -> 0 | K13: Coût en capital prospectif après impôt | M13: ='[6]Modèle DaQ'!$E$23 -> 5.01% | V13: Longueur en mètres linéaires | X13: 0 | Y13: =$K$13 -> Coût en capital prospectif après impôt | AA13: =$M$13 -> 5.01% | AJ13: Longueur en mètres linéaires | AL13: =J13 -> 0 | AM13: =$K$13 -> Coût en capital prospectif après impôt | AO13: =$M$13 -> 5.01% | AX13: Longueur en mètres linéaires | AZ13: =J13 -> 0 | BA13: =$K$13 -> Coût en capital prospectif après impôt | BC13: =$M$13 -> 5.01% | BL13: Longueur en mètres linéaires | BN13: =J13 -> 0 | BO13: =$K$13 -> Coût en capital prospectif après impôt | BQ13: =$M$13 -> 5.01% | BZ13: Longueur en mètres linéaires | CB13: =J13 -> 0 | CC13: =$K$13 -> Coût en capital prospectif après impôt | CE13: =$M$13 -> 5.01% | CN13: Longueur en mètres linéaires | CP13: =J13 -> 0 | CQ13: =$K$13 -> Coût en capital prospectif après impôt | CS13: =$M$13 -> 5.01% | DB13: Longueur en mètres linéaires | DD13: =J13 -> 0 | DE13: =$K$13 -> Coût en capital prospectif après impôt | DG13: =$M$13 -> 5.01%
E16: Total | H16: 0 | I16: 1 | J16: 2 | K16: 3 | L16: 4 | M16: 5 | V16: 5 | W16: 6 | X16: 7 | Y16: 8 | Z16: 9 | AA16: 10 | AJ16: 10 | AK16: 11 | AL16: 12 | AM16: 13 | AN16: 14 | AO16: 15 | AX16: 15 | AY16: 16 | AZ16: 17 | BA16: 18 | BB16: 19 | BC16: 20 | BL16: 20 | BM16: 21 | BN16: 22 | BO16: 23 | BP16: 24 | BQ16: 25 | BZ16: 25 | CA16: 26 | CB16: 27 | CC16: 28 | CD16: 29 | CE16: 30 | CN16: 30 | CO16: 31 | CP16: 32 | CQ16: 33 | CR16: 34 | CS16: 35 | DB16: 35 | DC16: 36 | DD16: 37 | DE16: 38 | DF16: 39 | DG16: 40
B17: Nombre de clients | I17: ='Modèle DaQ - Annexe Q-4.1'!H33 -> 0 | J17: ='Modèle DaQ - Annexe Q-4.1'!I33 -> 0 | K17: ='Modèle DaQ - Annexe Q-4.1'!J33 -> 0 | L17: ='Modèle DaQ - Annexe Q-4.1'!K33 -> 0 | M17: ='Modèle DaQ - Annexe Q-4.1'!L33 -> 0 | P17: Nombre de clients | V17: =M17 -> 0 | W17: ='Modèle DaQ - Annexe Q-4.1'!M33 -> 0 | X17: ='Modèle DaQ - Annexe Q-4.1'!N33 -> 0 | Y17: ='Modèle DaQ - Annexe Q-4.1'!O33 -> 0 | Z17: ='Modèle DaQ - Annexe Q-4.1'!P33 -> 0 | AA17: ='Modèle DaQ - Annexe Q-4.1'!Q33 -> 0 | AD17: Nombre de clients | AJ17: =AA17 -> 0 | AK17: ='Modèle DaQ - Annexe Q-4.1'!R33 -> 0 | AL17: ='Modèle DaQ - Annexe Q-4.1'!S33 -> 0 | AM17: ='Modèle DaQ - Annexe Q-4.1'!T33 -> 0 | AN17: ='Modèle DaQ - Annexe Q-4.1'!U33 -> 0 | AO17: ='Modèle DaQ - Annexe Q-4.1'!V33 -> 0 | AR17: Nombre de clients | AX17: =AO17 -> 0 | AY17: ='Modèle DaQ - Annexe Q-4.1'!W33 -> 0 | AZ17: ='Modèle DaQ - Annexe Q-4.1'!X33 -> 0 | BA17: ='Modèle DaQ - Annexe Q-4.1'!Y33 -> 0 | BB17: ='Modèle DaQ - Annexe Q-4.1'!Z33 -> 0 | BC17: ='Modèle DaQ - Annexe Q-4.1'!AA33 -> 0 | BF17: Nombre de clients | BL17: =BC17 -> 0 | BM17: ='Modèle DaQ - Annexe Q-4.1'!AB33 -> 0 | BN17: ='Modèle DaQ - Annexe Q-4.1'!AC33 -> 0 | BO17: ='Modèle DaQ - Annexe Q-4.1'!AD33 -> 0 | BP17: ='Modèle DaQ - Annexe Q-4.1'!AE33 -> 0 | BQ17: ='Modèle DaQ - Annexe Q-4.1'!AF33 -> 0 | BT17: Nombre de clients | BZ17: =BQ17 -> 0 | CA17: ='Modèle DaQ - Annexe Q-4.1'!AG33 -> 0 | CB17: ='Modèle DaQ - Annexe Q-4.1'!AH33 -> 0 | CC17: ='Modèle DaQ - Annexe Q-4.1'!AI33 -> 0 | CD17: ='Modèle DaQ - Annexe Q-4.1'!AJ33 -> 0 | CE17: ='Modèle DaQ - Annexe Q-4.1'!AK33 -> 0 | CH17: Nombre de clients | CN17: =CE17 -> 0 | CO17: ='Modèle DaQ - Annexe Q-4.1'!AL33 -> 0 | CP17: ='Modèle DaQ - Annexe Q-4.1'!AM33 -> 0 | CQ17: ='Modèle DaQ - Annexe Q-4.1'!AN33 -> 0 | CR17: ='Modèle DaQ - Annexe Q-4.1'!AO33 -> 0 | CS17: ='Modèle DaQ - Annexe Q-4.1'!AP33 -> 0 | CV17: Nombre de clients | DB17: =CS17 -> 0 | DC17: ='Modèle DaQ - Annexe Q-4.1'!AQ33 -> 0 | DD17: ='Modèle DaQ - Annexe Q-4.1'!AR33 -> 0 | DE17: ='Modèle DaQ - Annexe Q-4.1'!AS33 -> 0 | DF17: ='Modèle DaQ - Annexe Q-4.1'!AT33 -> 0 | DG17: ='Modèle DaQ - Annexe Q-4.1'!AU33 -> 0
B18: Volume en m3 | I18: ='Modèle DaQ - Annexe Q-4.1'!H34 -> 0 | J18: ='Modèle DaQ - Annexe Q-4.1'!I34 -> 0 | K18: ='Modèle DaQ - Annexe Q-4.1'!J34 -> 0 | L18: ='Modèle DaQ - Annexe Q-4.1'!K34 -> 0 | M18: ='Modèle DaQ - Annexe Q-4.1'!L34 -> 0 | P18: =B18 -> Volume en m3 | V18: =M18 -> 0 | W18: ='Modèle DaQ - Annexe Q-4.1'!M34 -> 0 | X18: ='Modèle DaQ - Annexe Q-4.1'!N34 -> 0 | Y18: ='Modèle DaQ - Annexe Q-4.1'!O34 -> 0 | Z18: ='Modèle DaQ - Annexe Q-4.1'!P34 -> 0 | AA18: ='Modèle DaQ - Annexe Q-4.1'!Q34 -> 0 | AD18: Volume en m3 | AJ18: 0 | AK18: ='Modèle DaQ - Annexe Q-4.1'!R34 -> 0 | AL18: ='Modèle DaQ - Annexe Q-4.1'!S34 -> 0 | AM18: ='Modèle DaQ - Annexe Q-4.1'!T34 -> 0 | AN18: ='Modèle DaQ - Annexe Q-4.1'!U34 -> 0 | AO18: ='Modèle DaQ - Annexe Q-4.1'!V34 -> 0 | AR18: Volume en m3 | AX18: =AO18 -> 0 | AY18: ='Modèle DaQ - Annexe Q-4.1'!W34 -> 0 | AZ18: ='Modèle DaQ - Annexe Q-4.1'!X34 -> 0 | BA18: ='Modèle DaQ - Annexe Q-4.1'!Y34 -> 0 | BB18: ='Modèle DaQ - Annexe Q-4.1'!Z34 -> 0 | BC18: ='Modèle DaQ - Annexe Q-4.1'!AA34 -> 0 | BF18: Volume en m3 | BL18: =BC18 -> 0 | BM18: ='Modèle DaQ - Annexe Q-4.1'!AB34 -> 0 | BN18: ='Modèle DaQ - Annexe Q-4.1'!AC34 -> 0 | BO18: ='Modèle DaQ - Annexe Q-4.1'!AD34 -> 0 | BP18: ='Modèle DaQ - Annexe Q-4.1'!AE34 -> 0 | BQ18: ='Modèle DaQ - Annexe Q-4.1'!AF34 -> 0 | BT18: Volume en m3 | BZ18: =BQ18 -> 0 | CA18: ='Modèle DaQ - Annexe Q-4.1'!AG34 -> 0 | CB18: ='Modèle DaQ - Annexe Q-4.1'!AH34 -> 0 | CC18: ='Modèle DaQ - Annexe Q-4.1'!AI34 -> 0 | CD18: ='Modèle DaQ - Annexe Q-4.1'!AJ34 -> 0 | CE18: ='Modèle DaQ - Annexe Q-4.1'!AK34 -> 0 | CH18: Volume en m3 | CN18: =CE18 -> 0 | CO18: ='Modèle DaQ - Annexe Q-4.1'!AL34 -> 0 | CP18: ='Modèle DaQ - Annexe Q-4.1'!AM34 -> 0 | CQ18: ='Modèle DaQ - Annexe Q-4.1'!AN34 -> 0 | CR18: ='Modèle DaQ - Annexe Q-4.1'!AO34 -> 0 | CS18: ='Modèle DaQ - Annexe Q-4.1'!AP34 -> 0 | CV18: Volume en m3 | DB18: =CS18 -> 0 | DC18: ='Modèle DaQ - Annexe Q-4.1'!AQ34 -> 0 | DD18: ='Modèle DaQ - Annexe Q-4.1'!AR34 -> 0 | DE18: ='Modèle DaQ - Annexe Q-4.1'!AS34 -> 0 | DF18: ='Modèle DaQ - Annexe Q-4.1'!AT34 -> 0 | DG18: ='Modèle DaQ - Annexe Q-4.1'!AU34 -> 0
B20: Frais de conduite - Base | E20: =SUM(H20:DG20)-V20-AJ20-AX20-BL20-BZ20-CN20-DB20 -> 1,165,681 | H20: ='Modèle DaQ - Annexe Q-4.1'!G40 -> 1,165,681 | I20: ='Modèle DaQ - Annexe Q-4.1'!H40 -> 0 | J20: ='Modèle DaQ - Annexe Q-4.1'!I40 -> 0 | K20: ='Modèle DaQ - Annexe Q-4.1'!J40 -> 0 | L20: ='Modèle DaQ - Annexe Q-4.1'!K40 -> 0 | M20: ='Modèle DaQ - Annexe Q-4.1'!L40 -> 0 | P20: =B20 -> Frais de conduite - Base | V20: =M20 -> 0 | W20: ='Modèle DaQ - Annexe Q-4.1'!M40 -> 0 | X20: ='Modèle DaQ - Annexe Q-4.1'!N40 -> 0 | Y20: ='Modèle DaQ - Annexe Q-4.1'!O40 -> 0 | Z20: ='Modèle DaQ - Annexe Q-4.1'!P40 -> 0 | AA20: ='Modèle DaQ - Annexe Q-4.1'!Q40 -> 0 | AD20: =P20 -> Frais de conduite - Base | AJ20: =AA20 -> 0 | AK20: ='Modèle DaQ - Annexe Q-4.1'!R40 -> 0 | AL20: ='Modèle DaQ - Annexe Q-4.1'!S40 -> 0 | AM20: ='Modèle DaQ - Annexe Q-4.1'!T40 -> 0 | AN20: ='Modèle DaQ - Annexe Q-4.1'!U40 -> 0 | AO20: ='Modèle DaQ - Annexe Q-4.1'!V40 -> 0 | AR20: =AD20 -> Frais de conduite - Base | AX20: =AO20 -> 0 | AY20: ='Modèle DaQ - Annexe Q-4.1'!W40 -> 0 | AZ20: ='Modèle DaQ - Annexe Q-4.1'!X40 -> 0 | BA20: ='Modèle DaQ - Annexe Q-4.1'!Y40 -> 0 | BB20: ='Modèle DaQ - Annexe Q-4.1'!Z40 -> 0 | BC20: ='Modèle DaQ - Annexe Q-4.1'!AA40 -> 0 | BF20: =AR20 -> Frais de conduite - Base | BL20: =BC20 -> 0 | BM20: ='Modèle DaQ - Annexe Q-4.1'!AB40 -> 0 | BN20: ='Modèle DaQ - Annexe Q-4.1'!AC40 -> 0 | BO20: ='Modèle DaQ - Annexe Q-4.1'!AD40 -> 0 | BP20: ='Modèle DaQ - Annexe Q-4.1'!AE40 -> 0 | BQ20: ='Modèle DaQ - Annexe Q-4.1'!AF40 -> 0 | BT20: =BF20 -> Frais de conduite - Base | BZ20: =BQ20 -> 0 | CA20: ='Modèle DaQ - Annexe Q-4.1'!AG40 -> 0 | CB20: ='Modèle DaQ - Annexe Q-4.1'!AH40 -> 0 | CC20: ='Modèle DaQ - Annexe Q-4.1'!AI40 -> 0 | CD20: ='Modèle DaQ - Annexe Q-4.1'!AJ40 -> 0 | CE20: ='Modèle DaQ - Annexe Q-4.1'!AK40 -> 0 | CH20: =BT20 -> Frais de conduite - Base | CN20: =CE20 -> 0 | CO20: ='Modèle DaQ - Annexe Q-4.1'!AL40 -> 0 | CP20: ='Modèle DaQ - Annexe Q-4.1'!AM40 -> 0 | CQ20: ='Modèle DaQ - Annexe Q-4.1'!AN40 -> 0 | CR20: ='Modèle DaQ - Annexe Q-4.1'!AO40 -> 0 | CS20: ='Modèle DaQ - Annexe Q-4.1'!AP40 -> 0 | CV20: =CH20 -> Frais de conduite - Base | DB20: =CS20 -> 0 | DC20: ='Modèle DaQ - Annexe Q-4.1'!AQ40 -> 0 | DD20: ='Modèle DaQ - Annexe Q-4.1'!AR40 -> 0 | DE20: ='Modèle DaQ - Annexe Q-4.1'!AS40 -> 0 | DF20: ='Modèle DaQ - Annexe Q-4.1'!AT40 -> 0 | DG20: ='Modèle DaQ - Annexe Q-4.1'!AU40 -> 0
B21: Frais de conduite - Frais entrepreneurs | E21: 195,420 | H21: ='Modèle DaQ - Annexe Q-4.1'!G41 -> 195,420 | I21: ='Modèle DaQ - Annexe Q-4.1'!H41 -> 0 | J21: ='Modèle DaQ - Annexe Q-4.1'!I41 -> 0 | K21: ='Modèle DaQ - Annexe Q-4.1'!J41 -> 0 | L21: ='Modèle DaQ - Annexe Q-4.1'!K41 -> 0 | M21: ='Modèle DaQ - Annexe Q-4.1'!L41 -> 0 | P21: Frais de conduite - Frais entrepreneurs | V21: 0 | W21: ='Modèle DaQ - Annexe Q-4.1'!M41 -> 0 | X21: ='Modèle DaQ - Annexe Q-4.1'!N41 -> 0 | Y21: ='Modèle DaQ - Annexe Q-4.1'!O41 -> 0 | Z21: ='Modèle DaQ - Annexe Q-4.1'!P41 -> 0 | AA21: ='Modèle DaQ - Annexe Q-4.1'!Q41 -> 0 | AD21: Frais de conduite - Frais entrepreneurs | AJ21: 0 | AK21: ='Modèle DaQ - Annexe Q-4.1'!R41 -> 0 | AL21: ='Modèle DaQ - Annexe Q-4.1'!S41 -> 0 | AM21: ='Modèle DaQ - Annexe Q-4.1'!T41 -> 0 | AN21: ='Modèle DaQ - Annexe Q-4.1'!U41 -> 0 | AO21: ='Modèle DaQ - Annexe Q-4.1'!V41 -> 0 | AR21: Frais de conduite - Frais entrepreneurs | AX21: 0 | AY21: ='Modèle DaQ - Annexe Q-4.1'!W41 -> 0 | AZ21: ='Modèle DaQ - Annexe Q-4.1'!X41 -> 0 | BA21: ='Modèle DaQ - Annexe Q-4.1'!Y41 -> 0 | BB21: ='Modèle DaQ - Annexe Q-4.1'!Z41 -> 0 | BC21: ='Modèle DaQ - Annexe Q-4.1'!AA41 -> 0 | BF21: Frais de conduite - Frais entrepreneurs | BL21: 0 | BM21: ='Modèle DaQ - Annexe Q-4.1'!AB41 -> 0 | BN21: ='Modèle DaQ - Annexe Q-4.1'!AC41 -> 0 | BO21: ='Modèle DaQ - Annexe Q-4.1'!AD41 -> 0 | BP21: ='Modèle DaQ - Annexe Q-4.1'!AE41 -> 0 | BQ21: ='Modèle DaQ - Annexe Q-4.1'!AF41 -> 0 | BT21: Frais de conduite - Frais entrepreneurs | BZ21: 0 | CA21: ='Modèle DaQ - Annexe Q-4.1'!AG41 -> 0 | CB21: ='Modèle DaQ - Annexe Q-4.1'!AH41 -> 0 | CC21: ='Modèle DaQ - Annexe Q-4.1'!AI41 -> 0 | CD21: ='Modèle DaQ - Annexe Q-4.1'!AJ41 -> 0 | CE21: ='Modèle DaQ - Annexe Q-4.1'!AK41 -> 0 | CH21: Frais de conduite - Frais entrepreneurs | CN21: 0 | CO21: ='Modèle DaQ - Annexe Q-4.1'!AL41 -> 0 | CP21: ='Modèle DaQ - Annexe Q-4.1'!AM41 -> 0 | CQ21: ='Modèle DaQ - Annexe Q-4.1'!AN41 -> 0 | CR21: ='Modèle DaQ - Annexe Q-4.1'!AO41 -> 0 | CS21: ='Modèle DaQ - Annexe Q-4.1'!AP41 -> 0 | CV21: Frais de conduite - Frais entrepreneurs | DB21: 0 | DC21: ='Modèle DaQ - Annexe Q-4.1'!AQ41 -> 0 | DD21: ='Modèle DaQ - Annexe Q-4.1'!AR41 -> 0 | DE21: ='Modèle DaQ - Annexe Q-4.1'!AS41 -> 0 | DF21: ='Modèle DaQ - Annexe Q-4.1'!AT41 -> 0 | DG21: ='Modèle DaQ - Annexe Q-4.1'!AU41 -> 0
B22: Frais de conduites | E22: =SUM(H22:DG22)-V22-AJ22-AX22-BL22-BZ22-CN22-DB22 -> 1,361,101 | H22: ='Modèle DaQ - Annexe Q-4.1'!G42 -> 1,361,101 | I22: ='Modèle DaQ - Annexe Q-4.1'!H42 -> 0 | J22: ='Modèle DaQ - Annexe Q-4.1'!I42 -> 0 | K22: ='Modèle DaQ - Annexe Q-4.1'!J42 -> 0 | L22: ='Modèle DaQ - Annexe Q-4.1'!K42 -> 0 | M22: ='Modèle DaQ - Annexe Q-4.1'!L42 -> 0 | P22: =B22 -> Frais de conduites | V22: =M22 -> 0 | W22: ='Modèle DaQ - Annexe Q-4.1'!M42 -> 0 | X22: ='Modèle DaQ - Annexe Q-4.1'!N42 -> 0 | Y22: ='Modèle DaQ - Annexe Q-4.1'!O42 -> 0 | Z22: ='Modèle DaQ - Annexe Q-4.1'!P42 -> 0 | AA22: ='Modèle DaQ - Annexe Q-4.1'!Q42 -> 0 | AD22: =P22 -> Frais de conduites | AJ22: =AA22 -> 0 | AK22: ='Modèle DaQ - Annexe Q-4.1'!R42 -> 0 | AL22: ='Modèle DaQ - Annexe Q-4.1'!S42 -> 0 | AM22: ='Modèle DaQ - Annexe Q-4.1'!T42 -> 0 | AN22: ='Modèle DaQ - Annexe Q-4.1'!U42 -> 0 | AO22: ='Modèle DaQ - Annexe Q-4.1'!V42 -> 0 | AR22: =AD22 -> Frais de conduites | AX22: =AO22 -> 0 | AY22: ='Modèle DaQ - Annexe Q-4.1'!W42 -> 0 | AZ22: ='Modèle DaQ - Annexe Q-4.1'!X42 -> 0 | BA22: ='Modèle DaQ - Annexe Q-4.1'!Y42 -> 0 | BB22: ='Modèle DaQ - Annexe Q-4.1'!Z42 -> 0 | BC22: ='Modèle DaQ - Annexe Q-4.1'!AA42 -> 0 | BF22: =AR22 -> Frais de conduites | BL22: =BC22 -> 0 | BM22: ='Modèle DaQ - Annexe Q-4.1'!AB42 -> 0 | BN22: ='Modèle DaQ - Annexe Q-4.1'!AC42 -> 0 | BO22: ='Modèle DaQ - Annexe Q-4.1'!AD42 -> 0 | BP22: ='Modèle DaQ - Annexe Q-4.1'!AE42 -> 0 | BQ22: ='Modèle DaQ - Annexe Q-4.1'!AF42 -> 0 | BT22: =BF22 -> Frais de conduites | BZ22: =BQ22 -> 0 | CA22: ='Modèle DaQ - Annexe Q-4.1'!AG42 -> 0 | CB22: ='Modèle DaQ - Annexe Q-4.1'!AH42 -> 0 | CC22: ='Modèle DaQ - Annexe Q-4.1'!AI42 -> 0 | CD22: ='Modèle DaQ - Annexe Q-4.1'!AJ42 -> 0 | CE22: ='Modèle DaQ - Annexe Q-4.1'!AK42 -> 0 | CH22: =BT22 -> Frais de conduites | CN22: =CE22 -> 0 | CO22: ='Modèle DaQ - Annexe Q-4.1'!AL42 -> 0 | CP22: ='Modèle DaQ - Annexe Q-4.1'!AM42 -> 0 | CQ22: ='Modèle DaQ - Annexe Q-4.1'!AN42 -> 0 | CR22: ='Modèle DaQ - Annexe Q-4.1'!AO42 -> 0 | CS22: ='Modèle DaQ - Annexe Q-4.1'!AP42 -> 0 | CV22: =CH22 -> Frais de conduites | DB22: =CS22 -> 0 | DC22: ='Modèle DaQ - Annexe Q-4.1'!AQ42 -> 0 | DD22: ='Modèle DaQ - Annexe Q-4.1'!AR42 -> 0 | DE22: ='Modèle DaQ - Annexe Q-4.1'!AS42 -> 0 | DF22: ='Modèle DaQ - Annexe Q-4.1'!AT42 -> 0 | DG22: ='Modèle DaQ - Annexe Q-4.1'!AU42 -> 0
B23: Frais de branchements - Base | E23: =SUM(H23:DG23)-V23-AJ23-AX23-BL23-BZ23-CN23-DB23 -> 0 | H23: ='Modèle DaQ - Annexe Q-4.1'!G44 -> 0 | I23: ='Modèle DaQ - Annexe Q-4.1'!H44 -> 0 | J23: ='Modèle DaQ - Annexe Q-4.1'!I44 -> 0 | K23: ='Modèle DaQ - Annexe Q-4.1'!J44 -> 0 | L23: ='Modèle DaQ - Annexe Q-4.1'!K44 -> 0 | M23: ='Modèle DaQ - Annexe Q-4.1'!L44 -> 0 | P23: =B23 -> Frais de branchements - Base | V23: =M23 -> 0 | W23: ='Modèle DaQ - Annexe Q-4.1'!M44 -> 0 | X23: ='Modèle DaQ - Annexe Q-4.1'!N44 -> 0 | Y23: ='Modèle DaQ - Annexe Q-4.1'!O44 -> 0 | Z23: ='Modèle DaQ - Annexe Q-4.1'!P44 -> 0 | AA23: ='Modèle DaQ - Annexe Q-4.1'!Q44 -> 0 | AD23: =P23 -> Frais de branchements - Base | AJ23: =AA23 -> 0 | AK23: ='Modèle DaQ - Annexe Q-4.1'!R44 -> 0 | AL23: ='Modèle DaQ - Annexe Q-4.1'!S44 -> 0 | AM23: ='Modèle DaQ - Annexe Q-4.1'!T44 -> 0 | AN23: ='Modèle DaQ - Annexe Q-4.1'!U44 -> 0 | AO23: ='Modèle DaQ - Annexe Q-4.1'!V44 -> 0 | AR23: =AD23 -> Frais de branchements - Base | AX23: =AO23 -> 0 | AY23: ='Modèle DaQ - Annexe Q-4.1'!W44 -> 0 | AZ23: ='Modèle DaQ - Annexe Q-4.1'!X44 -> 0 | BA23: ='Modèle DaQ - Annexe Q-4.1'!Y44 -> 0 | BB23: ='Modèle DaQ - Annexe Q-4.1'!Z44 -> 0 | BC23: ='Modèle DaQ - Annexe Q-4.1'!AA44 -> 0 | BF23: =AR23 -> Frais de branchements - Base | BL23: =BC23 -> 0 | BM23: ='Modèle DaQ - Annexe Q-4.1'!AB44 -> 0 | BN23: ='Modèle DaQ - Annexe Q-4.1'!AC44 -> 0 | BO23: ='Modèle DaQ - Annexe Q-4.1'!AD44 -> 0 | BP23: ='Modèle DaQ - Annexe Q-4.1'!AE44 -> 0 | BQ23: ='Modèle DaQ - Annexe Q-4.1'!AF44 -> 0 | BT23: =BF23 -> Frais de branchements - Base | BZ23: =BQ23 -> 0 | CA23: ='Modèle DaQ - Annexe Q-4.1'!AG44 -> 0 | CB23: ='Modèle DaQ - Annexe Q-4.1'!AH44 -> 0 | CC23: ='Modèle DaQ - Annexe Q-4.1'!AI44 -> 0 | CD23: ='Modèle DaQ - Annexe Q-4.1'!AJ44 -> 0 | CE23: ='Modèle DaQ - Annexe Q-4.1'!AK44 -> 0 | CH23: =BT23 -> Frais de branchements - Base | CN23: =CE23 -> 0 | CO23: ='Modèle DaQ - Annexe Q-4.1'!AL44 -> 0 | CP23: ='Modèle DaQ - Annexe Q-4.1'!AM44 -> 0 | CQ23: ='Modèle DaQ - Annexe Q-4.1'!AN44 -> 0 | CR23: ='Modèle DaQ - Annexe Q-4.1'!AO44 -> 0 | CS23: ='Modèle DaQ - Annexe Q-4.1'!AP44 -> 0 | CV23: =CH23 -> Frais de branchements - Base | DB23: =CS23 -> 0 | DC23: ='Modèle DaQ - Annexe Q-4.1'!AQ44 -> 0 | DD23: ='Modèle DaQ - Annexe Q-4.1'!AR44 -> 0 | DE23: ='Modèle DaQ - Annexe Q-4.1'!AS44 -> 0 | DF23: ='Modèle DaQ - Annexe Q-4.1'!AT44 -> 0 | DG23: ='Modèle DaQ - Annexe Q-4.1'!AU44 -> 0
B24: Frais de branchements - Frais entrepreneurs | E24: 0 | H24: ='Modèle DaQ - Annexe Q-4.1'!G45 -> 0 | I24: ='Modèle DaQ - Annexe Q-4.1'!H45 -> 0 | J24: ='Modèle DaQ - Annexe Q-4.1'!I45 -> 0 | K24: ='Modèle DaQ - Annexe Q-4.1'!J45 -> 0 | L24: ='Modèle DaQ - Annexe Q-4.1'!K45 -> 0 | M24: ='Modèle DaQ - Annexe Q-4.1'!L45 -> 0 | P24: Frais de branchements - Frais entrepreneurs | V24: 0 | W24: ='Modèle DaQ - Annexe Q-4.1'!M45 -> 0 | X24: ='Modèle DaQ - Annexe Q-4.1'!N45 -> 0 | Y24: ='Modèle DaQ - Annexe Q-4.1'!O45 -> 0 | Z24: ='Modèle DaQ - Annexe Q-4.1'!P45 -> 0 | AA24: ='Modèle DaQ - Annexe Q-4.1'!Q45 -> 0 | AD24: Frais de branchements - Frais entrepreneurs | AJ24: 0 | AK24: ='Modèle DaQ - Annexe Q-4.1'!R45 -> 0 | AL24: ='Modèle DaQ - Annexe Q-4.1'!S45 -> 0 | AM24: ='Modèle DaQ - Annexe Q-4.1'!T45 -> 0 | AN24: ='Modèle DaQ - Annexe Q-4.1'!U45 -> 0 | AO24: ='Modèle DaQ - Annexe Q-4.1'!V45 -> 0 | AR24: Frais de branchements - Frais entrepreneurs | AX24: 0 | AY24: ='Modèle DaQ - Annexe Q-4.1'!W45 -> 0 | AZ24: ='Modèle DaQ - Annexe Q-4.1'!X45 -> 0 | BA24: ='Modèle DaQ - Annexe Q-4.1'!Y45 -> 0 | BB24: ='Modèle DaQ - Annexe Q-4.1'!Z45 -> 0 | BC24: ='Modèle DaQ - Annexe Q-4.1'!AA45 -> 0 | BF24: Frais de branchements - Frais entrepreneurs | BL24: 0 | BM24: ='Modèle DaQ - Annexe Q-4.1'!AB45 -> 0 | BN24: ='Modèle DaQ - Annexe Q-4.1'!AC45 -> 0 | BO24: ='Modèle DaQ - Annexe Q-4.1'!AD45 -> 0 | BP24: ='Modèle DaQ - Annexe Q-4.1'!AE45 -> 0 | BQ24: ='Modèle DaQ - Annexe Q-4.1'!AF45 -> 0 | BT24: Frais de branchements - Frais entrepreneurs | BZ24: 0 | CA24: ='Modèle DaQ - Annexe Q-4.1'!AG45 -> 0 | CB24: ='Modèle DaQ - Annexe Q-4.1'!AH45 -> 0 | CC24: ='Modèle DaQ - Annexe Q-4.1'!AI45 -> 0 | CD24: ='Modèle DaQ - Annexe Q-4.1'!AJ45 -> 0 | CE24: ='Modèle DaQ - Annexe Q-4.1'!AK45 -> 0 | CH24: Frais de branchements - Frais entrepreneurs | CN24: 0 | CO24: ='Modèle DaQ - Annexe Q-4.1'!AL45 -> 0 | CP24: ='Modèle DaQ - Annexe Q-4.1'!AM45 -> 0 | CQ24: ='Modèle DaQ - Annexe Q-4.1'!AN45 -> 0 | CR24: ='Modèle DaQ - Annexe Q-4.1'!AO45 -> 0 | CS24: ='Modèle DaQ - Annexe Q-4.1'!AP45 -> 0 | CV24: Frais de branchements - Frais entrepreneurs | DB24: 0 | DC24: ='Modèle DaQ - Annexe Q-4.1'!AQ45 -> 0 | DD24: ='Modèle DaQ - Annexe Q-4.1'!AR45 -> 0 | DE24: ='Modèle DaQ - Annexe Q-4.1'!AS45 -> 0 | DF24: ='Modèle DaQ - Annexe Q-4.1'!AT45 -> 0 | DG24: ='Modèle DaQ - Annexe Q-4.1'!AU45 -> 0
B25: Frais de branchements - Coûts de compteur(s) | E25: 0 | H25: ='Modèle DaQ - Annexe Q-4.1'!G46 -> 0 | I25: ='Modèle DaQ - Annexe Q-4.1'!H46 -> 0 | J25: ='Modèle DaQ - Annexe Q-4.1'!I46 -> 0 | K25: ='Modèle DaQ - Annexe Q-4.1'!J46 -> 0 | L25: ='Modèle DaQ - Annexe Q-4.1'!K46 -> 0 | M25: ='Modèle DaQ - Annexe Q-4.1'!L46 -> 0 | P25: Frais de branchements - Coûts de compteur(s) | V25: 0 | W25: ='Modèle DaQ - Annexe Q-4.1'!M46 -> 0 | X25: ='Modèle DaQ - Annexe Q-4.1'!N46 -> 0 | Y25: ='Modèle DaQ - Annexe Q-4.1'!O46 -> 0 | Z25: ='Modèle DaQ - Annexe Q-4.1'!P46 -> 0 | AA25: ='Modèle DaQ - Annexe Q-4.1'!Q46 -> 0 | AD25: Frais de branchements - Coûts de compteur(s) | AJ25: 0 | AK25: ='Modèle DaQ - Annexe Q-4.1'!R46 -> 0 | AL25: ='Modèle DaQ - Annexe Q-4.1'!S46 -> 0 | AM25: ='Modèle DaQ - Annexe Q-4.1'!T46 -> 0 | AN25: ='Modèle DaQ - Annexe Q-4.1'!U46 -> 0 | AO25: ='Modèle DaQ - Annexe Q-4.1'!V46 -> 0 | AR25: Frais de branchements - Coûts de compteur(s) | AX25: 0 | AY25: ='Modèle DaQ - Annexe Q-4.1'!W46 -> 0 | AZ25: ='Modèle DaQ - Annexe Q-4.1'!X46 -> 0 | BA25: ='Modèle DaQ - Annexe Q-4.1'!Y46 -> 0 | BB25: ='Modèle DaQ - Annexe Q-4.1'!Z46 -> 0 | BC25: ='Modèle DaQ - Annexe Q-4.1'!AA46 -> 0 | BF25: Frais de branchements - Coûts de compteur(s) | BL25: 0 | BM25: ='Modèle DaQ - Annexe Q-4.1'!AB46 -> 0 | BN25: ='Modèle DaQ - Annexe Q-4.1'!AC46 -> 0 | BO25: ='Modèle DaQ - Annexe Q-4.1'!AD46 -> 0 | BP25: ='Modèle DaQ - Annexe Q-4.1'!AE46 -> 0 | BQ25: ='Modèle DaQ - Annexe Q-4.1'!AF46 -> 0 | BT25: Frais de branchements - Coûts de compteur(s) | BZ25: 0 | CA25: ='Modèle DaQ - Annexe Q-4.1'!AG46 -> 0 | CB25: ='Modèle DaQ - Annexe Q-4.1'!AH46 -> 0 | CC25: ='Modèle DaQ - Annexe Q-4.1'!AI46 -> 0 | CD25: ='Modèle DaQ - Annexe Q-4.1'!AJ46 -> 0 | CE25: ='Modèle DaQ - Annexe Q-4.1'!AK46 -> 0 | CH25: Frais de branchements - Coûts de compteur(s) | CN25: 0 | CO25: ='Modèle DaQ - Annexe Q-4.1'!AL46 -> 0 | CP25: ='Modèle DaQ - Annexe Q-4.1'!AM46 -> 0 | CQ25: ='Modèle DaQ - Annexe Q-4.1'!AN46 -> 0 | CR25: ='Modèle DaQ - Annexe Q-4.1'!AO46 -> 0 | CS25: ='Modèle DaQ - Annexe Q-4.1'!AP46 -> 0 | CV25: Frais de branchements - Coûts de compteur(s) | DB25: 0 | DC25: ='Modèle DaQ - Annexe Q-4.1'!AQ46 -> 0 | DD25: ='Modèle DaQ - Annexe Q-4.1'!AR46 -> 0 | DE25: ='Modèle DaQ - Annexe Q-4.1'!AS46 -> 0 | DF25: ='Modèle DaQ - Annexe Q-4.1'!AT46 -> 0 | DG25: ='Modèle DaQ - Annexe Q-4.1'!AU46 -> 0
B26: Frais de branchements | E26: =SUM(H26:DG26)-V26-AJ26-AX26-BL26-BZ26-CN26-DB26 -> 0 | H26: ='Modèle DaQ - Annexe Q-4.1'!G47 -> 0 | I26: ='Modèle DaQ - Annexe Q-4.1'!H47 -> 0 | J26: ='Modèle DaQ - Annexe Q-4.1'!I47 -> 0 | K26: ='Modèle DaQ - Annexe Q-4.1'!J47 -> 0 | L26: ='Modèle DaQ - Annexe Q-4.1'!K47 -> 0 | M26: ='Modèle DaQ - Annexe Q-4.1'!L47 -> 0 | P26: =B26 -> Frais de branchements | V26: =M26 -> 0 | W26: ='Modèle DaQ - Annexe Q-4.1'!M47 -> 0 | X26: ='Modèle DaQ - Annexe Q-4.1'!N47 -> 0 | Y26: ='Modèle DaQ - Annexe Q-4.1'!O47 -> 0 | Z26: ='Modèle DaQ - Annexe Q-4.1'!P47 -> 0 | AA26: ='Modèle DaQ - Annexe Q-4.1'!Q47 -> 0 | AD26: =P26 -> Frais de branchements | AJ26: =AA26 -> 0 | AK26: ='Modèle DaQ - Annexe Q-4.1'!R47 -> 0 | AL26: ='Modèle DaQ - Annexe Q-4.1'!S47 -> 0 | AM26: ='Modèle DaQ - Annexe Q-4.1'!T47 -> 0 | AN26: ='Modèle DaQ - Annexe Q-4.1'!U47 -> 0 | AO26: ='Modèle DaQ - Annexe Q-4.1'!V47 -> 0 | AR26: =AD26 -> Frais de branchements | AX26: =AO26 -> 0 | AY26: ='Modèle DaQ - Annexe Q-4.1'!W47 -> 0 | AZ26: ='Modèle DaQ - Annexe Q-4.1'!X47 -> 0 | BA26: ='Modèle DaQ - Annexe Q-4.1'!Y47 -> 0 | BB26: ='Modèle DaQ - Annexe Q-4.1'!Z47 -> 0 | BC26: ='Modèle DaQ - Annexe Q-4.1'!AA47 -> 0 | BF26: =AR26 -> Frais de branchements | BL26: =BC26 -> 0 | BM26: ='Modèle DaQ - Annexe Q-4.1'!AB47 -> 0 | BN26: ='Modèle DaQ - Annexe Q-4.1'!AC47 -> 0 | BO26: ='Modèle DaQ - Annexe Q-4.1'!AD47 -> 0 | BP26: ='Modèle DaQ - Annexe Q-4.1'!AE47 -> 0 | BQ26: ='Modèle DaQ - Annexe Q-4.1'!AF47 -> 0 | BT26: =BF26 -> Frais de branchements | BZ26: =BQ26 -> 0 | CA26: ='Modèle DaQ - Annexe Q-4.1'!AG47 -> 0 | CB26: ='Modèle DaQ - Annexe Q-4.1'!AH47 -> 0 | CC26: ='Modèle DaQ - Annexe Q-4.1'!AI47 -> 0 | CD26: ='Modèle DaQ - Annexe Q-4.1'!AJ47 -> 0 | CE26: ='Modèle DaQ - Annexe Q-4.1'!AK47 -> 0 | CH26: =BT26 -> Frais de branchements | CN26: =CE26 -> 0 | CO26: ='Modèle DaQ - Annexe Q-4.1'!AL47 -> 0 | CP26: ='Modèle DaQ - Annexe Q-4.1'!AM47 -> 0 | CQ26: ='Modèle DaQ - Annexe Q-4.1'!AN47 -> 0 | CR26: ='Modèle DaQ - Annexe Q-4.1'!AO47 -> 0 | CS26: ='Modèle DaQ - Annexe Q-4.1'!AP47 -> 0 | CV26: =CH26 -> Frais de branchements | DB26: =CS26 -> 0 | DC26: ='Modèle DaQ - Annexe Q-4.1'!AQ47 -> 0 | DD26: ='Modèle DaQ - Annexe Q-4.1'!AR47 -> 0 | DE26: ='Modèle DaQ - Annexe Q-4.1'!AS47 -> 0 | DF26: ='Modèle DaQ - Annexe Q-4.1'!AT47 -> 0 | DG26: ='Modèle DaQ - Annexe Q-4.1'!AU47 -> 0
B27: Frais UMQ | E27: 0 | H27: ='Modèle DaQ - Annexe Q-4.1'!G49 -> 0 | I27: ='Modèle DaQ - Annexe Q-4.1'!H49 -> 0 | J27: ='Modèle DaQ - Annexe Q-4.1'!I49 -> 0 | K27: ='Modèle DaQ - Annexe Q-4.1'!J49 -> 0 | L27: ='Modèle DaQ - Annexe Q-4.1'!K49 -> 0 | M27: ='Modèle DaQ - Annexe Q-4.1'!L49 -> 0 | P27: Frais UMQ | V27: =M27 -> 0 | W27: ='Modèle DaQ - Annexe Q-4.1'!M49 -> 0 | X27: ='Modèle DaQ - Annexe Q-4.1'!N49 -> 0 | Y27: ='Modèle DaQ - Annexe Q-4.1'!O49 -> 0 | Z27: ='Modèle DaQ - Annexe Q-4.1'!P49 -> 0 | AA27: ='Modèle DaQ - Annexe Q-4.1'!Q49 -> 0 | AD27: Frais UMQ | AJ27: =AA27 -> 0 | AK27: ='Modèle DaQ - Annexe Q-4.1'!R49 -> 0 | AL27: ='Modèle DaQ - Annexe Q-4.1'!S49 -> 0 | AM27: ='Modèle DaQ - Annexe Q-4.1'!T49 -> 0 | AN27: ='Modèle DaQ - Annexe Q-4.1'!U49 -> 0 | AO27: ='Modèle DaQ - Annexe Q-4.1'!V49 -> 0 | AR27: Frais UMQ | AX27: 0 | AY27: ='Modèle DaQ - Annexe Q-4.1'!W49 -> 0 | AZ27: ='Modèle DaQ - Annexe Q-4.1'!X49 -> 0 | BA27: ='Modèle DaQ - Annexe Q-4.1'!Y49 -> 0 | BB27: ='Modèle DaQ - Annexe Q-4.1'!Z49 -> 0 | BC27: ='Modèle DaQ - Annexe Q-4.1'!AA49 -> 0 | BF27: Frais UMQ | BL27: 0 | BM27: ='Modèle DaQ - Annexe Q-4.1'!AB49 -> 0 | BN27: ='Modèle DaQ - Annexe Q-4.1'!AC49 -> 0 | BO27: ='Modèle DaQ - Annexe Q-4.1'!AD49 -> 0 | BP27: ='Modèle DaQ - Annexe Q-4.1'!AE49 -> 0 | BQ27: ='Modèle DaQ - Annexe Q-4.1'!AF49 -> 0 | BT27: Frais UMQ | BZ27: 0 | CA27: ='Modèle DaQ - Annexe Q-4.1'!AG49 -> 0 | CB27: ='Modèle DaQ - Annexe Q-4.1'!AH49 -> 0 | CC27: ='Modèle DaQ - Annexe Q-4.1'!AI49 -> 0 | CD27: ='Modèle DaQ - Annexe Q-4.1'!AJ49 -> 0 | CE27: ='Modèle DaQ - Annexe Q-4.1'!AK49 -> 0 | CH27: Frais UMQ | CN27: =CE27 -> 0 | CO27: ='Modèle DaQ - Annexe Q-4.1'!AL49 -> 0 | CP27: ='Modèle DaQ - Annexe Q-4.1'!AM49 -> 0 | CQ27: ='Modèle DaQ - Annexe Q-4.1'!AN49 -> 0 | CR27: ='Modèle DaQ - Annexe Q-4.1'!AO49 -> 0 | CS27: ='Modèle DaQ - Annexe Q-4.1'!AP49 -> 0 | CV27: Frais UMQ | DB27: 0 | DC27: ='Modèle DaQ - Annexe Q-4.1'!AQ49 -> 0 | DD27: ='Modèle DaQ - Annexe Q-4.1'!AR49 -> 0 | DE27: ='Modèle DaQ - Annexe Q-4.1'!AS49 -> 0 | DF27: ='Modèle DaQ - Annexe Q-4.1'!AT49 -> 0 | DG27: ='Modèle DaQ - Annexe Q-4.1'!AU49 -> 0
B28: Autres coûts de projet | E28: 0 | H28: 0 | I28: 0 | J28: 0 | K28: 0 | L28: 0 | M28: 0 | P28: Autres coûts de projet | V28: 0 | W28: 0 | X28: 0 | Y28: 0 | Z28: 0 | AA28: 0 | AD28: Autres coûts de projet | AJ28: 0 | AK28: 0 | AL28: 0 | AM28: 0 | AN28: 0 | AO28: 0 | AR28: Autres coûts de projet | AX28: 0 | AY28: 0 | AZ28: 0 | BA28: 0 | BB28: 0 | BC28: 0 | BF28: Autres coûts de projet | BL28: 0 | BM28: 0 | BN28: 0 | BO28: 0 | BP28: 0 | BQ28: 0 | BT28: Autres coûts de projet | BZ28: 0 | CA28: 0 | CB28: 0 | CC28: 0 | CD28: 0 | CE28: 0 | CH28: Autres coûts de projet | CN28: =CE28 -> 0 | CO28: 0 | CP28: 0 | CQ28: 0 | CR28: 0 | CS28: 0 | CV28: Autres coûts de projet | DB28: 0 | DC28: 0 | DD28: 0 | DE28: 0 | DF28: 0 | DG28: 0
B29: ="Actif non amortissable (terrain)" -> Actif non amortissable (terrain) | E29: =SUM(H29:DG29)-V29-AJ29-AX29-BL29-BZ29-CN29-DB29 -> 0 | H29: ='Modèle DaQ - Annexe Q-4.1'!G48 -> 0 | I29: ='Modèle DaQ - Annexe Q-4.1'!H48 -> 0 | J29: ='Modèle DaQ - Annexe Q-4.1'!I48 -> 0 | K29: ='Modèle DaQ - Annexe Q-4.1'!J48 -> 0 | L29: ='Modèle DaQ - Annexe Q-4.1'!K48 -> 0 | M29: ='Modèle DaQ - Annexe Q-4.1'!L48 -> 0 | P29: =B29 -> Actif non amortissable (terrain) | V29: =M29 -> 0 | W29: ='Modèle DaQ - Annexe Q-4.1'!M48 -> 0 | X29: ='Modèle DaQ - Annexe Q-4.1'!N48 -> 0 | Y29: ='Modèle DaQ - Annexe Q-4.1'!O48 -> 0 | Z29: ='Modèle DaQ - Annexe Q-4.1'!P48 -> 0 | AA29: ='Modèle DaQ - Annexe Q-4.1'!Q48 -> 0 | AD29: =P29 -> Actif non amortissable (terrain) | AJ29: =AA29 -> 0 | AK29: ='Modèle DaQ - Annexe Q-4.1'!R48 -> 0 | AL29: ='Modèle DaQ - Annexe Q-4.1'!S48 -> 0 | AM29: ='Modèle DaQ - Annexe Q-4.1'!T48 -> 0 | AN29: ='Modèle DaQ - Annexe Q-4.1'!U48 -> 0 | AO29: ='Modèle DaQ - Annexe Q-4.1'!V48 -> 0 | AR29: =AD29 -> Actif non amortissable (terrain) | AX29: =AO29 -> 0 | AY29: ='Modèle DaQ - Annexe Q-4.1'!W48 -> 0 | AZ29: ='Modèle DaQ - Annexe Q-4.1'!X48 -> 0 | BA29: ='Modèle DaQ - Annexe Q-4.1'!Y48 -> 0 | BB29: ='Modèle DaQ - Annexe Q-4.1'!Z48 -> 0 | BC29: ='Modèle DaQ - Annexe Q-4.1'!AA48 -> 0 | BF29: =AR29 -> Actif non amortissable (terrain) | BL29: =BC29 -> 0 | BM29: ='Modèle DaQ - Annexe Q-4.1'!AB48 -> 0 | BN29: ='Modèle DaQ - Annexe Q-4.1'!AC48 -> 0 | BO29: ='Modèle DaQ - Annexe Q-4.1'!AD48 -> 0 | BP29: ='Modèle DaQ - Annexe Q-4.1'!AE48 -> 0 | BQ29: ='Modèle DaQ - Annexe Q-4.1'!AF48 -> 0 | BT29: =BF29 -> Actif non amortissable (terrain) | BZ29: =BQ29 -> 0 | CA29: ='Modèle DaQ - Annexe Q-4.1'!AG48 -> 0 | CB29: ='Modèle DaQ - Annexe Q-4.1'!AH48 -> 0 | CC29: ='Modèle DaQ - Annexe Q-4.1'!AI48 -> 0 | CD29: ='Modèle DaQ - Annexe Q-4.1'!AJ48 -> 0 | CE29: ='Modèle DaQ - Annexe Q-4.1'!AK48 -> 0 | CH29: =BT29 -> Actif non amortissable (terrain) | CN29: =CE29 -> 0 | CO29: ='Modèle DaQ - Annexe Q-4.1'!AL48 -> 0 | CP29: ='Modèle DaQ - Annexe Q-4.1'!AM48 -> 0 | CQ29: ='Modèle DaQ - Annexe Q-4.1'!AN48 -> 0 | CR29: ='Modèle DaQ - Annexe Q-4.1'!AO48 -> 0 | CS29: ='Modèle DaQ - Annexe Q-4.1'!AP48 -> 0 | CV29: =CH29 -> Actif non amortissable (terrain) | DB29: =CS29 -> 0 | DC29: ='Modèle DaQ - Annexe Q-4.1'!AQ48 -> 0 | DD29: ='Modèle DaQ - Annexe Q-4.1'!AR48 -> 0 | DE29: ='Modèle DaQ - Annexe Q-4.1'!AS48 -> 0 | DF29: ='Modèle DaQ - Annexe Q-4.1'!AT48 -> 0 | DG29: ='Modèle DaQ - Annexe Q-4.1'!AU48 -> 0
B30: ="Frais généraux "&"("&FIXED(('Modèle DaQ - Annexe Q-4.1'!$E$11)*100,2,TRUE)&"% )" -> Frais généraux (14,53% ) | E30: 197,768 | H30: ='Modèle DaQ - Annexe Q-4.1'!G50 -> 197,768 | I30: ='Modèle DaQ - Annexe Q-4.1'!H50 -> 0 | J30: ='Modèle DaQ - Annexe Q-4.1'!I50 -> 0 | K30: ='Modèle DaQ - Annexe Q-4.1'!J50 -> 0 | L30: ='Modèle DaQ - Annexe Q-4.1'!K50 -> 0 | M30: ='Modèle DaQ - Annexe Q-4.1'!L50 -> 0 | P30: =$B$30 -> Frais généraux (14,53% ) | V30: 0 | W30: ='Modèle DaQ - Annexe Q-4.1'!M50 -> 0 | X30: ='Modèle DaQ - Annexe Q-4.1'!N50 -> 0 | Y30: ='Modèle DaQ - Annexe Q-4.1'!O50 -> 0 | Z30: ='Modèle DaQ - Annexe Q-4.1'!P50 -> 0 | AA30: ='Modèle DaQ - Annexe Q-4.1'!Q50 -> 0 | AD30: =$B$30 -> Frais généraux (14,53% ) | AJ30: 0 | AK30: ='Modèle DaQ - Annexe Q-4.1'!R50 -> 0 | AL30: ='Modèle DaQ - Annexe Q-4.1'!S50 -> 0 | AM30: ='Modèle DaQ - Annexe Q-4.1'!T50 -> 0 | AN30: ='Modèle DaQ - Annexe Q-4.1'!U50 -> 0 | AO30: ='Modèle DaQ - Annexe Q-4.1'!V50 -> 0 | AR30: =$B$30 -> Frais généraux (14,53% ) | AX30: 0 | AY30: ='Modèle DaQ - Annexe Q-4.1'!W50 -> 0 | AZ30: ='Modèle DaQ - Annexe Q-4.1'!X50 -> 0 | BA30: ='Modèle DaQ - Annexe Q-4.1'!Y50 -> 0 | BB30: ='Modèle DaQ - Annexe Q-4.1'!Z50 -> 0 | BC30: ='Modèle DaQ - Annexe Q-4.1'!AA50 -> 0 | BF30: =$B$30 -> Frais généraux (14,53% ) | BL30: 0 | BM30: ='Modèle DaQ - Annexe Q-4.1'!AB50 -> 0 | BN30: ='Modèle DaQ - Annexe Q-4.1'!AC50 -> 0 | BO30: ='Modèle DaQ - Annexe Q-4.1'!AD50 -> 0 | BP30: ='Modèle DaQ - Annexe Q-4.1'!AE50 -> 0 | BQ30: ='Modèle DaQ - Annexe Q-4.1'!AF50 -> 0 | BT30: =$B$30 -> Frais généraux (14,53% ) | BZ30: 0 | CA30: ='Modèle DaQ - Annexe Q-4.1'!AG50 -> 0 | CB30: ='Modèle DaQ - Annexe Q-4.1'!AH50 -> 0 | CC30: ='Modèle DaQ - Annexe Q-4.1'!AI50 -> 0 | CD30: ='Modèle DaQ - Annexe Q-4.1'!AJ50 -> 0 | CE30: ='Modèle DaQ - Annexe Q-4.1'!AK50 -> 0 | CH30: =$B$30 -> Frais généraux (14,53% ) | CN30: 0 | CO30: ='Modèle DaQ - Annexe Q-4.1'!AL50 -> 0 | CP30: ='Modèle DaQ - Annexe Q-4.1'!AM50 -> 0 | CQ30: ='Modèle DaQ - Annexe Q-4.1'!AN50 -> 0 | CR30: ='Modèle DaQ - Annexe Q-4.1'!AO50 -> 0 | CS30: ='Modèle DaQ - Annexe Q-4.1'!AP50 -> 0 | CV30: =$B$30 -> Frais généraux (14,53% ) | DB30: 0 | DC30: ='Modèle DaQ - Annexe Q-4.1'!AQ50 -> 0 | DD30: ='Modèle DaQ - Annexe Q-4.1'!AR50 -> 0 | DE30: ='Modèle DaQ - Annexe Q-4.1'!AS50 -> 0 | DF30: ='Modèle DaQ - Annexe Q-4.1'!AT50 -> 0 | DG30: ='Modèle DaQ - Annexe Q-4.1'!AU50 -> 0
B31: PRC - 10 ans | E31: 0 | I31: ='Modèle DaQ - Annexe Q-4.1'!H53 -> 0 | J31: ='Modèle DaQ - Annexe Q-4.1'!I53 -> 0 | K31: ='Modèle DaQ - Annexe Q-4.1'!J53 -> 0 | L31: ='Modèle DaQ - Annexe Q-4.1'!K53 -> 0 | M31: ='Modèle DaQ - Annexe Q-4.1'!L53 -> 0 | P31: PRC - 10 ans | V31: 0 | W31: ='Modèle DaQ - Annexe Q-4.1'!M53 -> 0 | X31: ='Modèle DaQ - Annexe Q-4.1'!N53 -> 0 | Y31: ='Modèle DaQ - Annexe Q-4.1'!O53 -> 0 | Z31: ='Modèle DaQ - Annexe Q-4.1'!P53 -> 0 | AA31: ='Modèle DaQ - Annexe Q-4.1'!Q53 -> 0 | AD31: PRC - 10 ans | AJ31: 0 | AK31: ='Modèle DaQ - Annexe Q-4.1'!R53 -> 0 | AL31: ='Modèle DaQ - Annexe Q-4.1'!S53 -> 0 | AM31: ='Modèle DaQ - Annexe Q-4.1'!T53 -> 0 | AN31: ='Modèle DaQ - Annexe Q-4.1'!U53 -> 0 | AO31: ='Modèle DaQ - Annexe Q-4.1'!V53 -> 0 | AR31: PRC - 10 ans | AX31: 0 | AY31: ='Modèle DaQ - Annexe Q-4.1'!W53 -> 0 | AZ31: ='Modèle DaQ - Annexe Q-4.1'!X53 -> 0 | BA31: ='Modèle DaQ - Annexe Q-4.1'!Y53 -> 0 | BB31: ='Modèle DaQ - Annexe Q-4.1'!Z53 -> 0 | BC31: ='Modèle DaQ - Annexe Q-4.1'!AA53 -> 0 | BF31: PRC - 10 ans | BL31: 0 | BM31: ='Modèle DaQ - Annexe Q-4.1'!AB53 -> 0 | BN31: ='Modèle DaQ - Annexe Q-4.1'!AC53 -> 0 | BO31: ='Modèle DaQ - Annexe Q-4.1'!AD53 -> 0 | BP31: ='Modèle DaQ - Annexe Q-4.1'!AE53 -> 0 | BQ31: ='Modèle DaQ - Annexe Q-4.1'!AF53 -> 0 | BT31: PRC - 10 ans | BZ31: 0 | CA31: ='Modèle DaQ - Annexe Q-4.1'!AG53 -> 0 | CB31: ='Modèle DaQ - Annexe Q-4.1'!AH53 -> 0 | CC31: ='Modèle DaQ - Annexe Q-4.1'!AI53 -> 0 | CD31: ='Modèle DaQ - Annexe Q-4.1'!AJ53 -> 0 | CE31: ='Modèle DaQ - Annexe Q-4.1'!AK53 -> 0 | CH31: PRC - 10 ans | CN31: 0 | CO31: ='Modèle DaQ - Annexe Q-4.1'!AL53 -> 0 | CP31: ='Modèle DaQ - Annexe Q-4.1'!AM53 -> 0 | CQ31: ='Modèle DaQ - Annexe Q-4.1'!AN53 -> 0 | CR31: ='Modèle DaQ - Annexe Q-4.1'!AO53 -> 0 | CS31: ='Modèle DaQ - Annexe Q-4.1'!AP53 -> 0 | CV31: PRC - 10 ans | DB31: 0 | DC31: ='Modèle DaQ - Annexe Q-4.1'!AQ53 -> 0 | DD31: ='Modèle DaQ - Annexe Q-4.1'!AR53 -> 0 | DE31: ='Modèle DaQ - Annexe Q-4.1'!AS53 -> 0 | DF31: ='Modèle DaQ - Annexe Q-4.1'!AT53 -> 0 | DG31: ='Modèle DaQ - Annexe Q-4.1'!AU53 -> 0
B32: CASEP - PRC (10 ans) | E32: 0 | I32: 0 | J32: 0 | K32: 0 | L32: 0 | M32: 0 | P32: CASEP - PRC (10 ans) | V32: 0 | W32: 0 | X32: 0 | Y32: 0 | Z32: 0 | AA32: 0 | AD32: CASEP - PRC (10 ans) | AJ32: 0 | AK32: 0 | AL32: 0 | AM32: 0 | AN32: 0 | AO32: 0 | AR32: CASEP - PRC (10 ans) | AX32: 0 | AY32: 0 | AZ32: 0 | BA32: 0 | BB32: 0 | BC32: 0 | BF32: CASEP - PRC (10 ans) | BL32: 0 | BM32: 0 | BN32: 0 | BO32: 0 | BP32: 0 | BQ32: 0 | BT32: CASEP - PRC (10 ans) | BZ32: 0 | CA32: 0 | CB32: 0 | CC32: 0 | CD32: 0 | CE32: 0 | CH32: CASEP - PRC (10 ans) | CN32: 0 | CO32: 0 | CP32: 0 | CQ32: 0 | CR32: 0 | CS32: 0 | CV32: CASEP - PRC (10 ans) | DB32: 0 | DC32: 0 | DD32: 0 | DE32: 0 | DF32: 0 | DG32: 0
B33: Contrib. Raccord. réseau/ Délai/ Emplacement | E33: 0 | H33: ='Modèle DaQ - Annexe Q-4.1'!G54 -> 0 | I33: ='Modèle DaQ - Annexe Q-4.1'!H54 -> 0 | J33: ='Modèle DaQ - Annexe Q-4.1'!I54 -> 0 | K33: ='Modèle DaQ - Annexe Q-4.1'!J54 -> 0 | L33: ='Modèle DaQ - Annexe Q-4.1'!K54 -> 0 | M33: ='Modèle DaQ - Annexe Q-4.1'!L54 -> 0 | P33: Contrib. Raccord. réseau/ Délai/ Emplacement | V33: 0 | W33: ='Modèle DaQ - Annexe Q-4.1'!M54 -> 0 | X33: ='Modèle DaQ - Annexe Q-4.1'!N54 -> 0 | Y33: ='Modèle DaQ - Annexe Q-4.1'!O54 -> 0 | Z33: ='Modèle DaQ - Annexe Q-4.1'!P54 -> 0 | AA33: ='Modèle DaQ - Annexe Q-4.1'!Q54 -> 0 | AD33: Contrib. Raccord. réseau/ Délai/ Emplacement | AJ33: 0 | AK33: ='Modèle DaQ - Annexe Q-4.1'!R54 -> 0 | AL33: ='Modèle DaQ - Annexe Q-4.1'!S54 -> 0 | AM33: ='Modèle DaQ - Annexe Q-4.1'!T54 -> 0 | AN33: ='Modèle DaQ - Annexe Q-4.1'!U54 -> 0 | AO33: ='Modèle DaQ - Annexe Q-4.1'!V54 -> 0 | AR33: Contrib. Raccord. réseau/ Délai/ Emplacement | AX33: 0 | AY33: ='Modèle DaQ - Annexe Q-4.1'!W54 -> 0 | AZ33: ='Modèle DaQ - Annexe Q-4.1'!X54 -> 0 | BA33: ='Modèle DaQ - Annexe Q-4.1'!Y54 -> 0 | BB33: ='Modèle DaQ - Annexe Q-4.1'!Z54 -> 0 | BC33: ='Modèle DaQ - Annexe Q-4.1'!AA54 -> 0 | BF33: Contrib. Raccord. réseau/ Délai/ Emplacement | BL33: 0 | BM33: ='Modèle DaQ - Annexe Q-4.1'!AB54 -> 0 | BN33: ='Modèle DaQ - Annexe Q-4.1'!AC54 -> 0 | BO33: ='Modèle DaQ - Annexe Q-4.1'!AD54 -> 0 | BP33: ='Modèle DaQ - Annexe Q-4.1'!AE54 -> 0 | BQ33: ='Modèle DaQ - Annexe Q-4.1'!AF54 -> 0 | BT33: Contrib. Raccord. réseau/ Délai/ Emplacement | BZ33: 0 | CA33: ='Modèle DaQ - Annexe Q-4.1'!AG54 -> 0 | CB33: ='Modèle DaQ - Annexe Q-4.1'!AH54 -> 0 | CC33: ='Modèle DaQ - Annexe Q-4.1'!AI54 -> 0 | CD33: ='Modèle DaQ - Annexe Q-4.1'!AJ54 -> 0 | CE33: ='Modèle DaQ - Annexe Q-4.1'!AK54 -> 0 | CH33: Contrib. Raccord. réseau/ Délai/ Emplacement | CN33: 0 | CO33: ='Modèle DaQ - Annexe Q-4.1'!AL54 -> 0 | CP33: ='Modèle DaQ - Annexe Q-4.1'!AM54 -> 0 | CQ33: ='Modèle DaQ - Annexe Q-4.1'!AN54 -> 0 | CR33: ='Modèle DaQ - Annexe Q-4.1'!AO54 -> 0 | CS33: ='Modèle DaQ - Annexe Q-4.1'!AP54 -> 0 | CV33: Contrib. Raccord. réseau/ Délai/ Emplacement | DB33: 0 | DC33: ='Modèle DaQ - Annexe Q-4.1'!AQ54 -> 0 | DD33: ='Modèle DaQ - Annexe Q-4.1'!AR54 -> 0 | DE33: ='Modèle DaQ - Annexe Q-4.1'!AS54 -> 0 | DF33: ='Modèle DaQ - Annexe Q-4.1'!AT54 -> 0 | DG33: ='Modèle DaQ - Annexe Q-4.1'!AU54 -> 0
B34: CASEP - Immobilisations | E34: =SUM(H34:DG34)-V34-AJ34-AX34-BL34-BZ34-CN34-DB34 -> 0 | H34: 0 | I34: 0 | J34: 0 | K34: 0 | L34: 0 | M34: 0 | P34: CASEP - Immobilisations | V34: 0 | W34: 0 | X34: 0 | Y34: 0 | Z34: 0 | AA34: 0 | AD34: CASEP - Immobilisations | AJ34: 0 | AK34: 0 | AL34: 0 | AM34: 0 | AN34: 0 | AO34: 0 | AR34: CASEP - Immobilisations | AX34: 0 | AY34: 0 | AZ34: 0 | BA34: 0 | BB34: 0 | BC34: 0 | BF34: CASEP - Immobilisations | BL34: 0 | BM34: 0 | BN34: 0 | BO34: 0 | BP34: 0 | BQ34: 0 | BT34: CASEP - Immobilisations | BZ34: 0 | CA34: 0 | CB34: 0 | CC34: 0 | CD34: 0 | CE34: 0 | CH34: CASEP - Immobilisations | CN34: 0 | CO34: 0 | CP34: 0 | CQ34: 0 | CR34: 0 | CS34: 0 | CV34: CASEP - Immobilisations | DB34: 0 | DC34: 0 | DD34: 0 | DE34: 0 | DF34: 0 | DG34: 0
B35: Subventions extérieures | E35: =SUM(H35:DG35)-V35-AJ35-AX35-BL35-BZ35-CN35-DB35 -> 0 | H35: ='Modèle DaQ - Annexe Q-4.1'!G55 -> 0 | I35: ='Modèle DaQ - Annexe Q-4.1'!H55 -> 0 | J35: ='Modèle DaQ - Annexe Q-4.1'!I55 -> 0 | K35: ='Modèle DaQ - Annexe Q-4.1'!J55 -> 0 | L35: ='Modèle DaQ - Annexe Q-4.1'!K55 -> 0 | M35: ='Modèle DaQ - Annexe Q-4.1'!L55 -> 0 | P35: Subventions extérieures | V35: 0 | W35: ='Modèle DaQ - Annexe Q-4.1'!M55 -> 0 | X35: ='Modèle DaQ - Annexe Q-4.1'!N55 -> 0 | Y35: ='Modèle DaQ - Annexe Q-4.1'!O55 -> 0 | Z35: ='Modèle DaQ - Annexe Q-4.1'!P55 -> 0 | AA35: ='Modèle DaQ - Annexe Q-4.1'!Q55 -> 0 | AD35: Subventions extérieures | AJ35: 0 | AK35: ='Modèle DaQ - Annexe Q-4.1'!R55 -> 0 | AL35: ='Modèle DaQ - Annexe Q-4.1'!S55 -> 0 | AM35: ='Modèle DaQ - Annexe Q-4.1'!T55 -> 0 | AN35: ='Modèle DaQ - Annexe Q-4.1'!U55 -> 0 | AO35: ='Modèle DaQ - Annexe Q-4.1'!V55 -> 0 | AR35: Subventions extérieures | AX35: 0 | AY35: ='Modèle DaQ - Annexe Q-4.1'!W55 -> 0 | AZ35: ='Modèle DaQ - Annexe Q-4.1'!X55 -> 0 | BA35: ='Modèle DaQ - Annexe Q-4.1'!Y55 -> 0 | BB35: ='Modèle DaQ - Annexe Q-4.1'!Z55 -> 0 | BC35: ='Modèle DaQ - Annexe Q-4.1'!AA55 -> 0 | BF35: Subventions extérieures | BL35: 0 | BM35: ='Modèle DaQ - Annexe Q-4.1'!AB55 -> 0 | BN35: ='Modèle DaQ - Annexe Q-4.1'!AC55 -> 0 | BO35: ='Modèle DaQ - Annexe Q-4.1'!AD55 -> 0 | BP35: ='Modèle DaQ - Annexe Q-4.1'!AE55 -> 0 | BQ35: ='Modèle DaQ - Annexe Q-4.1'!AF55 -> 0 | BT35: Subventions extérieures | BZ35: 0 | CA35: ='Modèle DaQ - Annexe Q-4.1'!AG55 -> 0 | CB35: ='Modèle DaQ - Annexe Q-4.1'!AH55 -> 0 | CC35: ='Modèle DaQ - Annexe Q-4.1'!AI55 -> 0 | CD35: ='Modèle DaQ - Annexe Q-4.1'!AJ55 -> 0 | CE35: ='Modèle DaQ - Annexe Q-4.1'!AK55 -> 0 | CH35: Subventions extérieures | CN35: 0 | CO35: ='Modèle DaQ - Annexe Q-4.1'!AL55 -> 0 | CP35: ='Modèle DaQ - Annexe Q-4.1'!AM55 -> 0 | CQ35: ='Modèle DaQ - Annexe Q-4.1'!AN55 -> 0 | CR35: ='Modèle DaQ - Annexe Q-4.1'!AO55 -> 0 | CS35: ='Modèle DaQ - Annexe Q-4.1'!AP55 -> 0 | CV35: Subventions extérieures | DB35: 0 | DC35: ='Modèle DaQ - Annexe Q-4.1'!AQ55 -> 0 | DD35: ='Modèle DaQ - Annexe Q-4.1'!AR55 -> 0 | DE35: ='Modèle DaQ - Annexe Q-4.1'!AS55 -> 0 | DF35: ='Modèle DaQ - Annexe Q-4.1'!AT55 -> 0 | DG35: ='Modèle DaQ - Annexe Q-4.1'!AU55 -> 0
B36: Contributions clients | E36: =SUM(H36:DG36)-V36-AJ36-AX36-BL36-BZ36-CN36-DB36 -> 0 | H36: ='Modèle DaQ - Annexe Q-4.1'!G56 -> 0 | I36: ='Modèle DaQ - Annexe Q-4.1'!H56 -> 0 | J36: ='Modèle DaQ - Annexe Q-4.1'!I56 -> 0 | K36: ='Modèle DaQ - Annexe Q-4.1'!J56 -> 0 | L36: ='Modèle DaQ - Annexe Q-4.1'!K56 -> 0 | M36: ='Modèle DaQ - Annexe Q-4.1'!L56 -> 0 | P36: Contributions clients | V36: 0 | W36: ='Modèle DaQ - Annexe Q-4.1'!M56 -> 0 | X36: ='Modèle DaQ - Annexe Q-4.1'!N56 -> 0 | Y36: ='Modèle DaQ - Annexe Q-4.1'!O56 -> 0 | Z36: ='Modèle DaQ - Annexe Q-4.1'!P56 -> 0 | AA36: ='Modèle DaQ - Annexe Q-4.1'!Q56 -> 0 | AD36: Contributions clients | AJ36: 0 | AK36: ='Modèle DaQ - Annexe Q-4.1'!R56 -> 0 | AL36: ='Modèle DaQ - Annexe Q-4.1'!S56 -> 0 | AM36: ='Modèle DaQ - Annexe Q-4.1'!T56 -> 0 | AN36: ='Modèle DaQ - Annexe Q-4.1'!U56 -> 0 | AO36: ='Modèle DaQ - Annexe Q-4.1'!V56 -> 0 | AR36: Contributions clients | AX36: 0 | AY36: ='Modèle DaQ - Annexe Q-4.1'!W56 -> 0 | AZ36: ='Modèle DaQ - Annexe Q-4.1'!X56 -> 0 | BA36: ='Modèle DaQ - Annexe Q-4.1'!Y56 -> 0 | BB36: ='Modèle DaQ - Annexe Q-4.1'!Z56 -> 0 | BC36: ='Modèle DaQ - Annexe Q-4.1'!AA56 -> 0 | BF36: Contributions clients | BL36: 0 | BM36: ='Modèle DaQ - Annexe Q-4.1'!AB56 -> 0 | BN36: ='Modèle DaQ - Annexe Q-4.1'!AC56 -> 0 | BO36: ='Modèle DaQ - Annexe Q-4.1'!AD56 -> 0 | BP36: ='Modèle DaQ - Annexe Q-4.1'!AE56 -> 0 | BQ36: ='Modèle DaQ - Annexe Q-4.1'!AF56 -> 0 | BT36: Contributions clients | BZ36: 0 | CA36: ='Modèle DaQ - Annexe Q-4.1'!AG56 -> 0 | CB36: ='Modèle DaQ - Annexe Q-4.1'!AH56 -> 0 | CC36: ='Modèle DaQ - Annexe Q-4.1'!AI56 -> 0 | CD36: ='Modèle DaQ - Annexe Q-4.1'!AJ56 -> 0 | CE36: ='Modèle DaQ - Annexe Q-4.1'!AK56 -> 0 | CH36: Contributions clients | CN36: 0 | CO36: ='Modèle DaQ - Annexe Q-4.1'!AL56 -> 0 | CP36: ='Modèle DaQ - Annexe Q-4.1'!AM56 -> 0 | CQ36: ='Modèle DaQ - Annexe Q-4.1'!AN56 -> 0 | CR36: ='Modèle DaQ - Annexe Q-4.1'!AO56 -> 0 | CS36: ='Modèle DaQ - Annexe Q-4.1'!AP56 -> 0 | CV36: Contributions clients | DB36: 0 | DC36: ='Modèle DaQ - Annexe Q-4.1'!AQ56 -> 0 | DD36: ='Modèle DaQ - Annexe Q-4.1'!AR56 -> 0 | DE36: ='Modèle DaQ - Annexe Q-4.1'!AS56 -> 0 | DF36: ='Modèle DaQ - Annexe Q-4.1'!AT56 -> 0 | DG36: ='Modèle DaQ - Annexe Q-4.1'!AU56 -> 0
B37: Investissement total | E37: =SUM(H37:DG37)-V37-AJ37-AX37-BL37-BZ37-CN37-DB37 -> 1,558,869 | H37: =H22+SUM(H26:H36) -> 1,558,869 | I37: 0 | J37: 0 | K37: 0 | L37: 0 | M37: 0 | P37: Investissement total | V37: =V22+SUM(V26:V36) -> 0 | W37: 0 | X37: 0 | Y37: 0 | Z37: 0 | AA37: 0 | AD37: Investissement total | AJ37: =AJ22+SUM(AJ26:AJ36) -> 0 | AK37: 0 | AL37: 0 | AM37: 0 | AN37: 0 | AO37: 0 | AR37: Investissement total | AX37: =AX22+SUM(AX26:AX36) -> 0 | AY37: 0 | AZ37: 0 | BA37: 0 | BB37: 0 | BC37: 0 | BF37: Investissement total | BL37: =BL22+SUM(BL26:BL36) -> 0 | BM37: 0 | BN37: 0 | BO37: 0 | BP37: 0 | BQ37: 0 | BT37: Investissement total | BZ37: =BZ22+SUM(BZ26:BZ36) -> 0 | CA37: 0 | CB37: 0 | CC37: 0 | CD37: 0 | CE37: 0 | CH37: Investissement total | CN37: =CN22+SUM(CN26:CN36) -> 0 | CO37: 0 | CP37: 0 | CQ37: 0 | CR37: 0 | CS37: 0 | CV37: Investissement total | DB37: =DB22+SUM(DB26:DB36) -> 0 | DC37: 0 | DD37: 0 | DE37: 0 | DF37: 0 | DG37: 0
B39: Coût d'opération | I39: ='Modèle DaQ - Annexe Q-4.1'!H67 -> 3,500 | J39: ='Modèle DaQ - Annexe Q-4.1'!I67 -> 3,500 | K39: ='Modèle DaQ - Annexe Q-4.1'!J67 -> 3,500 | L39: ='Modèle DaQ - Annexe Q-4.1'!K67 -> 3,500 | M39: ='Modèle DaQ - Annexe Q-4.1'!L67 -> 3,500 | P39: Coût d'opération | V39: =M39 -> 3,500 | W39: ='Modèle DaQ - Annexe Q-4.1'!M67 -> 3,500 | X39: ='Modèle DaQ - Annexe Q-4.1'!N67 -> 3,500 | Y39: ='Modèle DaQ - Annexe Q-4.1'!O67 -> 3,500 | Z39: ='Modèle DaQ - Annexe Q-4.1'!P67 -> 3,500 | AA39: ='Modèle DaQ - Annexe Q-4.1'!Q67 -> 3,500 | AD39: Coût d'opération | AJ39: =AA39 -> 3,500 | AK39: ='Modèle DaQ - Annexe Q-4.1'!R67 -> 3,500 | AL39: ='Modèle DaQ - Annexe Q-4.1'!S67 -> 3,500 | AM39: ='Modèle DaQ - Annexe Q-4.1'!T67 -> 3,500 | AN39: ='Modèle DaQ - Annexe Q-4.1'!U67 -> 3,500 | AO39: ='Modèle DaQ - Annexe Q-4.1'!V67 -> 3,500 | AR39: Coût d'opération | AX39: =AO39 -> 3,500 | AY39: ='Modèle DaQ - Annexe Q-4.1'!W67 -> 3,500 | AZ39: ='Modèle DaQ - Annexe Q-4.1'!X67 -> 3,500 | BA39: ='Modèle DaQ - Annexe Q-4.1'!Y67 -> 3,500 | BB39: ='Modèle DaQ - Annexe Q-4.1'!Z67 -> 3,500 | BC39: ='Modèle DaQ - Annexe Q-4.1'!AA67 -> 3,500 | BF39: Coût d'opération | BL39: =BC39 -> 3,500 | BM39: ='Modèle DaQ - Annexe Q-4.1'!AB67 -> 3,500 | BN39: ='Modèle DaQ - Annexe Q-4.1'!AC67 -> 3,500 | BO39: ='Modèle DaQ - Annexe Q-4.1'!AD67 -> 3,500 | BP39: ='Modèle DaQ - Annexe Q-4.1'!AE67 -> 3,500 | BQ39: ='Modèle DaQ - Annexe Q-4.1'!AF67 -> 3,500 | BT39: Coût d'opération | BZ39: =BQ39 -> 3,500 | CA39: ='Modèle DaQ - Annexe Q-4.1'!AG67 -> 3,500 | CB39: ='Modèle DaQ - Annexe Q-4.1'!AH67 -> 3,500 | CC39: ='Modèle DaQ - Annexe Q-4.1'!AI67 -> 3,500 | CD39: ='Modèle DaQ - Annexe Q-4.1'!AJ67 -> 3,500 | CE39: ='Modèle DaQ - Annexe Q-4.1'!AK67 -> 3,500 | CH39: Coût d'opération | CN39: =CE39 -> 3,500 | CO39: ='Modèle DaQ - Annexe Q-4.1'!AL67 -> 3,500 | CP39: ='Modèle DaQ - Annexe Q-4.1'!AM67 -> 3,500 | CQ39: ='Modèle DaQ - Annexe Q-4.1'!AN67 -> 3,500 | CR39: ='Modèle DaQ - Annexe Q-4.1'!AO67 -> 3,500 | CS39: ='Modèle DaQ - Annexe Q-4.1'!AP67 -> 3,500 | CV39: Coût d'opération | DB39: =CS39 -> 3,500 | DC39: ='Modèle DaQ - Annexe Q-4.1'!AQ67 -> 3,500 | DD39: ='Modèle DaQ - Annexe Q-4.1'!AR67 -> 3,500 | DE39: ='Modèle DaQ - Annexe Q-4.1'!AS67 -> 3,500 | DF39: ='Modèle DaQ - Annexe Q-4.1'!AT67 -> 3,500 | DG39: ='Modèle DaQ - Annexe Q-4.1'!AU67 -> 3,500
B40: Amortissement comptable | I40: ='Modèle DaQ - Annexe Q-4.1'!H77 -> 34,516 | J40: ='Modèle DaQ - Annexe Q-4.1'!I77 -> 34,516 | K40: ='Modèle DaQ - Annexe Q-4.1'!J77 -> 34,516 | L40: ='Modèle DaQ - Annexe Q-4.1'!K77 -> 34,516 | M40: ='Modèle DaQ - Annexe Q-4.1'!L77 -> 34,516 | P40: Amortissement comptable | V40: 34,516 | W40: ='Modèle DaQ - Annexe Q-4.1'!M77 -> 34,516 | X40: ='Modèle DaQ - Annexe Q-4.1'!N77 -> 34,516 | Y40: ='Modèle DaQ - Annexe Q-4.1'!O77 -> 34,516 | Z40: ='Modèle DaQ - Annexe Q-4.1'!P77 -> 34,516 | AA40: ='Modèle DaQ - Annexe Q-4.1'!Q77 -> 34,516 | AD40: Amortissement comptable | AJ40: 34,516 | AK40: ='Modèle DaQ - Annexe Q-4.1'!R77 -> 34,516 | AL40: ='Modèle DaQ - Annexe Q-4.1'!S77 -> 34,516 | AM40: ='Modèle DaQ - Annexe Q-4.1'!T77 -> 34,516 | AN40: ='Modèle DaQ - Annexe Q-4.1'!U77 -> 34,516 | AO40: ='Modèle DaQ - Annexe Q-4.1'!V77 -> 34,516 | AR40: Amortissement comptable | AX40: 34,516 | AY40: ='Modèle DaQ - Annexe Q-4.1'!W77 -> 34,516 | AZ40: ='Modèle DaQ - Annexe Q-4.1'!X77 -> 34,516 | BA40: ='Modèle DaQ - Annexe Q-4.1'!Y77 -> 34,516 | BB40: ='Modèle DaQ - Annexe Q-4.1'!Z77 -> 34,516 | BC40: ='Modèle DaQ - Annexe Q-4.1'!AA77 -> 34,516 | BF40: Amortissement comptable | BL40: 34,516 | BM40: ='Modèle DaQ - Annexe Q-4.1'!AB77 -> 34,516 | BN40: ='Modèle DaQ - Annexe Q-4.1'!AC77 -> 34,516 | BO40: ='Modèle DaQ - Annexe Q-4.1'!AD77 -> 34,516 | BP40: ='Modèle DaQ - Annexe Q-4.1'!AE77 -> 34,516 | BQ40: ='Modèle DaQ - Annexe Q-4.1'!AF77 -> 34,516 | BT40: Amortissement comptable | BZ40: 34,516 | CA40: ='Modèle DaQ - Annexe Q-4.1'!AG77 -> 34,516 | CB40: ='Modèle DaQ - Annexe Q-4.1'!AH77 -> 34,516 | CC40: ='Modèle DaQ - Annexe Q-4.1'!AI77 -> 34,516 | CD40: ='Modèle DaQ - Annexe Q-4.1'!AJ77 -> 34,516 | CE40: ='Modèle DaQ - Annexe Q-4.1'!AK77 -> 34,516 | CH40: Amortissement comptable | CN40: 34,516 | CO40: ='Modèle DaQ - Annexe Q-4.1'!AL77 -> 34,516 | CP40: ='Modèle DaQ - Annexe Q-4.1'!AM77 -> 34,516 | CQ40: ='Modèle DaQ - Annexe Q-4.1'!AN77 -> 34,516 | CR40: ='Modèle DaQ - Annexe Q-4.1'!AO77 -> 34,516 | CS40: ='Modèle DaQ - Annexe Q-4.1'!AP77 -> 34,516 | CV40: Amortissement comptable | DB40: 34,516 | DC40: ='Modèle DaQ - Annexe Q-4.1'!AQ77 -> 34,516 | DD40: ='Modèle DaQ - Annexe Q-4.1'!AR77 -> 34,516 | DE40: ='Modèle DaQ - Annexe Q-4.1'!AS77 -> 34,516 | DF40: ='Modèle DaQ - Annexe Q-4.1'!AT77 -> 34,516 | DG40: ='Modèle DaQ - Annexe Q-4.1'!AU77 -> 34,516
B41: Taxe sur les services publics | I41: ='Modèle DaQ - Annexe Q-4.1'!H75 -> 22,865 | J41: ='Modèle DaQ - Annexe Q-4.1'!I75 -> 22,348 | K41: ='Modèle DaQ - Annexe Q-4.1'!J75 -> 21,830 | L41: ='Modèle DaQ - Annexe Q-4.1'!K75 -> 21,312 | M41: ='Modèle DaQ - Annexe Q-4.1'!L75 -> 20,794 | P41: Taxe sur les services publics | V41: 20,794 | W41: ='Modèle DaQ - Annexe Q-4.1'!M75 -> 20,277 | X41: ='Modèle DaQ - Annexe Q-4.1'!N75 -> 19,759 | Y41: ='Modèle DaQ - Annexe Q-4.1'!O75 -> 19,241 | Z41: ='Modèle DaQ - Annexe Q-4.1'!P75 -> 18,723 | AA41: ='Modèle DaQ - Annexe Q-4.1'!Q75 -> 18,206 | AD41: Taxe sur les services publics | AJ41: 18,206 | AK41: ='Modèle DaQ - Annexe Q-4.1'!R75 -> 17,688 | AL41: ='Modèle DaQ - Annexe Q-4.1'!S75 -> 17,170 | AM41: ='Modèle DaQ - Annexe Q-4.1'!T75 -> 16,652 | AN41: ='Modèle DaQ - Annexe Q-4.1'!U75 -> 16,135 | AO41: ='Modèle DaQ - Annexe Q-4.1'!V75 -> 15,617 | AR41: Taxe sur les services publics | AX41: 15,617 | AY41: ='Modèle DaQ - Annexe Q-4.1'!W75 -> 15,099 | AZ41: ='Modèle DaQ - Annexe Q-4.1'!X75 -> 14,581 | BA41: ='Modèle DaQ - Annexe Q-4.1'!Y75 -> 14,064 | BB41: ='Modèle DaQ - Annexe Q-4.1'!Z75 -> 13,546 | BC41: ='Modèle DaQ - Annexe Q-4.1'!AA75 -> 13,028 | BF41: Taxe sur les services publics | BL41: 13,028 | BM41: ='Modèle DaQ - Annexe Q-4.1'!AB75 -> 12,510 | BN41: ='Modèle DaQ - Annexe Q-4.1'!AC75 -> 11,993 | BO41: ='Modèle DaQ - Annexe Q-4.1'!AD75 -> 11,475 | BP41: ='Modèle DaQ - Annexe Q-4.1'!AE75 -> 10,957 | BQ41: ='Modèle DaQ - Annexe Q-4.1'!AF75 -> 10,439 | BT41: Taxe sur les services publics | BZ41: 10,439 | CA41: ='Modèle DaQ - Annexe Q-4.1'!AG75 -> 9,922 | CB41: ='Modèle DaQ - Annexe Q-4.1'!AH75 -> 9,404 | CC41: ='Modèle DaQ - Annexe Q-4.1'!AI75 -> 8,886 | CD41: ='Modèle DaQ - Annexe Q-4.1'!AJ75 -> 8,368 | CE41: ='Modèle DaQ - Annexe Q-4.1'!AK75 -> 7,851 | CH41: Taxe sur les services publics | CN41: 7,851 | CO41: ='Modèle DaQ - Annexe Q-4.1'!AL75 -> 7,333 | CP41: ='Modèle DaQ - Annexe Q-4.1'!AM75 -> 6,815 | CQ41: ='Modèle DaQ - Annexe Q-4.1'!AN75 -> 6,297 | CR41: ='Modèle DaQ - Annexe Q-4.1'!AO75 -> 5,780 | CS41: ='Modèle DaQ - Annexe Q-4.1'!AP75 -> 5,262 | CV41: Taxe sur les services publics | DB41: 5,262 | DC41: ='Modèle DaQ - Annexe Q-4.1'!AQ75 -> 4,744 | DD41: ='Modèle DaQ - Annexe Q-4.1'!AR75 -> 4,226 | DE41: ='Modèle DaQ - Annexe Q-4.1'!AS75 -> 3,709 | DF41: ='Modèle DaQ - Annexe Q-4.1'!AT75 -> 3,191 | DG41: ='Modèle DaQ - Annexe Q-4.1'!AU75 -> 2,673
B42: Redevances | I42: ='Modèle DaQ - Annexe Q-4.1'!H76 -> 0 | J42: ='Modèle DaQ - Annexe Q-4.1'!I76 -> 0 | K42: ='Modèle DaQ - Annexe Q-4.1'!J76 -> 0 | L42: ='Modèle DaQ - Annexe Q-4.1'!K76 -> 0 | M42: ='Modèle DaQ - Annexe Q-4.1'!L76 -> 0 | P42: Redevances | V42: 0 | W42: ='Modèle DaQ - Annexe Q-4.1'!M76 -> 0 | X42: ='Modèle DaQ - Annexe Q-4.1'!N76 -> 0 | Y42: ='Modèle DaQ - Annexe Q-4.1'!O76 -> 0 | Z42: ='Modèle DaQ - Annexe Q-4.1'!P76 -> 0 | AA42: ='Modèle DaQ - Annexe Q-4.1'!Q76 -> 0 | AD42: Redevances | AJ42: 0 | AK42: ='Modèle DaQ - Annexe Q-4.1'!R76 -> 0 | AL42: ='Modèle DaQ - Annexe Q-4.1'!S76 -> 0 | AM42: ='Modèle DaQ - Annexe Q-4.1'!T76 -> 0 | AN42: ='Modèle DaQ - Annexe Q-4.1'!U76 -> 0 | AO42: ='Modèle DaQ - Annexe Q-4.1'!V76 -> 0 | AR42: Redevances | AX42: 0 | AY42: ='Modèle DaQ - Annexe Q-4.1'!W76 -> 0 | AZ42: ='Modèle DaQ - Annexe Q-4.1'!X76 -> 0 | BA42: ='Modèle DaQ - Annexe Q-4.1'!Y76 -> 0 | BB42: ='Modèle DaQ - Annexe Q-4.1'!Z76 -> 0 | BC42: ='Modèle DaQ - Annexe Q-4.1'!AA76 -> 0 | BF42: Redevances | BL42: 0 | BM42: ='Modèle DaQ - Annexe Q-4.1'!AB76 -> 0 | BN42: ='Modèle DaQ - Annexe Q-4.1'!AC76 -> 0 | BO42: ='Modèle DaQ - Annexe Q-4.1'!AD76 -> 0 | BP42: ='Modèle DaQ - Annexe Q-4.1'!AE76 -> 0 | BQ42: ='Modèle DaQ - Annexe Q-4.1'!AF76 -> 0 | BT42: Redevances | BZ42: 0 | CA42: ='Modèle DaQ - Annexe Q-4.1'!AG76 -> 0 | CB42: ='Modèle DaQ - Annexe Q-4.1'!AH76 -> 0 | CC42: ='Modèle DaQ - Annexe Q-4.1'!AI76 -> 0 | CD42: ='Modèle DaQ - Annexe Q-4.1'!AJ76 -> 0 | CE42: ='Modèle DaQ - Annexe Q-4.1'!AK76 -> 0 | CH42: Redevances | CN42: 0 | CO42: ='Modèle DaQ - Annexe Q-4.1'!AL76 -> 0 | CP42: ='Modèle DaQ - Annexe Q-4.1'!AM76 -> 0 | CQ42: ='Modèle DaQ - Annexe Q-4.1'!AN76 -> 0 | CR42: ='Modèle DaQ - Annexe Q-4.1'!AO76 -> 0 | CS42: ='Modèle DaQ - Annexe Q-4.1'!AP76 -> 0 | CV42: Redevances | DB42: 0 | DC42: ='Modèle DaQ - Annexe Q-4.1'!AQ76 -> 0 | DD42: ='Modèle DaQ - Annexe Q-4.1'!AR76 -> 0 | DE42: ='Modèle DaQ - Annexe Q-4.1'!AS76 -> 0 | DF42: ='Modèle DaQ - Annexe Q-4.1'!AT76 -> 0 | DG42: ='Modèle DaQ - Annexe Q-4.1'!AU76 -> 0
B43: Impôts | I43: ='Modèle DaQ - Annexe Q-4.1'!H78 -> 17,033 | J43: ='Modèle DaQ - Annexe Q-4.1'!I78 -> 512 | K43: ='Modèle DaQ - Annexe Q-4.1'!J78 -> 1,998 | L43: ='Modèle DaQ - Annexe Q-4.1'!K78 -> 3,364 | M43: ='Modèle DaQ - Annexe Q-4.1'!L78 -> 4,623 | P43: Impôts | V43: 4,623 | W43: ='Modèle DaQ - Annexe Q-4.1'!M78 -> 5,777 | X43: ='Modèle DaQ - Annexe Q-4.1'!N78 -> 6,834 | Y43: ='Modèle DaQ - Annexe Q-4.1'!O78 -> 7,798 | Z43: ='Modèle DaQ - Annexe Q-4.1'!P78 -> 8,676 | AA43: ='Modèle DaQ - Annexe Q-4.1'!Q78 -> 9,473 | AD43: Impôts | AJ43: 9,473 | AK43: ='Modèle DaQ - Annexe Q-4.1'!R78 -> 10,194 | AL43: ='Modèle DaQ - Annexe Q-4.1'!S78 -> 10,843 | AM43: ='Modèle DaQ - Annexe Q-4.1'!T78 -> 11,424 | AN43: ='Modèle DaQ - Annexe Q-4.1'!U78 -> 11,942 | AO43: ='Modèle DaQ - Annexe Q-4.1'!V78 -> 12,400 | AR43: Impôts | AX43: 12,400 | AY43: ='Modèle DaQ - Annexe Q-4.1'!W78 -> 12,803 | AZ43: ='Modèle DaQ - Annexe Q-4.1'!X78 -> 13,152 | BA43: ='Modèle DaQ - Annexe Q-4.1'!Y78 -> 13,452 | BB43: ='Modèle DaQ - Annexe Q-4.1'!Z78 -> 13,706 | BC43: ='Modèle DaQ - Annexe Q-4.1'!AA78 -> 13,915 | BF43: Impôts | BL43: 13,915 | BM43: ='Modèle DaQ - Annexe Q-4.1'!AB78 -> 14,084 | BN43: ='Modèle DaQ - Annexe Q-4.1'!AC78 -> 14,214 | BO43: ='Modèle DaQ - Annexe Q-4.1'!AD78 -> 14,307 | BP43: ='Modèle DaQ - Annexe Q-4.1'!AE78 -> 14,367 | BQ43: ='Modèle DaQ - Annexe Q-4.1'!AF78 -> 14,394 | BT43: Impôts | BZ43: 14,394 | CA43: ='Modèle DaQ - Annexe Q-4.1'!AG78 -> 14,391 | CB43: ='Modèle DaQ - Annexe Q-4.1'!AH78 -> 14,360 | CC43: ='Modèle DaQ - Annexe Q-4.1'!AI78 -> 14,302 | CD43: ='Modèle DaQ - Annexe Q-4.1'!AJ78 -> 14,219 | CE43: ='Modèle DaQ - Annexe Q-4.1'!AK78 -> 14,113 | CH43: Impôts | CN43: 14,113 | CO43: ='Modèle DaQ - Annexe Q-4.1'!AL78 -> 13,984 | CP43: ='Modèle DaQ - Annexe Q-4.1'!AM78 -> 13,834 | CQ43: ='Modèle DaQ - Annexe Q-4.1'!AN78 -> 13,665 | CR43: ='Modèle DaQ - Annexe Q-4.1'!AO78 -> 13,478 | CS43: ='Modèle DaQ - Annexe Q-4.1'!AP78 -> 13,273 | CV43: Impôts | DB43: 13,273 | DC43: ='Modèle DaQ - Annexe Q-4.1'!AQ78 -> 13,052 | DD43: ='Modèle DaQ - Annexe Q-4.1'!AR78 -> 12,815 | DE43: ='Modèle DaQ - Annexe Q-4.1'!AS78 -> 12,565 | DF43: ='Modèle DaQ - Annexe Q-4.1'!AT78 -> 12,300 | DG43: ='Modèle DaQ - Annexe Q-4.1'!AU78 -> 12,023
B44: Rendement | I44: ='Modèle DaQ - Annexe Q-4.1'!H79 -> 83,709 | J44: ='Modèle DaQ - Annexe Q-4.1'!I79 -> 81,835 | K44: ='Modèle DaQ - Annexe Q-4.1'!J79 -> 79,961 | L44: ='Modèle DaQ - Annexe Q-4.1'!K79 -> 78,087 | M44: ='Modèle DaQ - Annexe Q-4.1'!L79 -> 76,212 | P44: Rendement | V44: 76,212 | W44: ='Modèle DaQ - Annexe Q-4.1'!M79 -> 74,338 | X44: ='Modèle DaQ - Annexe Q-4.1'!N79 -> 72,464 | Y44: ='Modèle DaQ - Annexe Q-4.1'!O79 -> 70,590 | Z44: ='Modèle DaQ - Annexe Q-4.1'!P79 -> 68,716 | AA44: ='Modèle DaQ - Annexe Q-4.1'!Q79 -> 66,841 | AD44: Rendement | AJ44: 66,841 | AK44: ='Modèle DaQ - Annexe Q-4.1'!R79 -> 64,967 | AL44: ='Modèle DaQ - Annexe Q-4.1'!S79 -> 63,093 | AM44: ='Modèle DaQ - Annexe Q-4.1'!T79 -> 61,219 | AN44: ='Modèle DaQ - Annexe Q-4.1'!U79 -> 59,344 | AO44: ='Modèle DaQ - Annexe Q-4.1'!V79 -> 57,470 | AR44: Rendement | AX44: 57,470 | AY44: ='Modèle DaQ - Annexe Q-4.1'!W79 -> 55,596 | AZ44: ='Modèle DaQ - Annexe Q-4.1'!X79 -> 53,722 | BA44: ='Modèle DaQ - Annexe Q-4.1'!Y79 -> 51,847 | BB44: ='Modèle DaQ - Annexe Q-4.1'!Z79 -> 49,973 | BC44: ='Modèle DaQ - Annexe Q-4.1'!AA79 -> 48,099 | BF44: Rendement | BL44: 48,099 | BM44: ='Modèle DaQ - Annexe Q-4.1'!AB79 -> 46,225 | BN44: ='Modèle DaQ - Annexe Q-4.1'!AC79 -> 44,350 | BO44: ='Modèle DaQ - Annexe Q-4.1'!AD79 -> 42,476 | BP44: ='Modèle DaQ - Annexe Q-4.1'!AE79 -> 40,602 | BQ44: ='Modèle DaQ - Annexe Q-4.1'!AF79 -> 38,728 | BT44: Rendement | BZ44: 38,728 | CA44: ='Modèle DaQ - Annexe Q-4.1'!AG79 -> 36,853 | CB44: ='Modèle DaQ - Annexe Q-4.1'!AH79 -> 34,979 | CC44: ='Modèle DaQ - Annexe Q-4.1'!AI79 -> 33,105 | CD44: ='Modèle DaQ - Annexe Q-4.1'!AJ79 -> 31,231 | CE44: ='Modèle DaQ - Annexe Q-4.1'!AK79 -> 29,356 | CH44: Rendement | CN44: 29,356 | CO44: ='Modèle DaQ - Annexe Q-4.1'!AL79 -> 27,482 | CP44: ='Modèle DaQ - Annexe Q-4.1'!AM79 -> 25,608 | CQ44: ='Modèle DaQ - Annexe Q-4.1'!AN79 -> 23,734 | CR44: ='Modèle DaQ - Annexe Q-4.1'!AO79 -> 21,859 | CS44: ='Modèle DaQ - Annexe Q-4.1'!AP79 -> 19,985 | CV44: Rendement | DB44: 19,985 | DC44: ='Modèle DaQ - Annexe Q-4.1'!AQ79 -> 18,111 | DD44: ='Modèle DaQ - Annexe Q-4.1'!AR79 -> 16,237 | DE44: ='Modèle DaQ - Annexe Q-4.1'!AS79 -> 14,362 | DF44: ='Modèle DaQ - Annexe Q-4.1'!AT79 -> 12,488 | DG44: ='Modèle DaQ - Annexe Q-4.1'!AU79 -> 10,614
B45: Revenu requis | I45: =SUM(I39:I44) -> 161,624 | J45: =SUM(J39:J44) -> 142,711 | K45: =SUM(K39:K44) -> 141,806 | L45: =SUM(L39:L44) -> 140,780 | M45: =SUM(M39:M44) -> 139,646 | P45: Revenu requis | V45: 139,646 | W45: =SUM(W39:W44) -> 138,408 | X45: =SUM(X39:X44) -> 137,073 | Y45: =SUM(Y39:Y44) -> 135,646 | Z45: =SUM(Z39:Z44) -> 134,132 | AA45: =SUM(AA39:AA44) -> 132,537 | AD45: Revenu requis | AJ45: 132,537 | AK45: =SUM(AK39:AK44) -> 130,865 | AL45: =SUM(AL39:AL44) -> 129,122 | AM45: =SUM(AM39:AM44) -> 127,311 | AN45: =SUM(AN39:AN44) -> 125,437 | AO45: =SUM(AO39:AO44) -> 123,504 | AR45: Revenu requis | AX45: 123,504 | AY45: =SUM(AY39:AY44) -> 121,514 | AZ45: =SUM(AZ39:AZ44) -> 119,471 | BA45: =SUM(BA39:BA44) -> 117,379 | BB45: =SUM(BB39:BB44) -> 115,241 | BC45: =SUM(BC39:BC44) -> 113,059 | BF45: Revenu requis | BL45: 113,059 | BM45: =SUM(BM39:BM44) -> 110,835 | BN45: =SUM(BN39:BN44) -> 108,573 | BO45: =SUM(BO39:BO44) -> 106,275 | BP45: =SUM(BP39:BP44) -> 103,942 | BQ45: =SUM(BQ39:BQ44) -> 101,578 | BT45: Revenu requis | BZ45: 101,578 | CA45: =SUM(CA39:CA44) -> 99,183 | CB45: =SUM(CB39:CB44) -> 96,759 | CC45: =SUM(CC39:CC44) -> 94,310 | CD45: =SUM(CD39:CD44) -> 91,835 | CE45: =SUM(CE39:CE44) -> 89,336 | CH45: Revenu requis | CN45: 89,336 | CO45: =SUM(CO39:CO44) -> 86,815 | CP45: =SUM(CP39:CP44) -> 84,274 | CQ45: =SUM(CQ39:CQ44) -> 81,713 | CR45: =SUM(CR39:CR44) -> 79,133 | CS45: =SUM(CS39:CS44) -> 76,536 | CV45: Revenu requis | DB45: 76,536 | DC45: =SUM(DC39:DC44) -> 73,923 | DD45: =SUM(DD39:DD44) -> 71,295 | DE45: =SUM(DE39:DE44) -> 68,652 | DF45: =SUM(DF39:DF44) -> 65,996 | DG45: =SUM(DG39:DG44) -> 63,327
B47: Revenus | I47: 0 | J47: 0 | K47: 0 | L47: 0 | M47: 0 | P47: Revenus | V47: =M47 -> 0 | W47: 0 | X47: 0 | Y47: 0 | Z47: 0 | AA47: 0 | AD47: Revenus | AJ47: =AA47 -> 0 | AK47: 0 | AL47: 0 | AM47: 0 | AN47: 0 | AO47: 0 | AR47: Revenus | AX47: =AO47 -> 0 | AY47: 0 | AZ47: 0 | BA47: 0 | BB47: 0 | BC47: 0 | BF47: Revenus | BL47: =BC47 -> 0 | BM47: 0 | BN47: 0 | BO47: 0 | BP47: 0 | BQ47: 0 | BT47: Revenus | BZ47: =BQ47 -> 0 | CA47: 0 | CB47: 0 | CC47: 0 | CD47: 0 | CE47: 0 | CH47: Revenus | CN47: =CE47 -> 0 | CO47: 0 | CP47: 0 | CQ47: 0 | CR47: 0 | CS47: 0 | CV47: Revenus | DB47: =CS47 -> 0 | DC47: 0 | DD47: 0 | DE47: 0 | DF47: 0 | DG47: 0
B48: Taux de Distribution ( ¢/m³) | I48: ='Modèle DaQ - Annexe Q-4.1'!H35 -> 0.0000 | J48: ='Modèle DaQ - Annexe Q-4.1'!I35 -> 0.0000 | K48: ='Modèle DaQ - Annexe Q-4.1'!J35 -> 0.0000 | L48: ='Modèle DaQ - Annexe Q-4.1'!K35 -> 0.0000 | M48: ='Modèle DaQ - Annexe Q-4.1'!L35 -> 0.0000 | P48: Taux Distribution ( ¢/m³) | V48: =M48 -> 0 | W48: ='Modèle DaQ - Annexe Q-4.1'!M35 -> 0.0000 | X48: ='Modèle DaQ - Annexe Q-4.1'!N35 -> 0.0000 | Y48: ='Modèle DaQ - Annexe Q-4.1'!O35 -> 0.0000 | Z48: ='Modèle DaQ - Annexe Q-4.1'!P35 -> 0.0000 | AA48: ='Modèle DaQ - Annexe Q-4.1'!Q35 -> 0.0000 | AD48: Taux Distribution ( ¢/m³) | AJ48: =AA48 -> 0 | AK48: ='Modèle DaQ - Annexe Q-4.1'!R35 -> 0.0000 | AL48: ='Modèle DaQ - Annexe Q-4.1'!S35 -> 0.0000 | AM48: ='Modèle DaQ - Annexe Q-4.1'!T35 -> 0.0000 | AN48: ='Modèle DaQ - Annexe Q-4.1'!U35 -> 0.0000 | AO48: ='Modèle DaQ - Annexe Q-4.1'!V35 -> 0.0000 | AR48: Taux Distribution ( ¢/m³) | AX48: =AO48 -> 0 | AY48: ='Modèle DaQ - Annexe Q-4.1'!W35 -> 0.0000 | AZ48: ='Modèle DaQ - Annexe Q-4.1'!X35 -> 0.0000 | BA48: ='Modèle DaQ - Annexe Q-4.1'!Y35 -> 0.0000 | BB48: ='Modèle DaQ - Annexe Q-4.1'!Z35 -> 0.0000 | BC48: ='Modèle DaQ - Annexe Q-4.1'!AA35 -> 0.0000 | BF48: Taux Distribution ( ¢/m³) | BL48: =BC48 -> 0 | BM48: ='Modèle DaQ - Annexe Q-4.1'!AB35 -> 0.0000 | BN48: ='Modèle DaQ - Annexe Q-4.1'!AC35 -> 0.0000 | BO48: ='Modèle DaQ - Annexe Q-4.1'!AD35 -> 0.0000 | BP48: ='Modèle DaQ - Annexe Q-4.1'!AE35 -> 0.0000 | BQ48: ='Modèle DaQ - Annexe Q-4.1'!AF35 -> 0.0000 | BT48: Taux Distribution ( ¢/m³) | BZ48: =BQ48 -> 0 | CA48: ='Modèle DaQ - Annexe Q-4.1'!AG35 -> 0.0000 | CB48: ='Modèle DaQ - Annexe Q-4.1'!AH35 -> 0.0000 | CC48: ='Modèle DaQ - Annexe Q-4.1'!AI35 -> 0.0000 | CD48: ='Modèle DaQ - Annexe Q-4.1'!AJ35 -> 0.0000 | CE48: ='Modèle DaQ - Annexe Q-4.1'!AK35 -> 0.0000 | CH48: Taux Distribution ( ¢/m³) | CN48: =CE48 -> 0 | CO48: ='Modèle DaQ - Annexe Q-4.1'!AL35 -> 0.0000 | CP48: ='Modèle DaQ - Annexe Q-4.1'!AM35 -> 0.0000 | CQ48: ='Modèle DaQ - Annexe Q-4.1'!AN35 -> 0.0000 | CR48: ='Modèle DaQ - Annexe Q-4.1'!AO35 -> 0.0000 | CS48: ='Modèle DaQ - Annexe Q-4.1'!AP35 -> 0.0000 | CV48: Taux Distribution ( ¢/m³) | DB48: =CS48 -> 0 | DC48: ='Modèle DaQ - Annexe Q-4.1'!AQ35 -> 0.0000 | DD48: ='Modèle DaQ - Annexe Q-4.1'!AR35 -> 0.0000 | DE48: ='Modèle DaQ - Annexe Q-4.1'!AS35 -> 0.0000 | DF48: ='Modèle DaQ - Annexe Q-4.1'!AT35 -> 0.0000 | DG48: ='Modèle DaQ - Annexe Q-4.1'!AU35 -> 0.0000
B49: Taux Fonds vert ( ¢/m³) | I49: 0.0000 | J49: 0.0000 | K49: 0.0000 | L49: 0.0000 | M49: 0.0000 | P49: Taux Fonds vert ( ¢/m³) | V49: 0 | W49: 0.0000 | X49: 0.0000 | Y49: 0.0000 | Z49: 0.0000 | AA49: 0.0000 | AD49: Taux Fonds vert ( ¢/m³) | AJ49: =AA49 -> 0 | AK49: 0.0000 | AL49: 0.0000 | AM49: 0.0000 | AN49: 0.0000 | AO49: 0.0000 | AR49: Taux Fonds vert ( ¢/m³) | AX49: =AO49 -> 0 | AY49: 0.0000 | AZ49: 0.0000 | BA49: 0.0000 | BB49: 0.0000 | BC49: 0.0000 | BF49: Taux Fonds vert ( ¢/m³) | BL49: =BC49 -> 0 | BM49: 0.0000 | BN49: 0.0000 | BO49: 0.0000 | BP49: 0.0000 | BQ49: 0.0000 | BT49: Taux Fonds vert ( ¢/m³) | BZ49: =BQ49 -> 0 | CA49: 0.0000 | CB49: 0.0000 | CC49: 0.0000 | CD49: 0.0000 | CE49: 0.0000 | CH49: Taux Fonds vert ( ¢/m³) | CN49: =CE49 -> 0 | CO49: 0.0000 | CP49: 0.0000 | CQ49: 0.0000 | CR49: 0.0000 | CS49: 0.0000 | CV49: Taux Fonds vert ( ¢/m³) | DB49: =CS49 -> 0 | DC49: 0.0000 | DD49: 0.0000 | DE49: 0.0000 | DF49: 0.0000 | DG49: 0.0000
B50: Revenu de distribution ( ¢/m³) | I50: =I48 -> 0.0000 | J50: =J48 -> 0.0000 | K50: 0.0000 | L50: 0.0000 | M50: 0.0000 | P50: Revenu de distribution ( ¢/m³) | V50: =M50 -> 0 | W50: =W48 -> 0.0000 | X50: 0.0000 | Y50: 0.0000 | Z50: 0.0000 | AA50: 0.0000 | AD50: Revenu de distribution ( ¢/m³) | AJ50: =AA50 -> 0 | AK50: =AK48 -> 0.0000 | AL50: 0.0000 | AM50: 0.0000 | AN50: 0.0000 | AO50: 0.0000 | AR50: Revenu de distribution ( ¢/m³) | AX50: =AO50 -> 0 | AY50: =AY48 -> 0.0000 | AZ50: 0.0000 | BA50: 0.0000 | BB50: 0.0000 | BC50: 0.0000 | BF50: Revenu de distribution ( ¢/m³) | BL50: =BC50 -> 0 | BM50: =BM48 -> 0.0000 | BN50: 0.0000 | BO50: 0.0000 | BP50: 0.0000 | BQ50: 0.0000 | BT50: Revenu de distribution ( ¢/m³) | BZ50: =BQ50 -> 0 | CA50: =CA48 -> 0.0000 | CB50: 0.0000 | CC50: 0.0000 | CD50: 0.0000 | CE50: 0.0000 | CH50: Revenu de distribution ( ¢/m³) | CN50: =CE50 -> 0 | CO50: =CO48 -> 0.0000 | CP50: 0.0000 | CQ50: 0.0000 | CR50: 0.0000 | CS50: 0.0000 | CV50: Revenu de distribution ( ¢/m³) | DB50: =CS50 -> 0 | DC50: =DC48 -> 0.0000 | DD50: 0.0000 | DE50: 0.0000 | DF50: 0.0000 | DG50: 0.0000
B51: Revenu de distribution ($) | I51: ='Modèle DaQ - Annexe Q-4.1'!H36 -> 0 | J51: ='Modèle DaQ - Annexe Q-4.1'!I36 -> 0 | K51: ='Modèle DaQ - Annexe Q-4.1'!J36 -> 0 | L51: ='Modèle DaQ - Annexe Q-4.1'!K36 -> 0 | M51: ='Modèle DaQ - Annexe Q-4.1'!L36 -> 0 | P51: Revenu de distribution ($) | V51: =M51 -> 0 | W51: ='Modèle DaQ - Annexe Q-4.1'!M36 -> 0 | X51: ='Modèle DaQ - Annexe Q-4.1'!N36 -> 0 | Y51: ='Modèle DaQ - Annexe Q-4.1'!O36 -> 0 | Z51: ='Modèle DaQ - Annexe Q-4.1'!P36 -> 0 | AA51: ='Modèle DaQ - Annexe Q-4.1'!Q36 -> 0 | AD51: Revenu de distribution ($) | AJ51: =AA51 -> 0 | AK51: ='Modèle DaQ - Annexe Q-4.1'!R36 -> 0 | AL51: ='Modèle DaQ - Annexe Q-4.1'!S36 -> 0 | AM51: ='Modèle DaQ - Annexe Q-4.1'!T36 -> 0 | AN51: ='Modèle DaQ - Annexe Q-4.1'!U36 -> 0 | AO51: ='Modèle DaQ - Annexe Q-4.1'!V36 -> 0 | AR51: Revenu de distribution ($) | AX51: =AO51 -> 0 | AY51: ='Modèle DaQ - Annexe Q-4.1'!W36 -> 0 | AZ51: ='Modèle DaQ - Annexe Q-4.1'!X36 -> 0 | BA51: ='Modèle DaQ - Annexe Q-4.1'!Y36 -> 0 | BB51: ='Modèle DaQ - Annexe Q-4.1'!Z36 -> 0 | BC51: ='Modèle DaQ - Annexe Q-4.1'!AA36 -> 0 | BF51: Revenu de distribution ($) | BL51: =BC51 -> 0 | BM51: ='Modèle DaQ - Annexe Q-4.1'!AB36 -> 0 | BN51: ='Modèle DaQ - Annexe Q-4.1'!AC36 -> 0 | BO51: ='Modèle DaQ - Annexe Q-4.1'!AD36 -> 0 | BP51: ='Modèle DaQ - Annexe Q-4.1'!AE36 -> 0 | BQ51: ='Modèle DaQ - Annexe Q-4.1'!AF36 -> 0 | BT51: Revenu de distribution ($) | BZ51: =BQ51 -> 0 | CA51: ='Modèle DaQ - Annexe Q-4.1'!AG36 -> 0 | CB51: ='Modèle DaQ - Annexe Q-4.1'!AH36 -> 0 | CC51: ='Modèle DaQ - Annexe Q-4.1'!AI36 -> 0 | CD51: ='Modèle DaQ - Annexe Q-4.1'!AJ36 -> 0 | CE51: ='Modèle DaQ - Annexe Q-4.1'!AK36 -> 0 | CH51: Revenu de distribution ($) | CN51: =CE51 -> 0 | CO51: ='Modèle DaQ - Annexe Q-4.1'!AL36 -> 0 | CP51: ='Modèle DaQ - Annexe Q-4.1'!AM36 -> 0 | CQ51: ='Modèle DaQ - Annexe Q-4.1'!AN36 -> 0 | CR51: ='Modèle DaQ - Annexe Q-4.1'!AO36 -> 0 | CS51: ='Modèle DaQ - Annexe Q-4.1'!AP36 -> 0 | CV51: Revenu de distribution ($) | DB51: =CS51 -> 0 | DC51: ='Modèle DaQ - Annexe Q-4.1'!AQ36 -> 0 | DD51: ='Modèle DaQ - Annexe Q-4.1'!AR36 -> 0 | DE51: ='Modèle DaQ - Annexe Q-4.1'!AS36 -> 0 | DF51: ='Modèle DaQ - Annexe Q-4.1'!AT36 -> 0 | DG51: ='Modèle DaQ - Annexe Q-4.1'!AU36 -> 0
B53: Contribution tarifaire annuelle | I53: =I45-I51 -> 161,624 | J53: =J45-J51 -> 142,711 | K53: =K45-K51 -> 141,806 | L53: 140,780 | M53: 139,646 | P53: Contribution tarifaire annuelle | V53: =V45-V51 -> 139,646 | W53: 138,408 | X53: 137,073 | Y53: 135,646 | Z53: 134,132 | AA53: 132,537 | AD53: Contribution tarifaire annuelle | AJ53: =AJ45-AJ51 -> 132,537 | AK53: 130,865 | AL53: 129,122 | AM53: 127,311 | AN53: 125,437 | AO53: 123,504 | AR53: Contribution tarifaire annuelle | AX53: =AX45-AX51 -> 123,504 | AY53: 121,514 | AZ53: 119,471 | BA53: 117,379 | BB53: 115,241 | BC53: 113,059 | BF53: Contribution tarifaire annuelle | BL53: =BL45-BL51 -> 113,059 | BM53: 110,835 | BN53: 108,573 | BO53: 106,275 | BP53: 103,942 | BQ53: 101,578 | BT53: Contribution tarifaire annuelle | BZ53: =BZ45-BZ51 -> 101,578 | CA53: 99,183 | CB53: 96,759 | CC53: 94,310 | CD53: 91,835 | CE53: 89,336 | CH53: Contribution tarifaire annuelle | CN53: =CN45-CN51 -> 89,336 | CO53: 86,815 | CP53: 84,274 | CQ53: 81,713 | CR53: 79,133 | CS53: 76,536 | CV53: Contribution tarifaire annuelle | DB53: =DB45-DB51 -> 76,536 | DC53: 73,923 | DD53: 71,295 | DE53: 68,652 | DF53: 65,996 | DG53: 63,327
I55: 6 | J55: 7 | K55: 8 | L55: 9 | M55: 10 | W55: 11 | X55: 12 | Y55: 13 | Z55: 14 | AA55: 15 | AK55: 16 | AL55: 17 | AM55: 18 | AN55: 19 | AO55: 20 | AY55: 21 | AZ55: 22 | BA55: 23 | BB55: 24 | BC55: 25 | BM55: 26 | BN55: 27 | BO55: 28 | BP55: 29 | BQ55: 30 | CA55: 31 | CB55: 32 | CC55: 33 | CD55: 34 | CE55: 35 | CO55: 36 | CP55: 37 | CQ55: 38 | CR55: 39 | CS55: 40
B56: Contribution tarifaire annuelle | I56: ='Modèle DaQ - Annexe Q-4.1'!M153 -> 138,408 | J56: ='Modèle DaQ - Annexe Q-4.1'!N153 -> 137,073 | K56: ='Modèle DaQ - Annexe Q-4.1'!O153 -> 135,646 | L56: ='Modèle DaQ - Annexe Q-4.1'!P153 -> 134,132 | M56: ='Modèle DaQ - Annexe Q-4.1'!Q153 -> 132,537 | P56: Contribution tarifaire annuelle | W56: ='Modèle DaQ - Annexe Q-4.1'!R153 -> 130,865 | X56: ='Modèle DaQ - Annexe Q-4.1'!S153 -> 129,122 | Y56: ='Modèle DaQ - Annexe Q-4.1'!T153 -> 127,311 | Z56: ='Modèle DaQ - Annexe Q-4.1'!U153 -> 125,437 | AA56: ='Modèle DaQ - Annexe Q-4.1'!V153 -> 123,504 | AD56: Contribution tarifaire annuelle | AK56: ='Modèle DaQ - Annexe Q-4.1'!W153 -> 121,514 | AL56: ='Modèle DaQ - Annexe Q-4.1'!X153 -> 119,471 | AM56: ='Modèle DaQ - Annexe Q-4.1'!Y153 -> 117,379 | AN56: ='Modèle DaQ - Annexe Q-4.1'!Z153 -> 115,241 | AO56: ='Modèle DaQ - Annexe Q-4.1'!AA153 -> 113,059 | AR56: Contribution tarifaire annuelle | AY56: ='Modèle DaQ - Annexe Q-4.1'!AB153 -> 110,835 | AZ56: ='Modèle DaQ - Annexe Q-4.1'!AC153 -> 108,573 | BA56: ='Modèle DaQ - Annexe Q-4.1'!AD153 -> 106,275 | BB56: ='Modèle DaQ - Annexe Q-4.1'!AE153 -> 103,942 | BC56: ='Modèle DaQ - Annexe Q-4.1'!AF153 -> 101,578 | BF56: Contribution tarifaire annuelle | BM56: ='Modèle DaQ - Annexe Q-4.1'!AG153 -> 99,183 | BN56: ='Modèle DaQ - Annexe Q-4.1'!AH153 -> 96,759 | BO56: ='Modèle DaQ - Annexe Q-4.1'!AI153 -> 94,310 | BP56: ='Modèle DaQ - Annexe Q-4.1'!AJ153 -> 91,835 | BQ56: ='Modèle DaQ - Annexe Q-4.1'!AK153 -> 89,336 | BT56: Contribution tarifaire annuelle | CA56: ='Modèle DaQ - Annexe Q-4.1'!AL153 -> 86,815 | CB56: ='Modèle DaQ - Annexe Q-4.1'!AM153 -> 84,274 | CC56: ='Modèle DaQ - Annexe Q-4.1'!AN153 -> 81,713 | CD56: ='Modèle DaQ - Annexe Q-4.1'!AO153 -> 79,133 | CE56: ='Modèle DaQ - Annexe Q-4.1'!AP153 -> 76,536 | CH56: Contribution tarifaire annuelle | CO56: ='Modèle DaQ - Annexe Q-4.1'!AQ153 -> 73,923 | CP56: ='Modèle DaQ - Annexe Q-4.1'!AR153 -> 71,295 | CQ56: ='Modèle DaQ - Annexe Q-4.1'!AS153 -> 68,652 | CR56: ='Modèle DaQ - Annexe Q-4.1'!AT153 -> 65,996 | CS56: ='Modèle DaQ - Annexe Q-4.1'!AU153 -> 63,327 | CV56: Contribution tarifaire annuelle
B59: Contribution tarifaire ( 3 ans ) | E59: ='Modèle DaQ - Annexe Q-4.1'!J155 -> 402,694 | I59: Contribution tarifaire ( 15 ans ) | L59: ='Modèle DaQ - Annexe Q-4.1'!V155 -> 1,390,931 | P59: Contribution tarifaire ( 3 ans ) | S59: =$E$59 -> 402,694 | W59: Contribution tarifaire ( 15 ans ) | Z59: =$L$59 -> 1,390,931 | AD59: Contribution tarifaire ( 3 ans ) | AG59: =$E$59 -> 402,694 | AK59: Contribution tarifaire ( 15 ans ) | AN59: =$L$59 -> 1,390,931 | AR59: Contribution tarifaire ( 3 ans ) | AU59: =$E$59 -> 402,694 | AY59: Contribution tarifaire ( 15 ans ) | BB59: =$L$59 -> 1,390,931 | BF59: Contribution tarifaire ( 3 ans ) | BI59: =$E$59 -> 402,694 | BM59: Contribution tarifaire ( 15 ans ) | BP59: =$L$59 -> 1,390,931 | BT59: Contribution tarifaire ( 3 ans ) | BW59: =$E$59 -> 402,694 | CA59: Contribution tarifaire ( 15 ans ) | CD59: =$L$59 -> 1,390,931 | CH59: Contribution tarifaire ( 3 ans ) | CK59: =$E$59 -> 402,694 | CO59: Contribution tarifaire ( 15 ans ) | CR59: =$L$59 -> 1,390,931 | CV59: Contribution tarifaire ( 3 ans ) | CY59: =$E$59 -> 402,694 | DC59: Contribution tarifaire ( 15 ans ) | DF59: =$L$59 -> 1,390,931
B60: Contribution tarifaire ( 5 ans ) | E60: ='Modèle DaQ - Annexe Q-4.1'!L155 -> 623,839 | I60: Contribution tarifaire ( 20 ans ) | L60: ='Modèle DaQ - Annexe Q-4.1'!AA155 -> 1,618,479 | P60: Contribution tarifaire ( 5 ans ) | S60: =$E$60 -> 623,839 | W60: Contribution tarifaire ( 20 ans ) | Z60: =$L$60 -> 1,618,479 | AD60: Contribution tarifaire ( 5 ans ) | AG60: =$E$60 -> 623,839 | AK60: Contribution tarifaire ( 20 ans ) | AN60: =$L$60 -> 1,618,479 | AR60: Contribution tarifaire ( 5 ans ) | AU60: =$E$60 -> 623,839 | AY60: Contribution tarifaire ( 20 ans ) | BB60: =$L$60 -> 1,618,479 | BF60: Contribution tarifaire ( 5 ans ) | BI60: =$E$60 -> 623,839 | BM60: Contribution tarifaire ( 20 ans ) | BP60: =$L$60 -> 1,618,479 | BT60: Contribution tarifaire ( 5 ans ) | BW60: =$E$60 -> 623,839 | CA60: Contribution tarifaire ( 20 ans ) | CD60: =$L$60 -> 1,618,479 | CH60: Contribution tarifaire ( 5 ans ) | CK60: =$E$60 -> 623,839 | CO60: Contribution tarifaire ( 20 ans ) | CR60: =$L$60 -> 1,618,479 | CV60: Contribution tarifaire ( 5 ans ) | CY60: =$E$60 -> 623,839 | DC60: Contribution tarifaire ( 20 ans ) | DF60: =$L$60 -> 1,618,479
B61: Contribution tarifaire ( 10 ans ) | E61: ='Modèle DaQ - Annexe Q-4.1'!Q155 -> 1,069,593 | I61: Contribution tarifaire ( 40 ans ) | L61: ='Modèle DaQ - Annexe Q-4.1'!AU155 -> 2,002,672 | P61: Contribution tarifaire ( 10 ans ) | S61: =$E$61 -> 1,069,593 | W61: Contribution tarifaire ( 40 ans ) | Z61: =$L$61 -> 2,002,672 | AD61: Contribution tarifaire ( 10 ans ) | AG61: =$E$61 -> 1,069,593 | AK61: Contribution tarifaire ( 40 ans ) | AN61: =$L$61 -> 2,002,672 | AR61: Contribution tarifaire ( 10 ans ) | AU61: =$E$61 -> 1,069,593 | AY61: Contribution tarifaire ( 40 ans ) | BB61: =$L$61 -> 2,002,672 | BF61: Contribution tarifaire ( 10 ans ) | BI61: =$E$61 -> 1,069,593 | BM61: Contribution tarifaire ( 40 ans ) | BP61: =$L$61 -> 2,002,672 | BT61: Contribution tarifaire ( 10 ans ) | BW61: =$E$61 -> 1,069,593 | CA61: Contribution tarifaire ( 40 ans ) | CD61: =$L$61 -> 2,002,672 | CH61: Contribution tarifaire ( 10 ans ) | CK61: =$E$61 -> 1,069,593 | CO61: Contribution tarifaire ( 40 ans ) | CR61: =$L$61 -> 2,002,672 | CV61: Contribution tarifaire ( 10 ans ) | CY61: =$E$61 -> 1,069,593 | DC61: Contribution tarifaire ( 40 ans ) | DF61: =$L$61 -> 2,002,672
B63: Point mort tarifaire (années) | E63: ='Modèle DaQ - Annexe Q-4.1'!$E$156 -> 0 | P63: Point mort tarifaire (années) | S63: =$E$63 -> 0 | AD63: Point mort tarifaire (années) | AG63: =$E$63 -> 0 | AR63: Point mort tarifaire (années) | AU63: =$E$63 -> 0 | BF63: Point mort tarifaire (années) | BI63: =$E$63 -> 0 | BT63: Point mort tarifaire (années) | BW63: =$E$63 -> 0 | CH63: Point mort tarifaire (années) | CK63: =$E$63 -> 0 | CV63: Point mort tarifaire (années) | CY63: =$E$63 -> 0
B65: Taux de rendement interne ( TRI 40 ans ) | E65: ='Modèle DaQ - Annexe Q-4.1'!$E$149 -> - | P65: Taux de rendement interne ( TRI 40 ans ) | S65: =$E$65 -> - | AD65: Taux de rendement interne ( TRI 40 ans ) | AG65: =$E$65 -> - | AR65: =$B$65 -> Taux de rendement interne ( TRI 40 ans ) | AU65: =$E$65 -> - | BF65: =$B$65 -> Taux de rendement interne ( TRI 40 ans ) | BI65: =$E$65 -> - | BT65: =$B$65 -> Taux de rendement interne ( TRI 40 ans ) | BW65: =$E$65 -> - | CH65: =$B$65 -> Taux de rendement interne ( TRI 40 ans ) | CK65: =$E$65 -> - | CV65: =$B$65 -> Taux de rendement interne ( TRI 40 ans ) | CY65: =$E$65 -> -
B70: VENTES | P70: VENTES | AD70: VENTES | AR70: VENTES | BF70: VENTES | BT70: VENTES | CH70: VENTES | CV70: VENTES
B75: Représentant | E75: Date ____/____/____ | G75: Directeur Ventes | J75: Date ____/____/____ | K75: Cadre de direction Ventes | M75: Date ____/____/____ | P75: Représentant | S75: Date ____/____/____ | U75: Directeur Ventes | X75: Date ____/____/____ | Y75: Cadre de direction Ventes | AA75: Date ____/____/____ | AD75: Représentant | AG75: Date ____/____/____ | AI75: Directeur Ventes | AL75: Date ____/____/____ | AM75: Cadre de direction Ventes | AO75: Date ____/____/____ | AR75: Représentant | AU75: Date ____/____/____ | AW75: Directeur Ventes | AZ75: Date ____/____/____ | BA75: Cadre de direction Ventes | BC75: Date ____/____/____ | BF75: Représentant | BI75: Date ____/____/____ | BK75: Directeur Ventes | BN75: Date ____/____/____ | BO75: Cadre de direction Ventes | BQ75: Date ____/____/____ | BT75: Représentant | BW75: Date ____/____/____ | BY75: Directeur Ventes | CB75: Date ____/____/____ | CC75: Cadre de direction Ventes | CE75: Date ____/____/____ | CH75: Représentant | CK75: Date ____/____/____ | CM75: Directeur Ventes | CP75: Date ____/____/____ | CQ75: Cadre de direction Ventes | CS75: Date ____/____/____ | CV75: Représentant | CY75: Date ____/____/____ | DA75: Directeur Ventes | DD75: Date ____/____/____ | DE75: Cadre de direction Ventes | DG75: Date ____/____/____
B82: Vice-président Commercialisation | E82: Date ____/____/____ | G82: Présidente | J82: Date ____/____/____ | K82: 0 | P82: Vice-président Commercialisation | S82: Date ____/____/____ | U82: Présidente | X82: Date ____/____/____ | Y82: 0 | AD82: Vice-président Commercialisation | AG82: Date ____/____/____ | AI82: Présidente | AL82: Date ____/____/____ | AM82: 0 | AR82: Vice-président Commercialisation | AU82: Date ____/____/____ | AW82: Présidente | AZ82: Date ____/____/____ | BA82: 0 | BF82: Vice-président Commercialisation | BI82: Date ____/____/____ | BK82: Présidente | BN82: Date ____/____/____ | BO82: 0 | BT82: Vice-président Commercialisation | BW82: Date ____/____/____ | BY82: Présidente | CB82: Date ____/____/____ | CC82: 0 | CH82: Vice-président Commercialisation | CK82: Date ____/____/____ | CM82: Présidente | CP82: Date ____/____/____ | CQ82: 0 | CV82: Vice-président Commercialisation | CY82: Date ____/____/____ | DA82: Présidente | DD82: Date ____/____/____ | DE82: 0
B87: CONDITIONS DE RÉALISATION | P87: CONDITIONS DE RÉALISATION | AD87: CONDITIONS DE RÉALISATION | AR87: CONDITIONS DE RÉALISATION | BF87: CONDITIONS DE RÉALISATION | BT87: CONDITIONS DE RÉALISATION | CH87: CONDITIONS DE RÉALISATION | CV87: CONDITIONS DE RÉALISATION
